﻿Dept/Family,Entity,Expense Type,Expense Area,Supplier,Payment Date, Amount ,SME,UNSPCC Code,UNSPCC Description
"Ministry of Housing, Communities and Local Government",Homes England,MISC PROFESSIONAL FEES,Investment,HM LAND REGISTRY,05/01/2022,"£2,610.00",PUB,80131700,Escrow and title services
"Ministry of Housing, Communities and Local Government",Homes England,MISC PROFESSIONAL FEES,Investment,HM LAND REGISTRY,05/01/2022,£606.00,PUB,80131700,Escrow and title services
"Ministry of Housing, Communities and Local Government",Homes England,MISC PROFESSIONAL FEES,Investment,HM LAND REGISTRY,06/01/2022,£273.00,PUB,80131700,Escrow and title services
"Ministry of Housing, Communities and Local Government",Homes England,MISC PROFESSIONAL FEES,Investment,HM LAND REGISTRY,07/01/2022,"£4,707.00",PUB,80131700,Escrow and title services
"Ministry of Housing, Communities and Local Government",Homes England,MISC PROFESSIONAL FEES,Investment,HM LAND REGISTRY,10/01/2022,"£1,068.00",PUB,80131700,Escrow and title services
"Ministry of Housing, Communities and Local Government",Homes England,MISC PROFESSIONAL FEES,Investment,HM LAND REGISTRY,11/01/2022,"£1,335.00",PUB,80131700,Escrow and title services
"Ministry of Housing, Communities and Local Government",Homes England,MISC PROFESSIONAL FEES,Investment,HM LAND REGISTRY,12/01/2022,£456.00,PUB,80131700,Escrow and title services
"Ministry of Housing, Communities and Local Government",Homes England,REV GRNTS TO LOCAL AUTHORITIES,Investment,MANCHESTER CITY COUNCIL,20/01/2022,"£3,375.00",PUB,None,Grants
"Ministry of Housing, Communities and Local Government",Homes England,REV GRNTS TO LOCAL AUTHORITIES,Investment,MANCHESTER CITY COUNCIL,26/01/2022,"£3,375.00",PUB,None,Grants
"Ministry of Housing, Communities and Local Government",Homes England,REV GRNTS TO LOCAL AUTHORITIES,Investment,OLDHAM COUNCIL,27/01/2022,"£7,318.50",PUB,None,Grants
"Ministry of Housing, Communities and Local Government",Homes England,CAP GRNTS TO LOCAL AUTHORITIES,Investment,WIGAN COUNCIL,26/01/2022,"£136,000.00",PUB,None,Grants
"Ministry of Housing, Communities and Local Government",Homes England,CAP GRNTS TO LOCAL AUTHORITIES,Investment,WIGAN COUNCIL,27/01/2022,"£187,500.00",PUB,None,Grants
"Ministry of Housing, Communities and Local Government",Homes England,REV GRNTS TO LOCAL AUTHORITIES,Investment,SOLIHULL METROPOLITAN BOROUGH COUNCIL,17/01/2022,"£1,662.00",PUB,None,Grants
"Ministry of Housing, Communities and Local Government",Homes England,REV GRNTS TO LOCAL AUTHORITIES,Investment,SOLIHULL METROPOLITAN BOROUGH COUNCIL,17/01/2022,"£1,721.00",PUB,None,Grants
"Ministry of Housing, Communities and Local Government",Homes England,REV GRNTS TO LOCAL AUTHORITIES,Investment,SOLIHULL METROPOLITAN BOROUGH COUNCIL,17/01/2022,"£2,167.00",PUB,None,Grants
"Ministry of Housing, Communities and Local Government",Homes England,CAP GRNTS TO LOCAL AUTHORITIES,Investment,THE COUNTY COUNCIL OF DURHAM,17/01/2022,"£12,000.00",PUB,None,Grants
"Ministry of Housing, Communities and Local Government",Homes England,CAP GRNTS TO LOCAL AUTHORITIES,Investment,THE COUNTY COUNCIL OF DURHAM,17/01/2022,"£12,000.00",PUB,None,Grants
"Ministry of Housing, Communities and Local Government",Homes England,REVENUE GRANTS TO RPs,Investment,THE COUNTY COUNCIL OF DURHAM,19/01/2022,"£30,156.00",PUB,None,Grants
"Ministry of Housing, Communities and Local Government",Homes England,CAP GRNTS TO LOCAL AUTHORITIES,Investment,THE COUNTY COUNCIL OF DURHAM,19/01/2022,"£10,500.00",PUB,None,Grants
"Ministry of Housing, Communities and Local Government",Homes England,CAP GRNTS TO LOCAL AUTHORITIES,Investment,THE COUNTY COUNCIL OF DURHAM,21/01/2022,"£10,500.00",PUB,None,Grants
"Ministry of Housing, Communities and Local Government",Homes England,CAP GRNTS TO LOCAL AUTHORITIES,Investment,NORTHUMBERLAND COUNTY COUNCIL,12/01/2022,"£4,750.00",PUB,None,Grants
"Ministry of Housing, Communities and Local Government",Homes England,CAP GRNTS TO LOCAL AUTHORITIES,Investment,SHROPSHIRE COUNCIL,24/01/2022,"£130,000.00",PUB,None,Grants
"Ministry of Housing, Communities and Local Government",Homes England,CAP GRNTS TO LOCAL AUTHORITIES,Investment,SHROPSHIRE COUNCIL,24/01/2022,"£288,000.00",PUB,None,Grants
"Ministry of Housing, Communities and Local Government",Homes England,CAP GRNTS TO LOCAL AUTHORITIES,Investment,SWINDON BOROUGH COUNCIL,28/01/2022,"£1,507,681.00",PUB,None,Grants
"Ministry of Housing, Communities and Local Government",Homes England,REV GRNTS TO LOCAL AUTHORITIES,Investment,CENTRAL BEDFORDSHIRE COUNCIL,28/01/2022,"£7,443.00",PUB,None,Grants
"Ministry of Housing, Communities and Local Government",Homes England,REV GRNTS TO LOCAL AUTHORITIES,Investment,CENTRAL BEDFORDSHIRE COUNCIL,28/01/2022,"£5,935.00",PUB,None,Grants
"Ministry of Housing, Communities and Local Government",Homes England,REV GRNTS TO LOCAL AUTHORITIES,Investment,CENTRAL BEDFORDSHIRE COUNCIL,28/01/2022,"£7,443.00",PUB,None,Grants
"Ministry of Housing, Communities and Local Government",Homes England,REV GRNTS TO LOCAL AUTHORITIES,Investment,CENTRAL BEDFORDSHIRE COUNCIL,28/01/2022,"£5,474.00",PUB,None,Grants
"Ministry of Housing, Communities and Local Government",Homes England,REV GRNTS TO LOCAL AUTHORITIES,Investment,MEDWAY COUNCIL,28/01/2022,"£11,340.00",PUB,None,Grants
"Ministry of Housing, Communities and Local Government",Homes England,REV GRNTS TO LOCAL AUTHORITIES,Investment,MILTON KEYNES COUNCIL,31/01/2022,"£1,811.00",PUB,None,Grants
"Ministry of Housing, Communities and Local Government",Homes England,REV GRNTS TO LOCAL AUTHORITIES,Investment,MILTON KEYNES COUNCIL,31/01/2022,"£3,623.00",PUB,None,Grants
"Ministry of Housing, Communities and Local Government",Homes England,REV GRNTS TO LOCAL AUTHORITIES,Investment,MILTON KEYNES COUNCIL,31/01/2022,"£1,812.00",PUB,None,Grants
"Ministry of Housing, Communities and Local Government",Homes England,REV GRNTS TO LOCAL AUTHORITIES,Investment,MILTON KEYNES COUNCIL,31/01/2022,"£3,151.00",PUB,None,Grants
"Ministry of Housing, Communities and Local Government",Homes England,REV GRNTS TO LOCAL AUTHORITIES,Investment,MILTON KEYNES COUNCIL,31/01/2022,"£1,812.00",PUB,None,Grants
"Ministry of Housing, Communities and Local Government",Homes England,REV GRNTS TO LOCAL AUTHORITIES,Investment,MILTON KEYNES COUNCIL,31/01/2022,"£1,812.00",PUB,None,Grants
"Ministry of Housing, Communities and Local Government",Homes England,REV GRNTS TO LOCAL AUTHORITIES,Investment,MILTON KEYNES COUNCIL,31/01/2022,"£3,151.00",PUB,None,Grants
"Ministry of Housing, Communities and Local Government",Homes England,REV GRNTS TO LOCAL AUTHORITIES,Investment,MILTON KEYNES COUNCIL,31/01/2022,"£1,812.00",PUB,None,Grants
"Ministry of Housing, Communities and Local Government",Homes England,REV GRNTS TO LOCAL AUTHORITIES,Investment,MILTON KEYNES COUNCIL,31/01/2022,"£1,811.00",PUB,None,Grants
"Ministry of Housing, Communities and Local Government",Homes England,REV GRNTS TO LOCAL AUTHORITIES,Investment,MILTON KEYNES COUNCIL,31/01/2022,"£1,811.00",PUB,None,Grants
"Ministry of Housing, Communities and Local Government",Homes England,REV GRNTS TO LOCAL AUTHORITIES,Investment,MILTON KEYNES COUNCIL,31/01/2022,"£1,812.00",PUB,None,Grants
"Ministry of Housing, Communities and Local Government",Homes England,REV GRNTS TO LOCAL AUTHORITIES,Investment,MILTON KEYNES COUNCIL,31/01/2022,"£1,812.00",PUB,None,Grants
"Ministry of Housing, Communities and Local Government",Homes England,REV GRNTS TO LOCAL AUTHORITIES,Investment,MILTON KEYNES COUNCIL,31/01/2022,"£1,811.00",PUB,None,Grants
"Ministry of Housing, Communities and Local Government",Homes England,REV GRNTS TO LOCAL AUTHORITIES,Investment,MILTON KEYNES COUNCIL,31/01/2022,"£1,812.00",PUB,None,Grants
"Ministry of Housing, Communities and Local Government",Homes England,REV GRNTS TO LOCAL AUTHORITIES,Investment,MILTON KEYNES COUNCIL,31/01/2022,"£1,812.00",PUB,None,Grants
"Ministry of Housing, Communities and Local Government",Homes England,REV GRNTS TO LOCAL AUTHORITIES,Investment,MILTON KEYNES COUNCIL,31/01/2022,"£1,811.00",PUB,None,Grants
"Ministry of Housing, Communities and Local Government",Homes England,REV GRNTS TO LOCAL AUTHORITIES,Investment,MILTON KEYNES COUNCIL,31/01/2022,"£1,812.00",PUB,None,Grants
"Ministry of Housing, Communities and Local Government",Homes England,REV GRNTS TO LOCAL AUTHORITIES,Investment,MILTON KEYNES COUNCIL,31/01/2022,"£3,151.00",PUB,None,Grants
"Ministry of Housing, Communities and Local Government",Homes England,REV GRNTS TO LOCAL AUTHORITIES,Investment,MILTON KEYNES COUNCIL,31/01/2022,"£1,811.00",PUB,None,Grants
"Ministry of Housing, Communities and Local Government",Homes England,REV GRNTS TO LOCAL AUTHORITIES,Investment,MILTON KEYNES COUNCIL,31/01/2022,"£1,812.00",PUB,None,Grants
"Ministry of Housing, Communities and Local Government",Homes England,REV GRNTS TO LOCAL AUTHORITIES,Investment,MILTON KEYNES COUNCIL,31/01/2022,"£1,811.00",PUB,None,Grants
"Ministry of Housing, Communities and Local Government",Homes England,REV GRNTS TO LOCAL AUTHORITIES,Investment,MILTON KEYNES COUNCIL,31/01/2022,"£1,812.00",PUB,None,Grants
"Ministry of Housing, Communities and Local Government",Homes England,REV GRNTS TO LOCAL AUTHORITIES,Investment,MILTON KEYNES COUNCIL,31/01/2022,"£1,812.00",PUB,None,Grants
"Ministry of Housing, Communities and Local Government",Homes England,REV GRNTS TO LOCAL AUTHORITIES,Investment,MILTON KEYNES COUNCIL,31/01/2022,"£1,811.00",PUB,None,Grants
"Ministry of Housing, Communities and Local Government",Homes England,REV GRNTS TO LOCAL AUTHORITIES,Investment,MILTON KEYNES COUNCIL,31/01/2022,"£1,812.00",PUB,None,Grants
"Ministry of Housing, Communities and Local Government",Homes England,REV GRNTS TO LOCAL AUTHORITIES,Investment,MILTON KEYNES COUNCIL,31/01/2022,"£1,811.00",PUB,None,Grants
"Ministry of Housing, Communities and Local Government",Homes England,REV GRNTS TO LOCAL AUTHORITIES,Investment,MILTON KEYNES COUNCIL,31/01/2022,"£1,812.00",PUB,None,Grants
"Ministry of Housing, Communities and Local Government",Homes England,REV GRNTS TO LOCAL AUTHORITIES,Investment,MILTON KEYNES COUNCIL,31/01/2022,"£3,151.00",PUB,None,Grants
"Ministry of Housing, Communities and Local Government",Homes England,REV GRNTS TO LOCAL AUTHORITIES,Investment,MILTON KEYNES COUNCIL,31/01/2022,"£1,812.00",PUB,None,Grants
"Ministry of Housing, Communities and Local Government",Homes England,CAP GRNTS TO LOCAL AUTHORITIES,Investment,DOVER DISTRICT COUNCIL,28/01/2022,"£72,720.60",PUB,None,Grants
"Ministry of Housing, Communities and Local Government",Homes England,CAP GRNTS TO LOCAL AUTHORITIES,Investment,DOVER DISTRICT COUNCIL,28/01/2022,"£81,395.05",PUB,None,Grants
"Ministry of Housing, Communities and Local Government",Homes England,CAP GRNTS TO LOCAL AUTHORITIES,Investment,DOVER DISTRICT COUNCIL,28/01/2022,"£1,004,646.29",PUB,None,Grants
"Ministry of Housing, Communities and Local Government",Homes England,SERVICE CHARGES,Development,COVENTRY CITY COUNCIL,12/01/2022,"£34,115.33",PUB,80131500,Lease and rental of property or building
"Ministry of Housing, Communities and Local Government",Homes England,ESTATE GENERAL MAINTENANCE,Development,R D LANDSCAPES LTD,26/01/2022,£564.00,SMA,72101500,Building maintenance and repair services
"Ministry of Housing, Communities and Local Government",Homes England,ESTATE GENERAL MAINTENANCE,Development,R D LANDSCAPES LTD,26/01/2022,"£5,256.00",SMA,72101500,Building maintenance and repair services
"Ministry of Housing, Communities and Local Government",Homes England,BUILDINGS-FIRE PREVENTION,Development,MK FIRE LIMITED,27/01/2022,£355.26,MED,92121700,Security systems services
"Ministry of Housing, Communities and Local Government",Homes England,PRINTING & STATIONERY,Development,SG WORLD LTD,13/01/2022,"£1,777.80",MED,44121600,Desk supplies
"Ministry of Housing, Communities and Local Government",Homes England,ESTATE GENERAL MAINTENANCE,Development,SIMON TRANTER LANDSCAPE CONTRACTORS,24/01/2022,"£7,320.00",SMA,72101500,Building maintenance and repair services
"Ministry of Housing, Communities and Local Government",Homes England,PENSION SCHEME CONTRIBUTIONS,Corporate Allocations,LPFA,18/01/2022,£402.13,SMA,84131700,Pension funds
"Ministry of Housing, Communities and Local Government",Homes England,CAP GRNTS TO LOCAL AUTHORITIES,Investment,COLCHESTER BOROUGH COUNCIL,27/01/2022,"£225,000.00",PUB,None,Grants
"Ministry of Housing, Communities and Local Government",Homes England,ESTATE GENERAL MAINTENANCE,Development,IDVERDE LIMITED,17/01/2022,"£1,047.34",LAR,72101500,Building maintenance and repair services
"Ministry of Housing, Communities and Local Government",Homes England,ESTATE GENERAL MAINTENANCE,Development,IDVERDE LIMITED,27/01/2022,£505.64,LAR,72101500,Building maintenance and repair services
"Ministry of Housing, Communities and Local Government",Homes England,ESTATE GENERAL MAINTENANCE,Development,IDVERDE LIMITED,27/01/2022,£505.64,LAR,72101500,Building maintenance and repair services
"Ministry of Housing, Communities and Local Government",Homes England,LEGAL FEES (PROGRAMME - CDEL),"Markets, Partners & Places",ENVIRONMENT AGENCY,26/01/2022,£510.00,PUB,80121600,Business law services
"Ministry of Housing, Communities and Local Government",Homes England,ESTATE GENERAL MAINTENANCE,Development,LOWTHER FORESTRY GROUP,06/01/2022,"£3,780.00",SMA,72101500,Building maintenance and repair services
"Ministry of Housing, Communities and Local Government",Homes England,ESTATE GENERAL MAINTENANCE,Development,LOWTHER FORESTRY GROUP,06/01/2022,"£1,590.00",SMA,72101500,Building maintenance and repair services
"Ministry of Housing, Communities and Local Government",Homes England,FENCE MAINTENANCE,Development,LOWTHER FORESTRY GROUP,10/01/2022,"£11,671.74",SMA,72102900,Facility maintenance and repair services
"Ministry of Housing, Communities and Local Government",Homes England,SIGNS & NOTICEBOARDS,"Markets, Partners & Places",LOWTHER FORESTRY GROUP,14/01/2022,£592.80,SMA,55121700,Signage
"Ministry of Housing, Communities and Local Government",Homes England,ESTATE GENERAL MAINTENANCE,Development,LOWTHER FORESTRY GROUP,17/01/2022,"£5,310.00",SMA,72101500,Building maintenance and repair services
"Ministry of Housing, Communities and Local Government",Homes England,ESTATE GENERAL MAINTENANCE,Development,LOWTHER FORESTRY GROUP,21/01/2022,"£5,029.90",SMA,72101500,Building maintenance and repair services
"Ministry of Housing, Communities and Local Government",Homes England,REV GRNTS TO LOCAL AUTHORITIES,Investment,STEVENGE BOROUGH COUNCIL,28/01/2022,"£412,300.00",PUB,None,Grants
"Ministry of Housing, Communities and Local Government",Homes England,REV GRNTS TO LOCAL AUTHORITIES,Investment,DOVER DISTRICT COUNCIL,21/01/2022,"£1,377.00",PUB,None,Grants
"Ministry of Housing, Communities and Local Government",Homes England,REV GRNTS TO LOCAL AUTHORITIES,Investment,DOVER DISTRICT COUNCIL,21/01/2022,"£1,377.00",PUB,None,Grants
"Ministry of Housing, Communities and Local Government",Homes England,REV GRNTS TO LOCAL AUTHORITIES,Investment,DOVER DISTRICT COUNCIL,21/01/2022,"£1,377.00",PUB,None,Grants
"Ministry of Housing, Communities and Local Government",Homes England,REV GRNTS TO LOCAL AUTHORITIES,Investment,FOLKESTONE & HYTHE DISTRICT COUNCIL,27/01/2022,"£6,823.00",PUB,None,Grants
"Ministry of Housing, Communities and Local Government",Homes England,REV GRNTS TO LOCAL AUTHORITIES,Investment,FOLKESTONE & HYTHE DISTRICT COUNCIL,27/01/2022,"£6,823.00",PUB,None,Grants
"Ministry of Housing, Communities and Local Government",Homes England,REV GRNTS TO LOCAL AUTHORITIES,Investment,FOLKESTONE & HYTHE DISTRICT COUNCIL,27/01/2022,"£6,823.00",PUB,None,Grants
"Ministry of Housing, Communities and Local Government",Homes England,CAP GRNTS TO LOCAL AUTHORITIES,Investment,WEST LANCASHIRE BOROUGH COUNCIL,26/01/2022,"£113,750.00",PUB,None,Grants
"Ministry of Housing, Communities and Local Government",Homes England,TAXATION ADVICE  & PENALTIES,Corporate Resources,RSM UK AUDIT LLP,26/01/2022,"£5,700.00",LAR,84111800,Taxation issues and preparation
"Ministry of Housing, Communities and Local Government",Homes England,ESTATE GENERAL MAINTENANCE,Development,GROUND CONTROL LIMITED,13/01/2022,"£1,118.64",LAR,72101500,Building maintenance and repair services
"Ministry of Housing, Communities and Local Government",Homes England,ESTATE GENERAL MAINTENANCE,Development,GROUND CONTROL LIMITED,13/01/2022,£847.44,LAR,72101500,Building maintenance and repair services
"Ministry of Housing, Communities and Local Government",Homes England,ESTATE GENERAL MAINTENANCE,Development,GROUND CONTROL LIMITED,18/01/2022,£501.59,LAR,72101500,Building maintenance and repair services
"Ministry of Housing, Communities and Local Government",Homes England,ESTATE GENERAL MAINTENANCE,Development,GROUND CONTROL LIMITED,21/01/2022,"£1,118.64",LAR,72101500,Building maintenance and repair services
"Ministry of Housing, Communities and Local Government",Homes England,ESTATE GENERAL MAINTENANCE,Development,GROUND CONTROL LIMITED,26/01/2022,£847.44,LAR,72101500,Building maintenance and repair services
"Ministry of Housing, Communities and Local Government",Homes England,CAP GRNTS TO LOCAL AUTHORITIES,Investment,CHESHIRE WEST & CHESTER COUNCIL,19/01/2022,"£665,557.53",PUB,None,Grants
"Ministry of Housing, Communities and Local Government",Homes England,CAP GRNTS TO LOCAL AUTHORITIES,Investment,NORTH EAST LINCOLNSHIRE COUNCIL,31/01/2022,"£264,150.44",PUB,None,Grants
"Ministry of Housing, Communities and Local Government",Homes England,CAP GRNTS TO LOCAL AUTHORITIES,Investment,SUNDERLAND CITY COUNCIL,28/01/2022,"£973,998.70",PUB,None,Grants
"Ministry of Housing, Communities and Local Government",Homes England,CAP GRNTS TO LOCAL AUTHORITIES,Investment,CUMBRIA COUNTY COUNCIL,28/01/2022,"£2,568,807.10",PUB,None,Grants
"Ministry of Housing, Communities and Local Government",Homes England,REV GRNTS TO LOCAL AUTHORITIES,Investment,MEDWAY COUNCIL,26/01/2022,"£39,277.53",PUB,None,Grants
"Ministry of Housing, Communities and Local Government",Homes England,CAP GRNTS TO LOCAL AUTHORITIES,Investment,MEDWAY COUNCIL,26/01/2022,"£332,575.69",PUB,None,Grants
"Ministry of Housing, Communities and Local Government",Homes England,CAP GRNTS TO LOCAL AUTHORITIES,Investment,SOUTHAMPTON CITY COUNCIL,27/01/2022,"£92,983.57",PUB,None,Grants
"Ministry of Housing, Communities and Local Government",Homes England,CAP GRNTS TO LOCAL AUTHORITIES,Investment,DEVON COUNTY COUNCIL,26/01/2022,"£546,613.45",PUB,None,Grants
"Ministry of Housing, Communities and Local Government",Homes England,REV GRNTS TO LOCAL AUTHORITIES,Investment,DEVON COUNTY COUNCIL,28/01/2022,"£21,414.11",PUB,None,Grants
"Ministry of Housing, Communities and Local Government",Homes England,CAP GRNTS TO LOCAL AUTHORITIES,Investment,ESSEX COUNTY COUNCIL,27/01/2022,"£534,045.06",PUB,None,Grants
"Ministry of Housing, Communities and Local Government",Homes England,REV GRNTS TO LOCAL AUTHORITIES,Investment,HAMPSHIRE COUNTY COUNCIL,14/01/2022,"£295,491.33",PUB,None,Grants
"Ministry of Housing, Communities and Local Government",Homes England,REV GRNTS TO LOCAL AUTHORITIES,Investment,CHELMSFORD CITY COUNCIL,24/01/2022,"£32,544.98",PUB,None,Grants
"Ministry of Housing, Communities and Local Government",Homes England,CAP GRNTS TO LOCAL AUTHORITIES,Investment,CAMBRIDGE CITY COUNCIL,28/01/2022,"£974,909.71",PUB,None,Grants
"Ministry of Housing, Communities and Local Government",Homes England,CAP GRNTS TO LOCAL AUTHORITIES,Investment,BABERGH DISTRICT COUNCIL,20/01/2022,"£157,500.00",PUB,None,Grants
"Ministry of Housing, Communities and Local Government",Homes England,CAPITAL GRANTS TO RPs,Investment,FIRST CHOICE HOMES OLDHAM LIMITED,26/01/2022,"£9,000.00",LAR,None,Grants
"Ministry of Housing, Communities and Local Government",Homes England,CAPITAL GRANTS TO RPs,Investment,FIRST CHOICE HOMES OLDHAM LIMITED,26/01/2022,"£9,000.00",LAR,None,Grants
"Ministry of Housing, Communities and Local Government",Homes England,CAPITAL GRANTS TO RPs,Investment,FIRST CHOICE HOMES OLDHAM LIMITED,26/01/2022,"£9,000.00",LAR,None,Grants
"Ministry of Housing, Communities and Local Government",Homes England,CAPITAL GRANTS TO RPs,Investment,GLOUCESTER CITY HOMES,31/01/2022,"£10,000.00",MED,None,Grants
"Ministry of Housing, Communities and Local Government",Homes England,REVENUE GRANTS TO RPs,Investment,YMCA DOWNSLINK GROUP,27/01/2022,"£2,450.00",LAR,None,Grants
"Ministry of Housing, Communities and Local Government",Homes England,REVENUE GRANTS TO RPs,Investment,YMCA DOWNSLINK GROUP,27/01/2022,£700.00,LAR,None,Grants
"Ministry of Housing, Communities and Local Government",Homes England,REVENUE GRANTS TO RPs,Investment,YMCA DOWNSLINK GROUP,27/01/2022,£350.00,LAR,None,Grants
"Ministry of Housing, Communities and Local Government",Homes England,REVENUE GRANTS TO RPs,Investment,YMCA DOWNSLINK GROUP,27/01/2022,£787.00,LAR,None,Grants
"Ministry of Housing, Communities and Local Government",Homes England,REVENUE GRANTS TO RPs,Investment,YMCA DOWNSLINK GROUP,27/01/2022,"£1,400.00",LAR,None,Grants
"Ministry of Housing, Communities and Local Government",Homes England,CAPITAL GRANTS TO RPs,Investment,KEELMAN HOMES,18/01/2022,"£26,250.00",LAR,None,Grants
"Ministry of Housing, Communities and Local Government",Homes England,CAPITAL GRANTS TO RPs,Investment,REGENDA LIMITED,18/01/2022,"£9,000.00",LAR,None,Grants
"Ministry of Housing, Communities and Local Government",Homes England,CAPITAL GRANTS TO RPs,Investment,REGENDA LIMITED,18/01/2022,"£9,000.00",LAR,None,Grants
"Ministry of Housing, Communities and Local Government",Homes England,REV GRNTS TO LOCAL AUTHORITIES,Investment,ACTION HOUSING AND SUPPORT,21/01/2022,"£23,234.00",MED,None,Grants
"Ministry of Housing, Communities and Local Government",Homes England,REV GRNTS TO LOCAL AUTHORITIES,Investment,ACTION HOUSING AND SUPPORT,24/01/2022,"£25,815.00",MED,None,Grants
"Ministry of Housing, Communities and Local Government",Homes England,CAPITAL GRANTS TO RPs,Investment,BRIDGE-IT HOUSING UK TEAM LTD,25/01/2022,"£57,619.00",SMA,None,Grants
"Ministry of Housing, Communities and Local Government",Homes England,CAPITAL GRANTS TO RPs,Investment,BRIDGE-IT HOUSING UK TEAM LTD,26/01/2022,"£50,417.00",SMA,None,Grants
"Ministry of Housing, Communities and Local Government",Homes England,CAPITAL GRANTS TO RPs,Investment,BRIDGE-IT HOUSING UK TEAM LTD,28/01/2022,"£8,662.00",SMA,None,Grants
"Ministry of Housing, Communities and Local Government",Homes England,CAPITAL GRANTS TO RPs,Investment,J & M RESIDENTIAL LETTINGS LIMITED,26/01/2022,"£14,400.00",SMA,None,Grants
"Ministry of Housing, Communities and Local Government",Homes England,CAPITAL GRANTS TO RPs,Investment,J & M RESIDENTIAL LETTINGS LIMITED,28/01/2022,"£12,600.00",SMA,None,Grants
"Ministry of Housing, Communities and Local Government",Homes England,CAPITAL GRANTS TO RPs,Investment,DEVON AND CORNWALL HOUSING LIMITED,26/01/2022,"£28,000.00",LAR,None,Grants
"Ministry of Housing, Communities and Local Government",Homes England,CAPITAL GRANTS TO RPs,Investment,DEVON AND CORNWALL HOUSING LIMITED,31/01/2022,"£63,000.00",LAR,None,Grants
"Ministry of Housing, Communities and Local Government",Homes England,CAPITAL GRANTS TO RPs,Investment,DEVON AND CORNWALL HOUSING LIMITED,31/01/2022,"£33,880.00",LAR,None,Grants
"Ministry of Housing, Communities and Local Government",Homes England,CAPITAL GRANTS TO RPs,Investment,KARBON HOMES,20/01/2022,"£17,500.00",LAR,None,Grants
"Ministry of Housing, Communities and Local Government",Homes England,CAPITAL GRANTS TO RPs,Investment,KARBON HOMES,20/01/2022,"£87,500.00",LAR,None,Grants
"Ministry of Housing, Communities and Local Government",Homes England,CAPITAL GRANTS TO RPs,Investment,VIVID HOUSING LTD,18/01/2022,"£16,000.00",LAR,None,Grants
"Ministry of Housing, Communities and Local Government",Homes England,CAPITAL GRANTS TO RPs,Investment,VIVID HOUSING LTD,18/01/2022,"£11,000.00",LAR,None,Grants
"Ministry of Housing, Communities and Local Government",Homes England,CAPITAL GRANTS TO RPs,Investment,BERNICIA GROUP,25/01/2022,"£9,000.00",LAR,None,Grants
"Ministry of Housing, Communities and Local Government",Homes England,CAPITAL GRANTS TO RPs,Investment,BERNICIA GROUP,26/01/2022,"£9,000.00",LAR,None,Grants
"Ministry of Housing, Communities and Local Government",Homes England,REV GRNTS TO LOCAL AUTHORITIES,Investment,P3 HOUSING LTD,13/01/2022,"£18,251.00",LAR,None,Grants
"Ministry of Housing, Communities and Local Government",Homes England,REV GRNTS TO LOCAL AUTHORITIES,Investment,P3 HOUSING LTD,13/01/2022,"£15,799.00",LAR,None,Grants
"Ministry of Housing, Communities and Local Government",Homes England,REV GRNTS TO LOCAL AUTHORITIES,Investment,P3 HOUSING LTD,13/01/2022,"£1,761.00",LAR,None,Grants
"Ministry of Housing, Communities and Local Government",Homes England,REV GRNTS TO LOCAL AUTHORITIES,Investment,P3 HOUSING LTD,14/01/2022,"£1,580.00",LAR,None,Grants
"Ministry of Housing, Communities and Local Government",Homes England,REV GRNTS TO LOCAL AUTHORITIES,Investment,P3 HOUSING LTD,14/01/2022,"£1,825.00",LAR,None,Grants
"Ministry of Housing, Communities and Local Government",Homes England,REV GRNTS TO LOCAL AUTHORITIES,Investment,P3 HOUSING LTD,21/01/2022,"£18,304.00",LAR,None,Grants
"Ministry of Housing, Communities and Local Government",Homes England,CAPITAL GRANTS TO RPs,Investment,TORUS62 LIMITED,17/01/2022,"£9,000.00",LAR,None,Grants
"Ministry of Housing, Communities and Local Government",Homes England,CAPITAL GRANTS TO RPs,Investment,TORUS62 LIMITED,17/01/2022,"£9,000.00",LAR,None,Grants
"Ministry of Housing, Communities and Local Government",Homes England,CAPITAL GRANTS TO RPs,Investment,TORUS62 LIMITED,17/01/2022,"£9,000.00",LAR,None,Grants
"Ministry of Housing, Communities and Local Government",Homes England,REV GRNTS TO LOCAL AUTHORITIES,Investment,BCP COUNCIL,14/01/2022,"£40,034.00",PUB,None,Grants
"Ministry of Housing, Communities and Local Government",Homes England,REV GRNTS TO LOCAL AUTHORITIES,Investment,BCP COUNCIL,14/01/2022,"£36,875.00",PUB,None,Grants
"Ministry of Housing, Communities and Local Government",Homes England,REV GRNTS TO LOCAL AUTHORITIES,Investment,SUNDERLAND CITY COUNCIL,20/01/2022,"£5,072.00",PUB,None,Grants
"Ministry of Housing, Communities and Local Government",Homes England,REV GRNTS TO LOCAL AUTHORITIES,Investment,SUNDERLAND CITY COUNCIL,20/01/2022,£893.00,PUB,None,Grants
"Ministry of Housing, Communities and Local Government",Homes England,REV GRNTS TO LOCAL AUTHORITIES,Investment,SUNDERLAND CITY COUNCIL,20/01/2022,£893.00,PUB,None,Grants
"Ministry of Housing, Communities and Local Government",Homes England,REV GRNTS TO LOCAL AUTHORITIES,Investment,SUNDERLAND CITY COUNCIL,24/01/2022,£893.00,PUB,None,Grants
"Ministry of Housing, Communities and Local Government",Homes England,REV GRNTS TO LOCAL AUTHORITIES,Investment,SUNDERLAND CITY COUNCIL,24/01/2022,£893.00,PUB,None,Grants
"Ministry of Housing, Communities and Local Government",Homes England,CAP GRNTS TO LOCAL AUTHORITIES,Investment,SUNDERLAND CITY COUNCIL,27/01/2022,"£240,000.00",PUB,None,Grants
"Ministry of Housing, Communities and Local Government",Homes England,CAP GRNTS TO LOCAL AUTHORITIES,Investment,SUNDERLAND CITY COUNCIL,28/01/2022,"£12,000.00",PUB,None,Grants
"Ministry of Housing, Communities and Local Government",Homes England,CAP GRNTS TO LOCAL AUTHORITIES,Investment,SUNDERLAND CITY COUNCIL,28/01/2022,"£12,000.00",PUB,None,Grants
"Ministry of Housing, Communities and Local Government",Homes England,CAP GRNTS TO LOCAL AUTHORITIES,Investment,SUNDERLAND CITY COUNCIL,28/01/2022,"£12,000.00",PUB,None,Grants
"Ministry of Housing, Communities and Local Government",Homes England,CAP GRNTS TO LOCAL AUTHORITIES,Investment,SUNDERLAND CITY COUNCIL,28/01/2022,"£12,000.00",PUB,None,Grants
"Ministry of Housing, Communities and Local Government",Homes England,CAP GRNTS TO LOCAL AUTHORITIES,Investment,SUNDERLAND CITY COUNCIL,28/01/2022,"£12,000.00",PUB,None,Grants
"Ministry of Housing, Communities and Local Government",Homes England,CAP GRNTS TO LOCAL AUTHORITIES,Investment,SUNDERLAND CITY COUNCIL,28/01/2022,"£12,000.00",PUB,None,Grants
"Ministry of Housing, Communities and Local Government",Homes England,CAP GRNTS TO LOCAL AUTHORITIES,Investment,SUNDERLAND CITY COUNCIL,28/01/2022,"£12,000.00",PUB,None,Grants
"Ministry of Housing, Communities and Local Government",Homes England,CAP GRNTS TO LOCAL AUTHORITIES,Investment,SUNDERLAND CITY COUNCIL,28/01/2022,"£12,000.00",PUB,None,Grants
"Ministry of Housing, Communities and Local Government",Homes England,CAP GRNTS TO LOCAL AUTHORITIES,Investment,SUNDERLAND CITY COUNCIL,28/01/2022,"£12,000.00",PUB,None,Grants
"Ministry of Housing, Communities and Local Government",Homes England,CAP GRNTS TO LOCAL AUTHORITIES,Investment,SUNDERLAND CITY COUNCIL,28/01/2022,"£12,000.00",PUB,None,Grants
"Ministry of Housing, Communities and Local Government",Homes England,CAP GRNTS TO LOCAL AUTHORITIES,Investment,SUNDERLAND CITY COUNCIL,31/01/2022,"£10,500.00",PUB,None,Grants
"Ministry of Housing, Communities and Local Government",Homes England,CAP GRNTS TO LOCAL AUTHORITIES,Investment,SUNDERLAND CITY COUNCIL,31/01/2022,"£12,000.00",PUB,None,Grants
"Ministry of Housing, Communities and Local Government",Homes England,CAP GRNTS TO LOCAL AUTHORITIES,Investment,SUNDERLAND CITY COUNCIL,31/01/2022,"£10,500.00",PUB,None,Grants
"Ministry of Housing, Communities and Local Government",Homes England,CAP GRNTS TO LOCAL AUTHORITIES,Investment,SUNDERLAND CITY COUNCIL,31/01/2022,"£10,500.00",PUB,None,Grants
"Ministry of Housing, Communities and Local Government",Homes England,CAP GRNTS TO LOCAL AUTHORITIES,Investment,SUNDERLAND CITY COUNCIL,31/01/2022,"£10,500.00",PUB,None,Grants
"Ministry of Housing, Communities and Local Government",Homes England,CAP GRNTS TO LOCAL AUTHORITIES,Investment,SUNDERLAND CITY COUNCIL,31/01/2022,"£10,500.00",PUB,None,Grants
"Ministry of Housing, Communities and Local Government",Homes England,CAP GRNTS TO LOCAL AUTHORITIES,Investment,SUNDERLAND CITY COUNCIL,31/01/2022,"£10,500.00",PUB,None,Grants
"Ministry of Housing, Communities and Local Government",Homes England,CAP GRNTS TO LOCAL AUTHORITIES,Investment,SUNDERLAND CITY COUNCIL,31/01/2022,"£10,500.00",PUB,None,Grants
"Ministry of Housing, Communities and Local Government",Homes England,CAP GRNTS TO LOCAL AUTHORITIES,Investment,SUNDERLAND CITY COUNCIL,31/01/2022,"£10,500.00",PUB,None,Grants
"Ministry of Housing, Communities and Local Government",Homes England,CAP GRNTS TO LOCAL AUTHORITIES,Investment,SUNDERLAND CITY COUNCIL,31/01/2022,"£10,500.00",PUB,None,Grants
"Ministry of Housing, Communities and Local Government",Homes England,CAP GRNTS TO LOCAL AUTHORITIES,Investment,SUNDERLAND CITY COUNCIL,31/01/2022,"£10,500.00",PUB,None,Grants
"Ministry of Housing, Communities and Local Government",Homes England,REV GRNTS TO LOCAL AUTHORITIES,Investment,DORSET COUNCIL,21/01/2022,"£27,000.00",PUB,None,Grants
"Ministry of Housing, Communities and Local Government",Homes England,REV GRNTS TO LOCAL AUTHORITIES,Investment,DORSET COUNCIL,21/01/2022,"£27,000.00",PUB,None,Grants
"Ministry of Housing, Communities and Local Government",Homes England,REV GRNTS TO LOCAL AUTHORITIES,Investment,DORSET COUNCIL,28/01/2022,"£30,000.00",PUB,None,Grants
"Ministry of Housing, Communities and Local Government",Homes England,REV GRNTS TO LOCAL AUTHORITIES,Investment,DORSET COUNCIL,28/01/2022,"£30,000.00",PUB,None,Grants
"Ministry of Housing, Communities and Local Government",Homes England,CAPITAL GRANTS TO RPs,Investment,LUMEN HOUSING LIMITED,27/01/2022,"£5,500.00",SMA,None,Grants
"Ministry of Housing, Communities and Local Government",Homes England,CAPITAL GRANTS TO RPs,Investment,LUMEN HOUSING LIMITED,27/01/2022,"£5,750.00",SMA,None,Grants
"Ministry of Housing, Communities and Local Government",Homes England,ECONOMIC CONSULTANCY PANEL,Development,AMION CONSULTING LTD,11/01/2022,"£2,640.00",SMA,80131800,Real estate management services
"Ministry of Housing, Communities and Local Government",Homes England,ECONOMIC CONSULTANCY PANEL,Development,AMION CONSULTING LTD,11/01/2022,"£1,800.00",SMA,80131800,Real estate management services
"Ministry of Housing, Communities and Local Government",Homes England,SECONDED STAFF COSTS,Sras,MHCLG,31/01/2022,"£29,866.57",PUB,80101500,Business and corporate management consultation services 
"Ministry of Housing, Communities and Local Government",Homes England,RESERVOIRS REPAIR & MAINT,Development,ATKINS LTD,17/01/2022,"£4,524.00",LAR,83101500,Water and sewer utilities
"Ministry of Housing, Communities and Local Government",Homes England,ST FUND LOANS ADDITIONS,Investment,ANCHOR HOMES (NORTH WEST) LTD,27/01/2022,"£158,464.14",MIC,None,Loans
"Ministry of Housing, Communities and Local Government",Homes England,ENGINEERING FEES,Development,WESTERN POWER DISTRIBUTION,06/01/2022,"£72,699.52",LAR,81101500,Civil Engineering
"Ministry of Housing, Communities and Local Government",Homes England,CAR LEASING - HIRE CHARGES,"Markets, Partners & Places",LEASEPLAN UK LIMITED,19/01/2022,£283.42,LAR,25101500,Passenger motor vehicles
"Ministry of Housing, Communities and Local Government",Homes England,FENCE MAINTENANCE,"Markets, Partners & Places",ALEX WARD ELECTRICAL CONTRACTORS LTD,17/01/2022,"£4,527.60",MIC,72102900,Facility maintenance and repair services
"Ministry of Housing, Communities and Local Government",Homes England,CAR LEASING - HIRE CHARGES,Investment,ALPHABET (GB) LTD,07/01/2022,£302.24,LAR,25101500,Passenger motor vehicles
"Ministry of Housing, Communities and Local Government",Homes England,CAR LEASING - HIRE CHARGES,Development,ALPHABET (GB) LTD,07/01/2022,£265.80,LAR,25101500,Passenger motor vehicles
"Ministry of Housing, Communities and Local Government",Homes England,CAR LEASING - HIRE CHARGES,Development,ALPHABET (GB) LTD,07/01/2022,£349.12,LAR,25101500,Passenger motor vehicles
"Ministry of Housing, Communities and Local Government",Homes England,MISC PROFESSIONAL FEES,Corporate Resources,APS INTELLIGENCE LTD,24/01/2022,"£5,100.00",SMA,86101800,In service training and manpower development
"Ministry of Housing, Communities and Local Government",Homes England,MANAGEMENT COSTS,Development,AEWC LIMITED,17/01/2022,"£3,810.72",SMA,80131800,Real estate management services
"Ministry of Housing, Communities and Local Government",Homes England,MISC PROFESSIONAL FEES,Development,ELIZABETH AINGE,05/01/2022,£250.00,SMA,81112200,Software Maintenance and Support
"Ministry of Housing, Communities and Local Government",Homes England,STREET LIGHTING,Development,ALTITUDE SERVICES,21/01/2022,"£4,824.00",MED,83101800,Electric utilities
"Ministry of Housing, Communities and Local Government",Homes England,ST FUND LOANS ADDITIONS,Investment,AUDLEY GROUP DEVELOPMENTS 1 LTD,27/01/2022,"£2,297,936.00",MIC,None,Loans
"Ministry of Housing, Communities and Local Government",Homes England,LANDSCAPE MAINT-BUILT ESTATE,Development,ALBEN LANDSCAPES LIMITED,21/01/2022,"£1,459.25",SMA,72102900,Facility maintenance and repair services
"Ministry of Housing, Communities and Local Government",Homes England,LANDSCAPE MAINT-BUILT ESTATE,Development,ALBEN LANDSCAPES LIMITED,21/01/2022,"£1,442.38",SMA,72102900,Facility maintenance and repair services
"Ministry of Housing, Communities and Local Government",Homes England,AGENCY STAFF,Corporate Resources,ALLEN LANE LIMITED,05/01/2022,"£3,225.76",SMA,80111600,Temporary personnel services
"Ministry of Housing, Communities and Local Government",Homes England,AGENCY STAFF,Corporate Resources,ALLEN LANE LIMITED,05/01/2022,"£4,290.00",SMA,80111600,Temporary personnel services
"Ministry of Housing, Communities and Local Government",Homes England,AGENCY STAFF,Corporate Resources,ALLEN LANE LIMITED,05/01/2022,"£3,630.00",SMA,80111600,Temporary personnel services
"Ministry of Housing, Communities and Local Government",Homes England,AGENCY STAFF,Corporate Resources,ALLEN LANE LIMITED,05/01/2022,"£3,795.00",SMA,80111600,Temporary personnel services
"Ministry of Housing, Communities and Local Government",Homes England,AGENCY STAFF,Corporate Resources,ALLEN LANE LIMITED,05/01/2022,"£3,630.00",SMA,80111600,Temporary personnel services
"Ministry of Housing, Communities and Local Government",Homes England,AGENCY STAFF,Corporate Resources,ALLEN LANE LIMITED,05/01/2022,"£4,657.50",SMA,80111600,Temporary personnel services
"Ministry of Housing, Communities and Local Government",Homes England,AGENCY STAFF,Corporate Resources,ALLEN LANE LIMITED,05/01/2022,"£7,590.00",SMA,80111600,Temporary personnel services
"Ministry of Housing, Communities and Local Government",Homes England,AGENCY STAFF,Corporate Resources,ALLEN LANE LIMITED,05/01/2022,"£3,795.00",SMA,80111600,Temporary personnel services
"Ministry of Housing, Communities and Local Government",Homes England,AGENCY STAFF,Corporate Resources,ALLEN LANE LIMITED,05/01/2022,"£3,630.00",SMA,80111600,Temporary personnel services
"Ministry of Housing, Communities and Local Government",Homes England,AGENCY STAFF,Corporate Resources,ALLEN LANE LIMITED,12/01/2022,£759.00,SMA,80111600,Temporary personnel services
"Ministry of Housing, Communities and Local Government",Homes England,AGENCY STAFF,Corporate Resources,ALLEN LANE LIMITED,12/01/2022,"£4,290.00",SMA,80111600,Temporary personnel services
"Ministry of Housing, Communities and Local Government",Homes England,AGENCY STAFF,Corporate Resources,ALLEN LANE LIMITED,12/01/2022,"£2,904.00",SMA,80111600,Temporary personnel services
"Ministry of Housing, Communities and Local Government",Homes England,AGENCY STAFF,Corporate Resources,ALLEN LANE LIMITED,12/01/2022,"£3,795.00",SMA,80111600,Temporary personnel services
"Ministry of Housing, Communities and Local Government",Homes England,AGENCY STAFF,Corporate Resources,ALLEN LANE LIMITED,12/01/2022,"£3,415.50",SMA,80111600,Temporary personnel services
"Ministry of Housing, Communities and Local Government",Homes England,AGENCY STAFF,Corporate Resources,ALLEN LANE LIMITED,17/01/2022,"£3,432.00",SMA,80111600,Temporary personnel services
"Ministry of Housing, Communities and Local Government",Homes England,AGENCY STAFF,Corporate Resources,ALLEN LANE LIMITED,17/01/2022,"£6,600.00",SMA,80111600,Temporary personnel services
"Ministry of Housing, Communities and Local Government",Homes England,AGENCY STAFF,Corporate Resources,ALLEN LANE LIMITED,17/01/2022,"£3,036.00",SMA,80111600,Temporary personnel services
"Ministry of Housing, Communities and Local Government",Homes England,AGENCY STAFF,Corporate Resources,ALLEN LANE LIMITED,17/01/2022,"£1,452.00",SMA,80111600,Temporary personnel services
"Ministry of Housing, Communities and Local Government",Homes England,AGENCY STAFF,Corporate Resources,ALLEN LANE LIMITED,17/01/2022,"£3,726.00",SMA,80111600,Temporary personnel services
"Ministry of Housing, Communities and Local Government",Homes England,AGENCY STAFF,Corporate Resources,ALLEN LANE LIMITED,17/01/2022,"£3,036.00",SMA,80111600,Temporary personnel services
"Ministry of Housing, Communities and Local Government",Homes England,AGENCY STAFF,Corporate Resources,ALLEN LANE LIMITED,17/01/2022,"£1,452.00",SMA,80111600,Temporary personnel services
"Ministry of Housing, Communities and Local Government",Homes England,AGENCY STAFF,Corporate Resources,ALLEN LANE LIMITED,17/01/2022,"£3,036.00",SMA,80111600,Temporary personnel services
"Ministry of Housing, Communities and Local Government",Homes England,AGENCY STAFF,Corporate Resources,ALLEN LANE LIMITED,21/01/2022,"£3,795.00",SMA,80111600,Temporary personnel services
"Ministry of Housing, Communities and Local Government",Homes England,AGENCY STAFF,Corporate Resources,ALLEN LANE LIMITED,21/01/2022,"£4,657.50",SMA,80111600,Temporary personnel services
"Ministry of Housing, Communities and Local Government",Homes England,AGENCY STAFF,Corporate Resources,ALLEN LANE LIMITED,21/01/2022,"£4,290.00",SMA,80111600,Temporary personnel services
"Ministry of Housing, Communities and Local Government",Homes England,AGENCY STAFF,Corporate Resources,ALLEN LANE LIMITED,21/01/2022,"£3,795.00",SMA,80111600,Temporary personnel services
"Ministry of Housing, Communities and Local Government",Homes England,AGENCY STAFF,Corporate Resources,ALLEN LANE LIMITED,21/01/2022,"£3,630.00",SMA,80111600,Temporary personnel services
"Ministry of Housing, Communities and Local Government",Homes England,AGENCY STAFF,Corporate Resources,ALLEN LANE LIMITED,21/01/2022,"£3,795.00",SMA,80111600,Temporary personnel services
"Ministry of Housing, Communities and Local Government",Homes England,AGENCY STAFF,Corporate Resources,ALLEN LANE LIMITED,21/01/2022,"£3,630.00",SMA,80111600,Temporary personnel services
"Ministry of Housing, Communities and Local Government",Homes England,ESTATE GENERAL MAINTENANCE,"Markets, Partners & Places",AIREDALE FORESTRY,04/01/2022,£535.88,SMA,72101500,Building maintenance and repair services
"Ministry of Housing, Communities and Local Government",Homes England,ESTATE GENERAL MAINTENANCE,Development,AIREDALE FORESTRY,04/01/2022,£278.22,SMA,72101500,Building maintenance and repair services
"Ministry of Housing, Communities and Local Government",Homes England,ESTATE GENERAL MAINTENANCE,"Markets, Partners & Places",AIREDALE FORESTRY,04/01/2022,£595.09,SMA,72101500,Building maintenance and repair services
"Ministry of Housing, Communities and Local Government",Homes England,ESTATE GENERAL MAINTENANCE,Development,AIREDALE FORESTRY,04/01/2022,"£1,555.20",SMA,72101500,Building maintenance and repair services
"Ministry of Housing, Communities and Local Government",Homes England,LANDSCAPE MAINT-BUILT ESTATE,Development,AIREDALE FORESTRY,05/01/2022,£438.97,SMA,72102900,Facility maintenance and repair services
"Ministry of Housing, Communities and Local Government",Homes England,ESTATE GENERAL MAINTENANCE,Development,AIREDALE FORESTRY,21/01/2022,£294.00,SMA,72101500,Building maintenance and repair services
"Ministry of Housing, Communities and Local Government",Homes England,ESTATE GENERAL MAINTENANCE,Development,AIREDALE FORESTRY,21/01/2022,"£1,350.00",SMA,72101500,Building maintenance and repair services
"Ministry of Housing, Communities and Local Government",Homes England,ESTATE GENERAL MAINTENANCE,Development,AIREDALE FORESTRY,21/01/2022,£300.00,SMA,72101500,Building maintenance and repair services
"Ministry of Housing, Communities and Local Government",Homes England,LANDSCAPE MAINT-BUILT ESTATE,Development,AIREDALE FORESTRY,31/01/2022,£438.97,SMA,72102900,Facility maintenance and repair services
"Ministry of Housing, Communities and Local Government",Homes England,CAR LEASING - HIRE CHARGES,Sras,ALD AUTOMOTIVE,11/01/2022,£260.96,LAR,25101500,Passenger motor vehicles
"Ministry of Housing, Communities and Local Government",Homes England,DISPOSAL FEES - LEGAL,"Markets, Partners & Places",ASHFORDS,11/01/2022,£720.00,LAR,80121600,Business law services
"Ministry of Housing, Communities and Local Government",Homes England,LEGAL FEES (PROGRAMME - RDEL),Investment,ASHFORDS,18/01/2022,£900.00,LAR,80121600,Business law services
"Ministry of Housing, Communities and Local Government",Homes England,DISPOSAL FEES - LEGAL,"Markets, Partners & Places",ASHFORDS,21/01/2022,"£3,120.00",LAR,80121600,Business law services
"Ministry of Housing, Communities and Local Government",Homes England,PROF FEES LOANS CAPITALISED,Investment,ASHFORDS,31/01/2022,"£1,906.80",LAR,80121600,Business law services
"Ministry of Housing, Communities and Local Government",Homes England,1ST PT COST/FEE INC UNINS LOSS,Development,ALLIANZ INSURANCE,27/01/2022,"£1,000.00",LAR,84131500,Insurance services for structures and property and possessions
"Ministry of Housing, Communities and Local Government",Homes England,MISC PROFESSIONAL FEES,Development,DESIGN MIDLANDS LIMITED,11/01/2022,"£6,000.00",SMA,80131800,Real estate management services
"Ministry of Housing, Communities and Local Government",Homes England,DISPOSAL FEES - PROPERTY AGENT,"Markets, Partners & Places",DESIGN MIDLANDS LIMITED,12/01/2022,"£5,940.00",SMA,80131600,Sale of property and building
"Ministry of Housing, Communities and Local Government",Homes England,BUILDINGS-WATER,"Markets, Partners & Places",ANGLIAN WATER,12/01/2022,£317.67,LAR,83101500,Water and sewer utilities
"Ministry of Housing, Communities and Local Government",Homes England,CAR LEASING - HIRE CHARGES,Development,ARNOLD CLARK FINANCE LIMITED,10/01/2022,£250.93,LAR,25101500,Passenger motor vehicles
"Ministry of Housing, Communities and Local Government",Homes England,CAR LEASING - HIRE CHARGES,Development,ARNOLD CLARK FINANCE LIMITED,10/01/2022,£279.44,LAR,25101500,Passenger motor vehicles
"Ministry of Housing, Communities and Local Government",Homes England,CAR LEASING - HIRE CHARGES,Development,ARNOLD CLARK FINANCE LIMITED,10/01/2022,£259.43,LAR,25101500,Passenger motor vehicles
"Ministry of Housing, Communities and Local Government",Homes England,CAR LEASING - HIRE CHARGES,Development,ARNOLD CLARK FINANCE LIMITED,10/01/2022,£274.82,LAR,25101500,Passenger motor vehicles
"Ministry of Housing, Communities and Local Government",Homes England,CAR LEASING - HIRE CHARGES,Development,ARNOLD CLARK FINANCE LIMITED,10/01/2022,£254.11,LAR,25101500,Passenger motor vehicles
"Ministry of Housing, Communities and Local Government",Homes England,CAR LEASING - HIRE CHARGES,"Markets, Partners & Places",ARNOLD CLARK FINANCE LIMITED,10/01/2022,£268.67,LAR,25101500,Passenger motor vehicles
"Ministry of Housing, Communities and Local Government",Homes England,CAR LEASING - HIRE CHARGES,"Markets, Partners & Places",ARNOLD CLARK FINANCE LIMITED,10/01/2022,£354.99,LAR,25101500,Passenger motor vehicles
"Ministry of Housing, Communities and Local Government",Homes England,CAR LEASING - HIRE CHARGES,Investment,ARNOLD CLARK FINANCE LIMITED,10/01/2022,£267.53,LAR,25101500,Passenger motor vehicles
"Ministry of Housing, Communities and Local Government",Homes England,CAR LEASING - HIRE CHARGES,"Markets, Partners & Places",ARNOLD CLARK FINANCE LIMITED,12/01/2022,£372.25,LAR,25101500,Passenger motor vehicles
"Ministry of Housing, Communities and Local Government",Homes England,CAR LEASING - HIRE CHARGES,Development,ARNOLD CLARK FINANCE LIMITED,12/01/2022,£342.70,LAR,25101500,Passenger motor vehicles
"Ministry of Housing, Communities and Local Government",Homes England,CAR LEASING - HIRE CHARGES,Development,ARNOLD CLARK FINANCE LIMITED,12/01/2022,£440.66,LAR,25101500,Passenger motor vehicles
"Ministry of Housing, Communities and Local Government",Homes England,CAR LEASING - HIRE CHARGES,"Markets, Partners & Places",ARNOLD CLARK FINANCE LIMITED,19/01/2022,"£1,413.00",LAR,25101500,Passenger motor vehicles
"Ministry of Housing, Communities and Local Government",Homes England,CAR LEASING - HIRE CHARGES,"Markets, Partners & Places",ARNOLD CLARK FINANCE LIMITED,19/01/2022,"£1,921.75",LAR,25101500,Passenger motor vehicles
"Ministry of Housing, Communities and Local Government",Homes England,PROF FEES LOANS CAPITALISED,Investment,BERWIN LEIGHTON PAISNER,07/01/2022,"£2,400.00",LAR,80121600,Business law services
"Ministry of Housing, Communities and Local Government",Homes England,LEGAL FEES (PROGRAMME - RDEL),Investment,BERWIN LEIGHTON PAISNER,10/01/2022,£594.00,LAR,80121600,Business law services
"Ministry of Housing, Communities and Local Government",Homes England,LEGAL FEES (PROGRAMME - RDEL),"Markets, Partners & Places",BERWIN LEIGHTON PAISNER,11/01/2022,£633.60,LAR,80121600,Business law services
"Ministry of Housing, Communities and Local Government",Homes England,LEGAL FEES (PROGRAMME - RDEL),Investment,BERWIN LEIGHTON PAISNER,17/01/2022,"£8,400.00",LAR,80121600,Business law services
"Ministry of Housing, Communities and Local Government",Homes England,LEGAL FEES (PROGRAMME - RDEL),Investment,BERWIN LEIGHTON PAISNER,17/01/2022,"£7,200.00",LAR,80121600,Business law services
"Ministry of Housing, Communities and Local Government",Homes England,LEGAL FEES (PROGRAMME - RDEL),Investment,BERWIN LEIGHTON PAISNER,17/01/2022,"£1,800.00",LAR,80121600,Business law services
"Ministry of Housing, Communities and Local Government",Homes England,LEGAL FEES (PROGRAMME - RDEL),Investment,BERWIN LEIGHTON PAISNER,17/01/2022,"£1,800.00",LAR,80121600,Business law services
"Ministry of Housing, Communities and Local Government",Homes England,DISPOSAL FEES - LEGAL,"Markets, Partners & Places",BERWIN LEIGHTON PAISNER,18/01/2022,"£3,449.04",LAR,80121600,Business law services
"Ministry of Housing, Communities and Local Government",Homes England,MISC PROFESSIONAL FEES,Development,BERWIN LEIGHTON PAISNER,24/01/2022,£681.60,LAR,80121600,Business law services
"Ministry of Housing, Communities and Local Government",Homes England,LEGAL FEES (PROGRAMME - RDEL),Investment,BERWIN LEIGHTON PAISNER,24/01/2022,"£3,000.00",LAR,80121600,Business law services
"Ministry of Housing, Communities and Local Government",Homes England,LEGAL FEES (PROGRAMME - RDEL),Development,BROWNE JACOBSON LLP,04/01/2022,"£1,386.00",LAR,80121600,Business law services
"Ministry of Housing, Communities and Local Government",Homes England,LEGAL FEES (PROGRAMME - CDEL),"Markets, Partners & Places",BROWNE JACOBSON LLP,04/01/2022,"£7,200.00",LAR,80121600,Business law services
"Ministry of Housing, Communities and Local Government",Homes England,DISPOSAL FEES - LEGAL,"Markets, Partners & Places",BROWNE JACOBSON LLP,04/01/2022,"£8,424.66",LAR,80121600,Business law services
"Ministry of Housing, Communities and Local Government",Homes England,DISPOSAL FEES - LEGAL,Development,BROWNE JACOBSON LLP,05/01/2022,"£5,450.40",LAR,80121600,Business law services
"Ministry of Housing, Communities and Local Government",Homes England,LEGAL FEES (PROGRAMME - RDEL),"Markets, Partners & Places",BROWNE JACOBSON LLP,07/01/2022,"£6,000.00",LAR,80121600,Business law services
"Ministry of Housing, Communities and Local Government",Homes England,LEGAL FEES (PROGRAMME - RDEL),"Markets, Partners & Places",BROWNE JACOBSON LLP,10/01/2022,"£6,000.00",LAR,80121600,Business law services
"Ministry of Housing, Communities and Local Government",Homes England,LEGAL FEES (PROGRAMME - CDEL),Development,BROWNE JACOBSON LLP,17/01/2022,"£1,584.60",LAR,80121600,Business law services
"Ministry of Housing, Communities and Local Government",Homes England,LEGAL FEES (PROGRAMME - CDEL),Development,BROWNE JACOBSON LLP,20/01/2022,£900.00,LAR,80121600,Business law services
"Ministry of Housing, Communities and Local Government",Homes England,LEGAL FEES (PROGRAMME - CDEL),Development,BROWNE JACOBSON LLP,20/01/2022,"£1,203.60",LAR,80121600,Business law services
"Ministry of Housing, Communities and Local Government",Homes England,LEGAL FEES (PROGRAMME - RDEL),Investment,BROWNE JACOBSON LLP,25/01/2022,£960.00,LAR,80121600,Business law services
"Ministry of Housing, Communities and Local Government",Homes England,LEGAL FEES (PROGRAMME - RDEL),Development,BROWNE JACOBSON LLP,28/01/2022,£315.00,LAR,80121600,Business law services
"Ministry of Housing, Communities and Local Government",Homes England,LEGAL FEES (PROGRAMME - RDEL),"Markets, Partners & Places",BROWNE JACOBSON LLP,31/01/2022,£600.00,LAR,80121600,Business law services
"Ministry of Housing, Communities and Local Government",Homes England,DISPOSAL FEES - LEGAL,Development,BROWNE JACOBSON LLP,31/01/2022,"£2,982.00",LAR,80121600,Business law services
"Ministry of Housing, Communities and Local Government",Homes England,RI - MONIITORING SURVEYOR FEES,Investment,BUILDING DESIGN PARTNERSHIP,11/01/2022,"£4,620.00",LAR,81101500,Civil Engineering
"Ministry of Housing, Communities and Local Government",Homes England,CAP GRNTS TO LOCAL AUTHORITIES,Investment,BUCKINGHAMSHIRE COUNTY COUNCIL,28/01/2022,"£2,411,759.73",PUB,None,Grants
"Ministry of Housing, Communities and Local Government",Homes England,ST FUND LOANS ADDITIONS,Investment,BROADFIELD HOMES LTD,05/01/2022,"£38,441.97",LAR,None,Loans
"Ministry of Housing, Communities and Local Government",Homes England,OTHER PROFESSIONAL FEES,"Markets, Partners & Places",STANTEC UK LIMITED,04/01/2022,"£15,032.24",LAR,80131800,Real estate management services
"Ministry of Housing, Communities and Local Government",Homes England,ENGINEERING CONSULTANTS,Development,STANTEC UK LIMITED,05/01/2022,"£4,740.00",LAR,81101500,Civil Engineering
"Ministry of Housing, Communities and Local Government",Homes England,OTHER PROFESSIONAL FEES,"Markets, Partners & Places",STANTEC UK LIMITED,17/01/2022,"£4,800.00",LAR,80131800,Real estate management services
"Ministry of Housing, Communities and Local Government",Homes England,PROJECT MANAGEMENT,"Markets, Partners & Places",STANTEC UK LIMITED,18/01/2022,"£11,040.00",LAR,80101600,Project management
"Ministry of Housing, Communities and Local Government",Homes England,AGENCY STAFF,Development,BADENOCH & CLARK,04/01/2022,"£2,097.00",LAR,80111600,Temporary personnel services
"Ministry of Housing, Communities and Local Government",Homes England,AGENCY STAFF,Development,BADENOCH & CLARK,04/01/2022,"£2,097.00",LAR,80111600,Temporary personnel services
"Ministry of Housing, Communities and Local Government",Homes England,AGENCY STAFF,Development,BADENOCH & CLARK,24/01/2022,"£1,677.60",LAR,80111600,Temporary personnel services
"Ministry of Housing, Communities and Local Government",Homes England,AGENCY STAFF,Development,BADENOCH & CLARK,28/01/2022,"£2,097.00",LAR,80111600,Temporary personnel services
"Ministry of Housing, Communities and Local Government",Homes England,AGENCY STAFF,Development,BADENOCH & CLARK,28/01/2022,"£2,097.00",LAR,80111600,Temporary personnel services
"Ministry of Housing, Communities and Local Government",Homes England,PROF FEES LOANS CAPITALISED,Investment,RIDER LEVETT BUCKNALL UK LTD,07/01/2022,"£3,729.60",LAR,81101500,Civil Engineering
"Ministry of Housing, Communities and Local Government",Homes England,PROF FEES LOANS CAPITALISED,Investment,RIDER LEVETT BUCKNALL UK LTD,07/01/2022,"£1,170.00",LAR,81101500,Civil Engineering
"Ministry of Housing, Communities and Local Government",Homes England,PROF FEES LOANS CAPITALISED,Investment,RIDER LEVETT BUCKNALL UK LTD,11/01/2022,"£2,880.00",LAR,81101500,Civil Engineering
"Ministry of Housing, Communities and Local Government",Homes England,HOME WORKERS,Cido,BRITISH TELECOMMUNICATIONS PLC,12/01/2022,"£1,148.40",LAR,83111500,Local and long distance telephone communications
"Ministry of Housing, Communities and Local Government",Homes England,HOME WORKERS,Cido,BRITISH TELECOMMUNICATIONS PLC,12/01/2022,£746.86,LAR,83111500,Local and long distance telephone communications
"Ministry of Housing, Communities and Local Government",Homes England,MOBILES,Cido,BRITISH TELECOMMUNICATIONS PLC,19/01/2022,£401.86,LAR,83111500,Local and long distance telephone communications
"Ministry of Housing, Communities and Local Government",Homes England,PRINTING & STATIONERY,Development,BANNER,04/01/2022,"£1,147.02",LAR,44121600,Desk supplies
"Ministry of Housing, Communities and Local Government",Homes England,BUILDINGS-ELECTRICITY,Development,BRITISH GAS BUSINESS,11/01/2022,£269.26,LAR,83101800,Electric utilities
"Ministry of Housing, Communities and Local Government",Homes England,BUILDINGS-GAS,"Markets, Partners & Places",BRITISH GAS BUSINESS,21/01/2022,£250.48,LAR,83101600,Oil and gas utilities
"Ministry of Housing, Communities and Local Government",Homes England,Contract Works,"Markets, Partners & Places",KNIGHTS BROWN CONSTRUCTION LIMITED,05/01/2022,"£14,349.35",LAR,72103300,Infrastructure maintenance and repair services
"Ministry of Housing, Communities and Local Government",Homes England,ST FUND LOANS ADDITIONS,Investment,BROTHER DEVELOPMENTS (WORSTHORNE) LTD,20/01/2022,"£85,155.49",SMA,None,Loans
"Ministry of Housing, Communities and Local Government",Homes England,CAP GRNTS TO LOCAL AUTHORITIES,Investment,BRISTOL CITY COUNCIL,24/01/2022,"£273,407.67",PUB,None,Grants
"Ministry of Housing, Communities and Local Government",Homes England,OTHER LTF LOAN ADDITIONS,Investment,BL CW Developments Limited,27/01/2022,"£1,556,507.45",SMA,None,Loans
"Ministry of Housing, Communities and Local Government",Homes England,ST FUND LOANS ADDITIONS,Investment,BRYNKINALT FARMING LTD,10/01/2022,"£182,552.00",LAR,None,Loans
"Ministry of Housing, Communities and Local Government",Homes England,ST FUND LOANS ADDITIONS,Investment,BRYNKINALT FARMING LTD,31/01/2022,"£135,650.00",LAR,None,Loans
"Ministry of Housing, Communities and Local Government",Homes England,MASTERPLANNING FEES,Development,BARTON WILLMORE,20/01/2022,"£5,940.00",LAR,81101500,Civil Engineering
"Ministry of Housing, Communities and Local Government",Homes England,OTHER PROFESSIONAL FEES,Development,BTS,10/01/2022,£637.49,MIC,80131800,Real estate management services
"Ministry of Housing, Communities and Local Government",Homes England,ESTATE GENERAL MAINTENANCE,Development,NJL BOXGREEN,28/01/2022,"£1,693.49",SMA,72101500,Building maintenance and repair services
"Ministry of Housing, Communities and Local Government",Homes England,ST FUND LOANS ADDITIONS,Investment,BROADLEAF NORWICH ROAD LIMITED,12/01/2022,"£81,773.70",LAR,None,Loans
"Ministry of Housing, Communities and Local Government",Homes England,ST FUND LOANS ADDITIONS,Investment,BERI PROPERTIES LIMITED,21/01/2022,"£20,052.30",SMA,None,Loans
"Ministry of Housing, Communities and Local Government",Homes England,MISC PROFESSIONAL FEES,Investment,BOSTON HALE LTD,13/01/2022,"£77,466.06",SMA,80111600,Temporary personnel services
"Ministry of Housing, Communities and Local Government",Homes England,ST FUND LOANS ADDITIONS,Investment,BELFIELD KINGSKERSWELL LLP,18/01/2022,"£141,000.00",SMA,None,Loans
"Ministry of Housing, Communities and Local Government",Homes England,ESTATE GENERAL MAINTENANCE,Development,BASILDON RUGBY FOOTBALL CLUB,24/01/2022,"£3,246.00",SMA,72101500,Building maintenance and repair services
"Ministry of Housing, Communities and Local Government",Homes England,RI - MONIITORING SURVEYOR FEES,Investment,BNP PARIBAS REAL ESTATE,05/01/2022,£840.00,LAR,81101500,Civil Engineering
"Ministry of Housing, Communities and Local Government",Homes England,RI - MONIITORING SURVEYOR FEES,Investment,BNP PARIBAS REAL ESTATE,05/01/2022,£840.00,LAR,81101500,Civil Engineering
"Ministry of Housing, Communities and Local Government",Homes England,RI - MONIITORING SURVEYOR FEES,Investment,BNP PARIBAS REAL ESTATE,05/01/2022,£840.00,LAR,81101500,Civil Engineering
"Ministry of Housing, Communities and Local Government",Homes England,RI - MONIITORING SURVEYOR FEES,Investment,BNP PARIBAS REAL ESTATE,05/01/2022,£840.00,LAR,81101500,Civil Engineering
"Ministry of Housing, Communities and Local Government",Homes England,RI - MONIITORING SURVEYOR FEES,Investment,BNP PARIBAS REAL ESTATE,05/01/2022,£840.00,LAR,81101500,Civil Engineering
"Ministry of Housing, Communities and Local Government",Homes England,RI - MONIITORING SURVEYOR FEES,Development,BNP PARIBAS REAL ESTATE,05/01/2022,£780.00,LAR,81101500,Civil Engineering
"Ministry of Housing, Communities and Local Government",Homes England,RI - MONIITORING SURVEYOR FEES,Investment,BNP PARIBAS REAL ESTATE,05/01/2022,£720.00,LAR,81101500,Civil Engineering
"Ministry of Housing, Communities and Local Government",Homes England,RI - MONIITORING SURVEYOR FEES,Investment,BNP PARIBAS REAL ESTATE,05/01/2022,£780.00,LAR,81101500,Civil Engineering
"Ministry of Housing, Communities and Local Government",Homes England,RI - MONIITORING SURVEYOR FEES,Investment,BNP PARIBAS REAL ESTATE,05/01/2022,£720.00,LAR,81101500,Civil Engineering
"Ministry of Housing, Communities and Local Government",Homes England,RI - MONIITORING SURVEYOR FEES,Investment,BNP PARIBAS REAL ESTATE,05/01/2022,£840.00,LAR,81101500,Civil Engineering
"Ministry of Housing, Communities and Local Government",Homes England,RI - MONIITORING SURVEYOR FEES,Investment,BNP PARIBAS REAL ESTATE,05/01/2022,"£1,020.00",LAR,81101500,Civil Engineering
"Ministry of Housing, Communities and Local Government",Homes England,RI - MONIITORING SURVEYOR FEES,Investment,BNP PARIBAS REAL ESTATE,05/01/2022,"£1,020.00",LAR,81101500,Civil Engineering
"Ministry of Housing, Communities and Local Government",Homes England,RI - MONIITORING SURVEYOR FEES,Investment,BNP PARIBAS REAL ESTATE,05/01/2022,£960.00,LAR,81101500,Civil Engineering
"Ministry of Housing, Communities and Local Government",Homes England,RI - MONIITORING SURVEYOR FEES,Investment,BNP PARIBAS REAL ESTATE,05/01/2022,"£1,020.00",LAR,81101500,Civil Engineering
"Ministry of Housing, Communities and Local Government",Homes England,RI - MONIITORING SURVEYOR FEES,Investment,BNP PARIBAS REAL ESTATE,05/01/2022,"£1,140.00",LAR,81101500,Civil Engineering
"Ministry of Housing, Communities and Local Government",Homes England,RI - MONIITORING SURVEYOR FEES,Investment,BNP PARIBAS REAL ESTATE,05/01/2022,"£1,140.00",LAR,81101500,Civil Engineering
"Ministry of Housing, Communities and Local Government",Homes England,RI - MONIITORING SURVEYOR FEES,Investment,BNP PARIBAS REAL ESTATE,05/01/2022,"£1,020.00",LAR,81101500,Civil Engineering
"Ministry of Housing, Communities and Local Government",Homes England,RI - MONIITORING SURVEYOR FEES,Investment,BNP PARIBAS REAL ESTATE,05/01/2022,"£2,220.00",LAR,81101500,Civil Engineering
"Ministry of Housing, Communities and Local Government",Homes England,RI - MONIITORING SURVEYOR FEES,Investment,BNP PARIBAS REAL ESTATE,05/01/2022,"£1,080.00",LAR,81101500,Civil Engineering
"Ministry of Housing, Communities and Local Government",Homes England,VALUATION FEES,"Markets, Partners & Places",BNP PARIBAS REAL ESTATE,05/01/2022,"£9,000.00",LAR,80131800,Real estate management services
"Ministry of Housing, Communities and Local Government",Homes England,RI - MONIITORING SURVEYOR FEES,Investment,BNP PARIBAS REAL ESTATE,07/01/2022,£840.00,LAR,81101500,Civil Engineering
"Ministry of Housing, Communities and Local Government",Homes England,RI - MONIITORING SURVEYOR FEES,Investment,BNP PARIBAS REAL ESTATE,07/01/2022,£840.00,LAR,81101500,Civil Engineering
"Ministry of Housing, Communities and Local Government",Homes England,RI - MONIITORING SURVEYOR FEES,Investment,BNP PARIBAS REAL ESTATE,07/01/2022,£840.00,LAR,81101500,Civil Engineering
"Ministry of Housing, Communities and Local Government",Homes England,RI - MONIITORING SURVEYOR FEES,Investment,BNP PARIBAS REAL ESTATE,07/01/2022,£840.00,LAR,81101500,Civil Engineering
"Ministry of Housing, Communities and Local Government",Homes England,RI - MONIITORING SURVEYOR FEES,Investment,BNP PARIBAS REAL ESTATE,07/01/2022,£780.00,LAR,81101500,Civil Engineering
"Ministry of Housing, Communities and Local Government",Homes England,RI - MONIITORING SURVEYOR FEES,Investment,BNP PARIBAS REAL ESTATE,07/01/2022,£840.00,LAR,81101500,Civil Engineering
"Ministry of Housing, Communities and Local Government",Homes England,RI - MONIITORING SURVEYOR FEES,Investment,BNP PARIBAS REAL ESTATE,07/01/2022,"£1,170.00",LAR,81101500,Civil Engineering
"Ministry of Housing, Communities and Local Government",Homes England,RI - MONIITORING SURVEYOR FEES,Investment,BNP PARIBAS REAL ESTATE,07/01/2022,"£1,080.00",LAR,81101500,Civil Engineering
"Ministry of Housing, Communities and Local Government",Homes England,RI - MONIITORING SURVEYOR FEES,Investment,BNP PARIBAS REAL ESTATE,10/01/2022,£840.00,LAR,81101500,Civil Engineering
"Ministry of Housing, Communities and Local Government",Homes England,RI - MONIITORING SURVEYOR FEES,Investment,BNP PARIBAS REAL ESTATE,14/01/2022,"£1,680.00",LAR,81101500,Civil Engineering
"Ministry of Housing, Communities and Local Government",Homes England,PROPERTY SERVICES,Development,BNP PARIBAS REAL ESTATE,26/01/2022,"£21,876.00",LAR,80131800,Real estate management services
"Ministry of Housing, Communities and Local Government",Homes England,RI - MONIITORING SURVEYOR FEES,Investment,BNP PARIBAS REAL ESTATE,27/01/2022,"£1,080.00",LAR,81101500,Civil Engineering
"Ministry of Housing, Communities and Local Government",Homes England,ESTATE GENERAL MAINTENANCE,Development,BROOKFIELD CONTRACTING & FARMING LTD,04/01/2022,"£3,846.36",SMA,72101500,Building maintenance and repair services
"Ministry of Housing, Communities and Local Government",Homes England,ESTATE GENERAL MAINTENANCE,Development,BROOKFIELD CONTRACTING & FARMING LTD,18/01/2022,"£3,840.00",SMA,72101500,Building maintenance and repair services
"Ministry of Housing, Communities and Local Government",Homes England,DISPOSAL FEES - LEGAL,"Markets, Partners & Places",BOND DICKINSON LLP,17/01/2022,"£6,600.00",LAR,80121600,Business law services
"Ministry of Housing, Communities and Local Government",Homes England,LEGAL FEES (PROGRAMME - RDEL),Investment,BOND DICKINSON LLP,21/01/2022,"£3,952.80",LAR,80121600,Business law services
"Ministry of Housing, Communities and Local Government",Homes England,DISPOSAL FEES - LEGAL,"Markets, Partners & Places",BOND DICKINSON LLP,24/01/2022,"£7,047.60",LAR,80121600,Business law services
"Ministry of Housing, Communities and Local Government",Homes England,DISPOSAL FEES - LEGAL,"Markets, Partners & Places",BOND DICKINSON LLP,31/01/2022,"£9,668.40",LAR,80121600,Business law services
"Ministry of Housing, Communities and Local Government",Homes England,CONTRACT WORKS,Development,BRITISH TELECOM - OPENREACH,12/01/2022,"£3,420.74",LAR,83101800,Electric utilities
"Ministry of Housing, Communities and Local Government",Homes England,MANAGEMENT COSTS,"Markets, Partners & Places",BERRYS,17/01/2022,£315.00,MED,80131800,Real estate management services
"Ministry of Housing, Communities and Local Government",Homes England,MANAGEMENT COSTS,"Markets, Partners & Places",BERRYS,17/01/2022,"£2,614.80",MED,80131800,Real estate management services
"Ministry of Housing, Communities and Local Government",Homes England,CAP GRNTS PUB SECTOR EXCL L A,Investment,SIX HILLS MANAGEMENT LTD,07/01/2022,"£1,809,765.00",MIC,None,Grants
"Ministry of Housing, Communities and Local Government",Homes England,CAP GRNTS TO PRIVATE SECTOR,Investment,CONCORDIA STREET MANAGEMENT COMPANY LIMITED,12/01/2022,"£421,578.00",MIC,None,Grants
"Ministry of Housing, Communities and Local Government",Homes England,CAP GRNTS TO PRIVATE SECTOR,Investment,SCANLANS PROPERTY MANAGEMENT LLP,06/01/2022,"£537,812.70",SMA,None,Grants
"Ministry of Housing, Communities and Local Government",Homes England,CAP GRNTS TO PRIVATE SECTOR,Investment,SCANLANS PROPERTY MANAGEMENT LLP,06/01/2022,"£537,812.70",SMA,None,Grants
"Ministry of Housing, Communities and Local Government",Homes England,CAP GRNTS TO PRIVATE SECTOR,Investment,LOVELL HOUSE FLAT MANAGEMENT COMPANY LTD,19/01/2022,"£331,173.00",MIC,None,Grants
"Ministry of Housing, Communities and Local Government",Homes England,ESTATE GENERAL MAINTENANCE,Development,CORNTHWAITE TREE CARE LIMITED,12/01/2022,£540.00,SMA,72101500,Building maintenance and repair services
"Ministry of Housing, Communities and Local Government",Homes England,ESTATE GENERAL MAINTENANCE,Development,CORNTHWAITE TREE CARE LIMITED,19/01/2022,"£1,140.00",SMA,72101500,Building maintenance and repair services
"Ministry of Housing, Communities and Local Government",Homes England,TRAINING COURSES & CONFERENCES,Investment,CHARTERED INSTITUTE OF PUBLIC RELATIONS,06/01/2022,£456.00,LAR,86101800,In service training and manpower development
"Ministry of Housing, Communities and Local Government",Homes England,OTHER PROFESSIONAL FEES,Development,CAMPBELL REITH,06/01/2022,"£19,325.54",MED,80131800,Real estate management services
"Ministry of Housing, Communities and Local Government",Homes England,PROF FEES LOANS CAPITALISED,Investment,CAMPBELL REITH,10/01/2022,"£2,760.00",MED,81101500,Civil Engineering
"Ministry of Housing, Communities and Local Government",Homes England,MASTERPLANNING FEES,"Markets, Partners & Places",CAMPBELL REITH,11/01/2022,"£59,004.86",MED,81101500,Civil Engineering
"Ministry of Housing, Communities and Local Government",Homes England,RI - MONIITORING SURVEYOR FEES,Investment,CAMPBELL REITH,13/01/2022,"£1,320.00",MED,81101500,Civil Engineering
"Ministry of Housing, Communities and Local Government",Homes England,ENGINEERING FEES,"Markets, Partners & Places",CAMPBELL REITH,14/01/2022,"£1,800.00",MED,81101500,Civil Engineering
"Ministry of Housing, Communities and Local Government",Homes England,ENGINEERING FEES,"Markets, Partners & Places",CAMPBELL REITH,14/01/2022,"£3,966.00",MED,81101500,Civil Engineering
"Ministry of Housing, Communities and Local Government",Homes England,MASTERPLANNING FEES,Development,CAMPBELL REITH,17/01/2022,"£10,760.40",MED,81101500,Civil Engineering
"Ministry of Housing, Communities and Local Government",Homes England,MASTERPLANNING FEES,Development,CAMPBELL REITH,17/01/2022,"£5,514.34",MED,81101500,Civil Engineering
"Ministry of Housing, Communities and Local Government",Homes England,MISC PROFESSIONAL FEES,Development,CAMPBELL REITH,17/01/2022,£600.00,MED,77101500,Environmental auditing
"Ministry of Housing, Communities and Local Government",Homes England,ENGINEERING FEES,"Markets, Partners & Places",CAMPBELL REITH,18/01/2022,"£1,800.00",MED,81101500,Civil Engineering
"Ministry of Housing, Communities and Local Government",Homes England,MISC PROFESSIONAL FEES,"Markets, Partners & Places",CAMPBELL REITH,20/01/2022,"£8,721.42",MED,80131800,Real estate management services
"Ministry of Housing, Communities and Local Government",Homes England,OTHER PROFESSIONAL FEES,Development,CAMPBELL REITH,20/01/2022,"£7,741.50",MED,80131800,Real estate management services
"Ministry of Housing, Communities and Local Government",Homes England,RI - MONIITORING SURVEYOR FEES,Investment,CAMPBELL REITH,20/01/2022,"£1,302.00",MED,81101500,Civil Engineering
"Ministry of Housing, Communities and Local Government",Homes England,RI - MONIITORING SURVEYOR FEES,Investment,CAMPBELL REITH,24/01/2022,"£1,320.00",MED,81101500,Civil Engineering
"Ministry of Housing, Communities and Local Government",Homes England,MASTERPLANNING FEES,Development,CAMPBELL REITH,24/01/2022,"£5,748.00",MED,81101500,Civil Engineering
"Ministry of Housing, Communities and Local Government",Homes England,ENGINEERING CONSULTANTS,Development,CAMPBELL REITH,26/01/2022,"£1,392.34",MED,81101500,Civil Engineering
"Ministry of Housing, Communities and Local Government",Homes England,ENGINEERING FEES,Development,CAMPBELL REITH,26/01/2022,"£1,488.00",MED,81101500,Civil Engineering
"Ministry of Housing, Communities and Local Government",Homes England,ENVIRONMENTAL ASSESMENT,Development,CAMPBELL REITH,27/01/2022,£720.00,MED,77101500,Environmental auditing
"Ministry of Housing, Communities and Local Government",Homes England,ENGINEERING CONSULTANTS,Development,CAMPBELL REITH,28/01/2022,"£1,549.41",MED,81101500,Civil Engineering
"Ministry of Housing, Communities and Local Government",Homes England,RI - MONIITORING SURVEYOR FEES,Investment,CAMPBELL REITH,28/01/2022,"£1,302.00",MED,81101500,Civil Engineering
"Ministry of Housing, Communities and Local Government",Homes England,MISC PROFESSIONAL FEES,"Markets, Partners & Places",CAMPBELL REITH,28/01/2022,"£9,787.20",MED,80131800,Real estate management services
"Ministry of Housing, Communities and Local Government",Homes England,OTHER PROFESSIONAL FEES,Development,CARTER JONAS,05/01/2022,"£3,600.00",LAR,80131800,Real estate management services
"Ministry of Housing, Communities and Local Government",Homes England,VALUATION FEES,Development,CARTER JONAS,07/01/2022,"£2,700.00",LAR,80131800,Real estate management services
"Ministry of Housing, Communities and Local Government",Homes England,MANAGEMENT COSTS,Development,CARTER JONAS,11/01/2022,"£14,933.34",LAR,80131800,Real estate management services
"Ministry of Housing, Communities and Local Government",Homes England,MANAGEMENT COSTS,Development,CARTER JONAS,11/01/2022,"£29,400.00",LAR,80131800,Real estate management services
"Ministry of Housing, Communities and Local Government",Homes England,MISC PROFESSIONAL FEES,Development,CARTER JONAS,17/01/2022,"£1,500.00",LAR,80131800,Real estate management services
"Ministry of Housing, Communities and Local Government",Homes England,OTHER PROFESSIONAL FEES,"Markets, Partners & Places",CARTER JONAS,21/01/2022,"£3,300.00",LAR,80131800,Real estate management services
"Ministry of Housing, Communities and Local Government",Homes England,MISC PROFESSIONAL FEES,Development,CARTER JONAS,27/01/2022,"£1,050.00",LAR,86101800,In service training and manpower development
"Ministry of Housing, Communities and Local Government",Homes England,BUILDINGS-GAS,Development,CORONA ENERGY,10/01/2022,£340.47,LAR,83101600,Oil and gas utilities
"Ministry of Housing, Communities and Local Government",Homes England,BUILDINGS-GAS,"Markets, Partners & Places",CORONA ENERGY,10/01/2022,£908.46,LAR,83101600,Oil and gas utilities
"Ministry of Housing, Communities and Local Government",Homes England,BUILDINGS-GAS,Development,CORONA ENERGY,17/01/2022,£309.04,LAR,83101600,Oil and gas utilities
"Ministry of Housing, Communities and Local Government",Homes England,GAS,Development,CORONA ENERGY,18/01/2022,"£1,409.02",LAR,83101600,Oil and gas utilities
"Ministry of Housing, Communities and Local Government",Homes England,GAS,Development,CORONA ENERGY,21/01/2022,£502.62,LAR,83101600,Oil and gas utilities
"Ministry of Housing, Communities and Local Government",Homes England,BUILDINGS-GAS,Development,CORONA ENERGY,31/01/2022,£327.19,LAR,83101600,Oil and gas utilities
"Ministry of Housing, Communities and Local Government",Homes England,ST FUND LOANS ADDITIONS,Investment,CREATE DEVELOPMENTS (LONGRIDGE) LTD,21/01/2022,"£347,565.00",LAR,None,Loans
"Ministry of Housing, Communities and Local Government",Homes England,DATA CENTRE,Cido,CROWN HOSTING DATA CENTRES LIMITED,06/01/2022,£717.97,SMA,81112000,Data Services
"Ministry of Housing, Communities and Local Government",Homes England,L&OD STRATEGIC - HR USE ONLY,Corporate Resources,CATH BROWN CONSULTANCY,25/01/2022,"£1,320.00",SMA,86101800,In service training and manpower development
"Ministry of Housing, Communities and Local Government",Homes England,ESTATE GENERAL MAINTENANCE,Development,CHAFFIN WORKS,10/01/2022,"£2,065.02",MED,72101500,Building maintenance and repair services
"Ministry of Housing, Communities and Local Government",Homes England,ST FUND LOANS ADDITIONS,Investment,C&M CONTRACTORS (MANCHESTER) LTD,07/01/2022,"£102,368.24",SMA,None,Loans
"Ministry of Housing, Communities and Local Government",Homes England,ST FUND LOANS ADDITIONS,Investment,C&M CONTRACTORS (MANCHESTER) LTD,27/01/2022,"£53,604.09",SMA,None,Loans
"Ministry of Housing, Communities and Local Government",Homes England,ST FUND LOANS ADDITIONS,Investment,COURT PROPERTY HOMES LIMITED,27/01/2022,"£241,463.07",MIC,None,Loans
"Ministry of Housing, Communities and Local Government",Homes England,RI - MONIITORING SURVEYOR FEES,Investment,COLLIERS INTERNATIONAL PROPERTY CONSULTANTS,04/01/2022,£810.00,LAR,81101500,Civil Engineering
"Ministry of Housing, Communities and Local Government",Homes England,RI - MONIITORING SURVEYOR FEES,Investment,COLLIERS INTERNATIONAL PROPERTY CONSULTANTS,12/01/2022,£810.00,LAR,81101500,Civil Engineering
"Ministry of Housing, Communities and Local Government",Homes England,RI - MONIITORING SURVEYOR FEES,Investment,COLLIERS INTERNATIONAL PROPERTY CONSULTANTS,12/01/2022,£810.00,LAR,81101500,Civil Engineering
"Ministry of Housing, Communities and Local Government",Homes England,RI - MONIITORING SURVEYOR FEES,Investment,COLLIERS INTERNATIONAL PROPERTY CONSULTANTS,24/01/2022,£840.00,LAR,81101500,Civil Engineering
"Ministry of Housing, Communities and Local Government",Homes England,RI - MONIITORING SURVEYOR FEES,Investment,COLLIERS INTERNATIONAL PROPERTY CONSULTANTS,24/01/2022,£810.00,LAR,81101500,Civil Engineering
"Ministry of Housing, Communities and Local Government",Homes England,RI - MONIITORING SURVEYOR FEES,Investment,COLLIERS INTERNATIONAL PROPERTY CONSULTANTS,31/01/2022,£840.00,LAR,81101500,Civil Engineering
"Ministry of Housing, Communities and Local Government",Homes England,LEGAL FEES (PROGRAMME - CDEL),Development,CLARKE WILLMOTT LLP,06/01/2022,£900.00,LAR,80121600,Business law services
"Ministry of Housing, Communities and Local Government",Homes England,DISPOSAL FEES - LEGAL,Development,CLARKE WILLMOTT LLP,06/01/2022,"£3,376.80",LAR,80121600,Business law services
"Ministry of Housing, Communities and Local Government",Homes England,LEGAL FEES (PROGRAMME - CDEL),Development,CLARKE WILLMOTT LLP,06/01/2022,"£1,041.60",LAR,80121600,Business law services
"Ministry of Housing, Communities and Local Government",Homes England,LEGAL FEES (PROGRAMME - CDEL),Development,CLARKE WILLMOTT LLP,10/01/2022,"£4,253.40",LAR,80121600,Business law services
"Ministry of Housing, Communities and Local Government",Homes England,DISPOSAL FEES - LEGAL,"Markets, Partners & Places",CLARKE WILLMOTT LLP,10/01/2022,"£1,986.60",LAR,80121600,Business law services
"Ministry of Housing, Communities and Local Government",Homes England,LEGAL FEES (PROGRAMME - RDEL),Investment,CLARKE WILLMOTT LLP,11/01/2022,£619.92,LAR,80121600,Business law services
"Ministry of Housing, Communities and Local Government",Homes England,PROF FEES LOANS CAPITALISED,Investment,CLARKE WILLMOTT LLP,21/01/2022,"£8,420.88",LAR,80121600,Business law services
"Ministry of Housing, Communities and Local Government",Homes England,CLEANING,Development,CHURCHILL CONTRACT SERVICES LTD,06/01/2022,"£3,669.21",SMA,76111500,General building and office cleaining and maintenance services
"Ministry of Housing, Communities and Local Government",Homes England,ST FUND LOANS ADDITIONS,Investment,CONNAH CONSTRUCTION LTD,21/01/2022,"£32,420.52",MIC,None,Loans
"Ministry of Housing, Communities and Local Government",Homes England,CAP GRNTS TO LOCAL AUTHORITIES,Investment,CENTRAL BEDFORDSHIRE COUNCIL,21/01/2022,"£142,712.00",PUB,None,Grants
"Ministry of Housing, Communities and Local Government",Homes England,MANAGEMENT COSTS,Development,C.M.A. (NEMESIS) LTD,18/01/2022,£342.00,SMA,80131800,Real estate management services
"Ministry of Housing, Communities and Local Government",Homes England,ESTATE GENERAL MAINTENANCE,Development,C.M.A. (NEMESIS) LTD,18/01/2022,£369.60,SMA,72101500,Building maintenance and repair services
"Ministry of Housing, Communities and Local Government",Homes England,BUILDINGS-ROOF,Development,C.M.A. (NEMESIS) LTD,26/01/2022,£390.00,SMA,72101500,Building maintenance and repair services
"Ministry of Housing, Communities and Local Government",Homes England,ESTATE GENERAL MAINTENANCE,"Markets, Partners & Places",FRANK COOPER & SON LIMITED,06/01/2022,£286.01,SMA,72101500,Building maintenance and repair services
"Ministry of Housing, Communities and Local Government",Homes England,MANAGEMENT COSTS,Development,FRANK COOPER & SON LIMITED,10/01/2022,£432.22,SMA,80131800,Real estate management services
"Ministry of Housing, Communities and Local Government",Homes England,ESTATE GENERAL MAINTENANCE,Development,FRANK COOPER & SON LIMITED,18/01/2022,£980.00,SMA,72101500,Building maintenance and repair services
"Ministry of Housing, Communities and Local Government",Homes England,MANAGEMENT COSTS,Development,FRANK COOPER & SON LIMITED,21/01/2022,£432.22,SMA,80131800,Real estate management services
"Ministry of Housing, Communities and Local Government",Homes England,ESTATE GENERAL MAINTENANCE,"Markets, Partners & Places",FRANK COOPER & SON LIMITED,21/01/2022,£286.01,SMA,72101500,Building maintenance and repair services
"Ministry of Housing, Communities and Local Government",Homes England,OTHER PROFESSIONAL FEES,Development,CWC GROUP,27/01/2022,"£249,008.81",MED,None,Contributions
"Ministry of Housing, Communities and Local Government",Homes England,STREET LIGHTING,Development,C-ELECT ASSOCIATES LIMITED,17/01/2022,£527.47,SMA,83101800,Electric utilities
"Ministry of Housing, Communities and Local Government",Homes England,MISC PROFESSIONAL FEES,Investment,CASTLE MEDIA LIMITED,17/01/2022,"£4,006.80",SMA,81112100,Internet Services
"Ministry of Housing, Communities and Local Government",Homes England,ST FUND LOANS ADDITIONS,Investment,CAPITAL & CENTRIC (ARCTIC) ltd,25/01/2022,"£431,722.50",SMA,None,Loans
"Ministry of Housing, Communities and Local Government",Homes England,TRAINING COURSES & CONFERENCES,Development,CAMBRIDGE SCIENCE AND POLICY CONSULTANTS,07/01/2022,£360.00,MIC,86101800,In service training and manpower development
"Ministry of Housing, Communities and Local Government",Homes England,L&OD STRATEGIC - HR USE ONLY,Corporate Resources,CODING POWERS LTD T/A ADVENTURES WITH AGILE,18/01/2022,"£1,320.00",MIC,86101800,In service training and manpower development
"Ministry of Housing, Communities and Local Government",Homes England,RI - MONIITORING SURVEYOR FEES,Investment,CB RICHARD ELLIS,18/01/2022,"£5,880.00",LAR,81101500,Civil Engineering
"Ministry of Housing, Communities and Local Government",Homes England,RI - MONIITORING SURVEYOR FEES,Investment,CB RICHARD ELLIS,19/01/2022,"£3,000.00",LAR,81101500,Civil Engineering
"Ministry of Housing, Communities and Local Government",Homes England,RI - MONIITORING SURVEYOR FEES,Investment,CB RICHARD ELLIS,19/01/2022,"£6,055.20",LAR,81101500,Civil Engineering
"Ministry of Housing, Communities and Local Government",Homes England,RI - SITE VALUATION FEES,Investment,CB RICHARD ELLIS,20/01/2022,"£15,000.00",LAR,80131800,Real estate management services
"Ministry of Housing, Communities and Local Government",Homes England,RI - SITE VALUATION FEES,Investment,CB RICHARD ELLIS,20/01/2022,"£11,700.00",LAR,80131800,Real estate management services
"Ministry of Housing, Communities and Local Government",Homes England,RI - SITE VALUATION FEES,Investment,CB RICHARD ELLIS,20/01/2022,"£12,000.00",LAR,80131800,Real estate management services
"Ministry of Housing, Communities and Local Government",Homes England,RI - SITE VALUATION FEES,Investment,CB RICHARD ELLIS,20/01/2022,"£11,700.00",LAR,80131800,Real estate management services
"Ministry of Housing, Communities and Local Government",Homes England,ST FUND LOANS ADDITIONS,Investment,CLEANSLATE (HURSTBOURNE PRIORS) LTD,26/01/2022,"£267,030.92",LAR,None,Loans
"Ministry of Housing, Communities and Local Government",Homes England,ESTATE GENERAL MAINTENANCE,Development,CGM GROUP LTD,06/01/2022,"£1,114.85",MED,72101500,Building maintenance and repair services
"Ministry of Housing, Communities and Local Government",Homes England,ESTATE GENERAL MAINTENANCE,Development,CGM GROUP LTD,06/01/2022,£883.85,MED,72101500,Building maintenance and repair services
"Ministry of Housing, Communities and Local Government",Homes England,ESTATE GENERAL MAINTENANCE,Development,CGM GROUP LTD,06/01/2022,"£1,455.60",MED,72101500,Building maintenance and repair services
"Ministry of Housing, Communities and Local Government",Homes England,ESTATE GENERAL MAINTENANCE,Development,CGM GROUP LTD,06/01/2022,£884.40,MED,72101500,Building maintenance and repair services
"Ministry of Housing, Communities and Local Government",Homes England,ESTATE GENERAL MAINTENANCE,Development,CGM GROUP LTD,06/01/2022,£960.86,MED,72101500,Building maintenance and repair services
"Ministry of Housing, Communities and Local Government",Homes England,ESTATE GENERAL MAINTENANCE,Development,CGM GROUP LTD,06/01/2022,"£1,176.00",MED,72101500,Building maintenance and repair services
"Ministry of Housing, Communities and Local Government",Homes England,ESTATE GENERAL MAINTENANCE,Development,CGM GROUP LTD,17/01/2022,£779.08,MED,72101500,Building maintenance and repair services
"Ministry of Housing, Communities and Local Government",Homes England,LT FUND LOANS (PS) ADDITIONS,Investment,CAMLAND HYTHE LIMITED,21/01/2022,"£471,681.53",LAR,None,Loans
"Ministry of Housing, Communities and Local Government",Homes England,MANAGEMENT COSTS,"Markets, Partners & Places",CRONNIE CREATIVE,05/01/2022,£420.00,MIC,80131800,Real estate management services
"Ministry of Housing, Communities and Local Government",Homes England,ESTATE GENERAL MAINTENANCE,"Markets, Partners & Places",CHANNEL ENGINEERING LTD,12/01/2022,£790.80,SMA,72101500,Building maintenance and repair services
"Ministry of Housing, Communities and Local Government",Homes England,ESTATE GENERAL MAINTENANCE,"Markets, Partners & Places",CHANNEL ENGINEERING LTD,12/01/2022,"£1,662.00",SMA,72101500,Building maintenance and repair services
"Ministry of Housing, Communities and Local Government",Homes England,EXTERNAL BUILDING MAINTENANCE,"Markets, Partners & Places",CHANNEL ENGINEERING LTD,19/01/2022,£306.00,SMA,72101500,Building maintenance and repair services
"Ministry of Housing, Communities and Local Government",Homes England,ROADS AND CAR PARKS,Development,CHANNEL ENGINEERING LTD,26/01/2022,£429.60,SMA,72101500,Building maintenance and repair services
"Ministry of Housing, Communities and Local Government",Homes England,REV GRNTS TO LOCAL AUTHORITIES,"Markets, Partners & Places",CHELMSFORD CITY COUNCIL,13/01/2022,"£15,426.00",PUB,None,Grants
"Ministry of Housing, Communities and Local Government",Homes England,ESTATE GENERAL MAINTENANCE,Development,CARTWRIGHT LANDSCAPES,06/01/2022,£895.13,SMA,72101500,Building maintenance and repair services
"Ministry of Housing, Communities and Local Government",Homes England,ESTATE GENERAL MAINTENANCE,Development,CARTWRIGHT LANDSCAPES,24/01/2022,£895.13,SMA,72101500,Building maintenance and repair services
"Ministry of Housing, Communities and Local Government",Homes England,ESTATE GENERAL MAINTENANCE,Development,CARTWRIGHT LANDSCAPES,24/01/2022,£660.00,SMA,72101500,Building maintenance and repair services
"Ministry of Housing, Communities and Local Government",Homes England,ESTATE GENERAL MAINTENANCE,Development,CARTWRIGHT LANDSCAPES,24/01/2022,"£2,925.60",SMA,72101500,Building maintenance and repair services
"Ministry of Housing, Communities and Local Government",Homes England,FURNITURE & EQUIPMENT-MAINT,Development,ENGIE FM LIMITED,26/01/2022,"£2,140.63",LAR,72102900,Facility maintenance and repair services
"Ministry of Housing, Communities and Local Government",Homes England,LEGAL FEES (PROGRAMME - RDEL),"Markets, Partners & Places",MILLS & REEVE,14/01/2022,£780.00,LAR,80121600,Business law services
"Ministry of Housing, Communities and Local Government",Homes England,LEGAL FEES (PROGRAMME - RDEL),Investment,MILLS & REEVE,17/01/2022,£834.00,LAR,80121600,Business law services
"Ministry of Housing, Communities and Local Government",Homes England,LEGAL FEES (PROGRAMME - RDEL),Investment,MILLS & REEVE,27/01/2022,"£28,463.27",LAR,80121600,Business law services
"Ministry of Housing, Communities and Local Government",Homes England,LEGAL FEES (PROGRAMME - RDEL),Investment,MILLS & REEVE,27/01/2022,"£1,200.00",LAR,80121600,Business law services
"Ministry of Housing, Communities and Local Government",Homes England,MISC PROFESSIONAL FEES,Development,TETRA TECH ENVIRONMENT PLANNING TRANSPORT LTD,06/01/2022,"£2,640.00",LAR,77101500,Environmental auditing
"Ministry of Housing, Communities and Local Government",Homes England,OTHER PROFESSIONAL FEES,"Markets, Partners & Places",TETRA TECH ENVIRONMENT PLANNING TRANSPORT LTD,13/01/2022,"£2,700.00",LAR,80131800,Real estate management services
"Ministry of Housing, Communities and Local Government",Homes England,HEALTH & SAFETY SURVEYS,Development,TETRA TECH ENVIRONMENT PLANNING TRANSPORT LTD,27/01/2022,"£1,146.00",LAR,72101500,Building maintenance and repair services
"Ministry of Housing, Communities and Local Government",Homes England,MISC PROFESSIONAL FEES,Cido,GROUP BUSINESS SOFTWARE (UK) LTD,19/01/2022,"£2,280.00",SMA,73231500,Business function specific software
"Ministry of Housing, Communities and Local Government",Homes England,DATA CENTRE,Cido,OASIS UK NORTH LIMITED,11/01/2022,£588.18,LAR,43222600,Network service equipment
"Ministry of Housing, Communities and Local Government",Homes England,PROPERTY SERVICES,"Markets, Partners & Places",DRIVERS JONAS DELOITTE,17/01/2022,"£95,846.40",LAR,80131800,Real estate management services
"Ministry of Housing, Communities and Local Government",Homes England,MISC PROFESSIONAL FEES,"Markets, Partners & Places",DRIVERS JONAS DELOITTE,21/01/2022,"£12,718.80",LAR,80111600,Temporary personnel services
"Ministry of Housing, Communities and Local Government",Homes England,MISC PROFESSIONAL FEES,"Markets, Partners & Places",DRIVERS JONAS DELOITTE,21/01/2022,"£10,716.00",LAR,80111600,Temporary personnel services
"Ministry of Housing, Communities and Local Government",Homes England,PROPERTY SERVICES,"Markets, Partners & Places",DRIVERS JONAS DELOITTE,21/01/2022,"£18,423.60",LAR,80131800,Real estate management services
"Ministry of Housing, Communities and Local Government",Homes England,RI - MONIITORING SURVEYOR FEES,Investment,CUSHMAN & WAKEFIELD DEBENHAM TIE LEUNG,05/01/2022,£900.00,LAR,81101500,Civil Engineering
"Ministry of Housing, Communities and Local Government",Homes England,PROF FEES LOANS CAPITALISED,Investment,CUSHMAN & WAKEFIELD DEBENHAM TIE LEUNG,05/01/2022,"£2,580.00",LAR,81101500,Civil Engineering
"Ministry of Housing, Communities and Local Government",Homes England,RI - MONIITORING SURVEYOR FEES,Investment,CUSHMAN & WAKEFIELD DEBENHAM TIE LEUNG,05/01/2022,£960.00,LAR,81101500,Civil Engineering
"Ministry of Housing, Communities and Local Government",Homes England,PROF FEES LOANS CAPITALISED,Investment,CUSHMAN & WAKEFIELD DEBENHAM TIE LEUNG,05/01/2022,"£1,200.00",LAR,81101500,Civil Engineering
"Ministry of Housing, Communities and Local Government",Homes England,RI - MONIITORING SURVEYOR FEES,Investment,CUSHMAN & WAKEFIELD DEBENHAM TIE LEUNG,05/01/2022,£840.00,LAR,81101500,Civil Engineering
"Ministry of Housing, Communities and Local Government",Homes England,RI - MONIITORING SURVEYOR FEES,Investment,CUSHMAN & WAKEFIELD DEBENHAM TIE LEUNG,05/01/2022,"£1,680.00",LAR,81101500,Civil Engineering
"Ministry of Housing, Communities and Local Government",Homes England,RI - MONIITORING SURVEYOR FEES,Investment,CUSHMAN & WAKEFIELD DEBENHAM TIE LEUNG,07/01/2022,"£1,680.00",LAR,81101500,Civil Engineering
"Ministry of Housing, Communities and Local Government",Homes England,RI - MONIITORING SURVEYOR FEES,Investment,CUSHMAN & WAKEFIELD DEBENHAM TIE LEUNG,07/01/2022,£900.00,LAR,81101500,Civil Engineering
"Ministry of Housing, Communities and Local Government",Homes England,RI - MONIITORING SURVEYOR FEES,Investment,CUSHMAN & WAKEFIELD DEBENHAM TIE LEUNG,07/01/2022,"£1,056.00",LAR,81101500,Civil Engineering
"Ministry of Housing, Communities and Local Government",Homes England,RI - MONIITORING SURVEYOR FEES,Investment,CUSHMAN & WAKEFIELD DEBENHAM TIE LEUNG,07/01/2022,"£1,020.00",LAR,81101500,Civil Engineering
"Ministry of Housing, Communities and Local Government",Homes England,RI - MONIITORING SURVEYOR FEES,Investment,CUSHMAN & WAKEFIELD DEBENHAM TIE LEUNG,07/01/2022,£870.00,LAR,81101500,Civil Engineering
"Ministry of Housing, Communities and Local Government",Homes England,PROF FEES LOANS CAPITALISED,Investment,CUSHMAN & WAKEFIELD DEBENHAM TIE LEUNG,07/01/2022,£900.00,LAR,81101500,Civil Engineering
"Ministry of Housing, Communities and Local Government",Homes England,ECONOMIC CONSULTANCY PANEL,Development,CUSHMAN & WAKEFIELD DEBENHAM TIE LEUNG,10/01/2022,"£2,415.00",LAR,80131800,Real estate management services
"Ministry of Housing, Communities and Local Government",Homes England,MISC PROFESSIONAL FEES,Development,CUSHMAN & WAKEFIELD DEBENHAM TIE LEUNG,10/01/2022,"£1,020.00",LAR,80131800,Real estate management services
"Ministry of Housing, Communities and Local Government",Homes England,PROPERTY SERVICES,"Markets, Partners & Places",CUSHMAN & WAKEFIELD DEBENHAM TIE LEUNG,10/01/2022,"£1,020.00",LAR,80131800,Real estate management services
"Ministry of Housing, Communities and Local Government",Homes England,RI - MONIITORING SURVEYOR FEES,Investment,CUSHMAN & WAKEFIELD DEBENHAM TIE LEUNG,11/01/2022,£840.00,LAR,81101500,Civil Engineering
"Ministry of Housing, Communities and Local Government",Homes England,RI - MONIITORING SURVEYOR FEES,Investment,CUSHMAN & WAKEFIELD DEBENHAM TIE LEUNG,13/01/2022,"£1,800.00",LAR,81101500,Civil Engineering
"Ministry of Housing, Communities and Local Government",Homes England,RI - MONIITORING SURVEYOR FEES,Investment,CUSHMAN & WAKEFIELD DEBENHAM TIE LEUNG,13/01/2022,£900.00,LAR,81101500,Civil Engineering
"Ministry of Housing, Communities and Local Government",Homes England,PROPERTY SERVICES,"Markets, Partners & Places",CUSHMAN & WAKEFIELD DEBENHAM TIE LEUNG,14/01/2022,"£1,680.00",LAR,80131800,Real estate management services
"Ministry of Housing, Communities and Local Government",Homes England,PROPERTY SERVICES,"Markets, Partners & Places",CUSHMAN & WAKEFIELD DEBENHAM TIE LEUNG,14/01/2022,"£2,850.00",LAR,80131800,Real estate management services
"Ministry of Housing, Communities and Local Government",Homes England,PROPERTY SERVICES,"Markets, Partners & Places",CUSHMAN & WAKEFIELD DEBENHAM TIE LEUNG,14/01/2022,"£1,680.00",LAR,80131800,Real estate management services
"Ministry of Housing, Communities and Local Government",Homes England,PROPERTY SERVICES,"Markets, Partners & Places",CUSHMAN & WAKEFIELD DEBENHAM TIE LEUNG,14/01/2022,"£2,850.00",LAR,80131800,Real estate management services
"Ministry of Housing, Communities and Local Government",Homes England,PROPERTY SERVICES,"Markets, Partners & Places",CUSHMAN & WAKEFIELD DEBENHAM TIE LEUNG,14/01/2022,"£1,680.00",LAR,80131800,Real estate management services
"Ministry of Housing, Communities and Local Government",Homes England,PROPERTY SERVICES,"Markets, Partners & Places",CUSHMAN & WAKEFIELD DEBENHAM TIE LEUNG,14/01/2022,"£2,850.00",LAR,80131800,Real estate management services
"Ministry of Housing, Communities and Local Government",Homes England,PROPERTY SERVICES,"Markets, Partners & Places",CUSHMAN & WAKEFIELD DEBENHAM TIE LEUNG,14/01/2022,"£1,680.00",LAR,80131800,Real estate management services
"Ministry of Housing, Communities and Local Government",Homes England,PROPERTY SERVICES,"Markets, Partners & Places",CUSHMAN & WAKEFIELD DEBENHAM TIE LEUNG,14/01/2022,"£2,850.00",LAR,80131800,Real estate management services
"Ministry of Housing, Communities and Local Government",Homes England,MISC PROFESSIONAL FEES,Investment,CUSHMAN & WAKEFIELD DEBENHAM TIE LEUNG,17/01/2022,"£7,902.00",LAR,80131800,Real estate management services
"Ministry of Housing, Communities and Local Government",Homes England,MISC PROFESSIONAL FEES,Investment,CUSHMAN & WAKEFIELD DEBENHAM TIE LEUNG,18/01/2022,"£6,625.32",LAR,80131800,Real estate management services
"Ministry of Housing, Communities and Local Government",Homes England,MISC PROFESSIONAL FEES,Development,CUSHMAN & WAKEFIELD DEBENHAM TIE LEUNG,24/01/2022,"£11,400.00",LAR,80131800,Real estate management services
"Ministry of Housing, Communities and Local Government",Homes England,PROPERTY SERVICES,Development,CUSHMAN & WAKEFIELD DEBENHAM TIE LEUNG,26/01/2022,"£2,025.00",LAR,80131800,Real estate management services
"Ministry of Housing, Communities and Local Government",Homes England,PROPERTY SERVICES,Development,CUSHMAN & WAKEFIELD DEBENHAM TIE LEUNG,26/01/2022,"£2,625.00",LAR,80131800,Real estate management services
"Ministry of Housing, Communities and Local Government",Homes England,PROPERTY SERVICES,"Markets, Partners & Places",CUSHMAN & WAKEFIELD DEBENHAM TIE LEUNG,26/01/2022,"£1,080.00",LAR,80131800,Real estate management services
"Ministry of Housing, Communities and Local Government",Homes England,PROPERTY SERVICES,"Markets, Partners & Places",CUSHMAN & WAKEFIELD DEBENHAM TIE LEUNG,26/01/2022,"£4,843.20",LAR,80131800,Real estate management services
"Ministry of Housing, Communities and Local Government",Homes England,LANDSCAPING & PLANTS,Development,DEEDMAN TROPICAL PLANT HIRE COMPANY,07/01/2022,£327.60,SMA,10161600,Floral plants
"Ministry of Housing, Communities and Local Government",Homes England,LANDSCAPING & PLANTS,Development,DEEDMAN TROPICAL PLANT HIRE COMPANY,10/01/2022,£449.28,SMA,10161600,Floral plants
"Ministry of Housing, Communities and Local Government",Homes England,SECONDED STAFF COSTS,Sras,DEPT FOR DIGITAL CULTURE MEDIA & SPORT,11/01/2022,"£31,941.47",PUB,80101500,Business and corporate management consultation services 
"Ministry of Housing, Communities and Local Government",Homes England,SUNDRIES,Development,DERBY CITY COUNCIL,17/01/2022,£930.00,PUB,80131500,Lease and rental of property or building
"Ministry of Housing, Communities and Local Government",Homes England,SUNDRIES,Development,DERBY CITY COUNCIL,17/01/2022,£435.00,PUB,80131500,Lease and rental of property or building
"Ministry of Housing, Communities and Local Government",Homes England,SUNDRIES,Development,DERBY CITY COUNCIL,17/01/2022,£975.00,PUB,80131500,Lease and rental of property or building
"Ministry of Housing, Communities and Local Government",Homes England,MISC PROFESSIONAL FEES,Development,DESIGNE LTD,28/01/2022,"£4,200.00",MIC,80131800,Real estate management services
"Ministry of Housing, Communities and Local Government",Homes England,TRAINING COURSES & CONFERENCES,Development,DNA COACH,13/01/2022,"£7,458.00",SMA,86101800,In service training and manpower development
"Ministry of Housing, Communities and Local Government",Homes England,TRAINING COURSES & CONFERENCES,Development,DNA COACH,13/01/2022,"£4,068.00",SMA,86101800,In service training and manpower development
"Ministry of Housing, Communities and Local Government",Homes England,TRAINING COURSES & CONFERENCES,Development,DNA COACH,19/01/2022,"£6,780.00",SMA,86101800,In service training and manpower development
"Ministry of Housing, Communities and Local Government",Homes England,TRAINING COURSES & CONFERENCES,Development,DNA COACH,19/01/2022,"£2,712.00",SMA,86101800,In service training and manpower development
"Ministry of Housing, Communities and Local Government",Homes England,DISPOSAL FEES - LEGAL,"Markets, Partners & Places",DWF LLP,11/01/2022,£795.60,LAR,80121600,Business law services
"Ministry of Housing, Communities and Local Government",Homes England,DISPOSAL FEES - LEGAL,"Markets, Partners & Places",DWF LLP,11/01/2022,£644.40,LAR,80121600,Business law services
"Ministry of Housing, Communities and Local Government",Homes England,LEGAL FEES (PROGRAMME - RDEL),Development,DWF LLP,11/01/2022,£430.80,LAR,80121600,Business law services
"Ministry of Housing, Communities and Local Government",Homes England,LEGAL FEES (PROGRAMME - RDEL),"Markets, Partners & Places",DWF LLP,13/01/2022,"£8,699.22",LAR,80121600,Business law services
"Ministry of Housing, Communities and Local Government",Homes England,LEGAL FEES (PROGRAMME - RDEL),Development,DWF LLP,28/01/2022,£568.80,LAR,80121600,Business law services
"Ministry of Housing, Communities and Local Government",Homes England,LEGAL FEES (PROGRAMME - RDEL),Development,DWF LLP,31/01/2022,£382.80,LAR,80121600,Business law services
"Ministry of Housing, Communities and Local Government",Homes England,ST FUND LOANS ADDITIONS,Investment,DURLEY ROAD DEVELOPMENTS LLP,11/01/2022,"£310,000.00",SMA,None,Loans
"Ministry of Housing, Communities and Local Government",Homes England,CAP GRNTS TO LOCAL AUTHORITIES,Investment,DERBY CITY COUNCIL,12/01/2022,"£200,000.00",PUB,None,Grants
"Ministry of Housing, Communities and Local Government",Homes England,NETWORKS,Cido,DAISY CORPORATE SERVICES TRADING LIMITED,10/01/2022,"£8,861.29",LAR,81112100,Internet Services
"Ministry of Housing, Communities and Local Government",Homes England,AGENCY STAFF,Development,DWF LAW LLP,04/01/2022,£600.00,LAR,80111600,Temporary personnel services
"Ministry of Housing, Communities and Local Government",Homes England,LEGAL FEES (PROGRAMME - RDEL),Development,DWF LAW LLP,04/01/2022,"£14,124.60",LAR,80121600,Business law services
"Ministry of Housing, Communities and Local Government",Homes England,DISPOSAL FEES - LEGAL,"Markets, Partners & Places",DWF LAW LLP,05/01/2022,"£1,088.40",LAR,80121600,Business law services
"Ministry of Housing, Communities and Local Government",Homes England,LEGAL FEES (PROGRAMME - RDEL),Development,DWF LAW LLP,06/01/2022,£600.00,LAR,80121600,Business law services
"Ministry of Housing, Communities and Local Government",Homes England,AGENCY STAFF,Cido,DWF LAW LLP,07/01/2022,£600.00,LAR,80111600,Temporary personnel services
"Ministry of Housing, Communities and Local Government",Homes England,AGENCY STAFF,Cido,DWF LAW LLP,07/01/2022,£600.00,LAR,80111600,Temporary personnel services
"Ministry of Housing, Communities and Local Government",Homes England,AGENCY STAFF,Cido,DWF LAW LLP,07/01/2022,£600.00,LAR,80111600,Temporary personnel services
"Ministry of Housing, Communities and Local Government",Homes England,AGENCY STAFF,Cido,DWF LAW LLP,07/01/2022,£600.00,LAR,80111600,Temporary personnel services
"Ministry of Housing, Communities and Local Government",Homes England,AGENCY STAFF,Cido,DWF LAW LLP,07/01/2022,£600.00,LAR,80111600,Temporary personnel services
"Ministry of Housing, Communities and Local Government",Homes England,AGENCY STAFF,Cido,DWF LAW LLP,07/01/2022,£600.00,LAR,80111600,Temporary personnel services
"Ministry of Housing, Communities and Local Government",Homes England,AGENCY STAFF,Cido,DWF LAW LLP,07/01/2022,£600.00,LAR,80111600,Temporary personnel services
"Ministry of Housing, Communities and Local Government",Homes England,AGENCY STAFF,Cido,DWF LAW LLP,07/01/2022,£420.00,LAR,80111600,Temporary personnel services
"Ministry of Housing, Communities and Local Government",Homes England,AGENCY STAFF,Cido,DWF LAW LLP,07/01/2022,£420.00,LAR,80111600,Temporary personnel services
"Ministry of Housing, Communities and Local Government",Homes England,LEGAL FEES (ADMIN ONLY),Cido,DWF LAW LLP,07/01/2022,£420.00,LAR,80121600,Business law services
"Ministry of Housing, Communities and Local Government",Homes England,LEGAL FEES (PROGRAMME - RDEL),Investment,DWF LAW LLP,07/01/2022,"£1,062.00",LAR,80121600,Business law services
"Ministry of Housing, Communities and Local Government",Homes England,AGENCY STAFF,Investment,DWF LAW LLP,10/01/2022,£600.00,LAR,80111600,Temporary personnel services
"Ministry of Housing, Communities and Local Government",Homes England,AGENCY STAFF,Investment,DWF LAW LLP,10/01/2022,£420.00,LAR,80111600,Temporary personnel services
"Ministry of Housing, Communities and Local Government",Homes England,DISPOSAL FEES - LEGAL,Development,DWF LAW LLP,10/01/2022,"£2,296.92",LAR,80121600,Business law services
"Ministry of Housing, Communities and Local Government",Homes England,LEGAL FEES (ADMIN ONLY),Cido,DWF LAW LLP,10/01/2022,£600.00,LAR,80121600,Business law services
"Ministry of Housing, Communities and Local Government",Homes England,AGENCY STAFF,Investment,DWF LAW LLP,10/01/2022,£600.00,LAR,80111600,Temporary personnel services
"Ministry of Housing, Communities and Local Government",Homes England,AGENCY STAFF,Investment,DWF LAW LLP,10/01/2022,£600.00,LAR,80111600,Temporary personnel services
"Ministry of Housing, Communities and Local Government",Homes England,LEGAL FEES (ADMIN ONLY),Corporate Resources,DWF LAW LLP,17/01/2022,£600.00,LAR,80121600,Business law services
"Ministry of Housing, Communities and Local Government",Homes England,DISPOSAL FEES - LEGAL,Development,DWF LAW LLP,21/01/2022,"£2,000.00",LAR,80121600,Business law services
"Ministry of Housing, Communities and Local Government",Homes England,LEGAL FEES (ADMIN ONLY),Corporate Resources,DWF LAW LLP,25/01/2022,£600.00,LAR,80121600,Business law services
"Ministry of Housing, Communities and Local Government",Homes England,AGENCY STAFF,Cido,DWF LAW LLP,25/01/2022,£420.00,LAR,80111600,Temporary personnel services
"Ministry of Housing, Communities and Local Government",Homes England,LEGAL FEES (ADMIN ONLY),Corporate Resources,DWF LAW LLP,25/01/2022,£600.00,LAR,80121600,Business law services
"Ministry of Housing, Communities and Local Government",Homes England,AGENCY STAFF,Cido,DWF LAW LLP,25/01/2022,£420.00,LAR,80111600,Temporary personnel services
"Ministry of Housing, Communities and Local Government",Homes England,LEGAL FEES (PROGRAMME - RDEL),"Markets, Partners & Places",DWF LAW LLP,25/01/2022,"£1,176.00",LAR,80121600,Business law services
"Ministry of Housing, Communities and Local Government",Homes England,LEGAL FEES (ADMIN ONLY),Cido,DWF LAW LLP,25/01/2022,£420.00,LAR,80121600,Business law services
"Ministry of Housing, Communities and Local Government",Homes England,LEGAL FEES (ADMIN ONLY),Cido,DWF LAW LLP,25/01/2022,£600.00,LAR,80121600,Business law services
"Ministry of Housing, Communities and Local Government",Homes England,AGENCY STAFF,Investment,DWF LAW LLP,25/01/2022,£420.00,LAR,80111600,Temporary personnel services
"Ministry of Housing, Communities and Local Government",Homes England,AGENCY STAFF,Investment,DWF LAW LLP,25/01/2022,£420.00,LAR,80111600,Temporary personnel services
"Ministry of Housing, Communities and Local Government",Homes England,LEGAL FEES (ADMIN ONLY),Cido,DWF LAW LLP,25/01/2022,£600.00,LAR,80121600,Business law services
"Ministry of Housing, Communities and Local Government",Homes England,AGENCY STAFF,Investment,DWF LAW LLP,25/01/2022,£420.00,LAR,80111600,Temporary personnel services
"Ministry of Housing, Communities and Local Government",Homes England,AGENCY STAFF,Investment,DWF LAW LLP,25/01/2022,£420.00,LAR,80111600,Temporary personnel services
"Ministry of Housing, Communities and Local Government",Homes England,LEGAL FEES (PROGRAMME - CDEL),Development,DWF LAW LLP,26/01/2022,"£2,000.00",LAR,80121600,Business law services
"Ministry of Housing, Communities and Local Government",Homes England,AGENCY STAFF,Investment,DWF LAW LLP,27/01/2022,£600.00,LAR,80111600,Temporary personnel services
"Ministry of Housing, Communities and Local Government",Homes England,LEGAL FEES (PROGRAMME - RDEL),"Markets, Partners & Places",DWF LAW LLP,28/01/2022,£963.60,LAR,80121600,Business law services
"Ministry of Housing, Communities and Local Government",Homes England,LAND REMEDIATION,Development,DUNTON ENVIRONMENTAL LTD,07/01/2022,"£76,145.09",SMA,72141500,Land preparation services
"Ministry of Housing, Communities and Local Government",Homes England,LAND REMEDIATION,Development,DUNTON ENVIRONMENTAL LTD,07/01/2022,"£163,535.02",SMA,72141500,Land preparation services
"Ministry of Housing, Communities and Local Government",Homes England,PACKAGE MAINTENANCE & SUBSCRIP,Cido,DB GROUP LTD T/A ESUASIVE,18/01/2022,"£5,940.00",SMA,43231500,Business function specific software
"Ministry of Housing, Communities and Local Government",Homes England,SUNDRIES,Development,WOOD ENVIRONMENT & INFRASTRUCTURE SOLUTIONS,06/01/2022,"£75,238.80",LAR,72103300,Infrastructure maintenance and repair services
"Ministry of Housing, Communities and Local Government",Homes England,PROPERTY SERVICES,"Markets, Partners & Places",WOOD ENVIRONMENT & INFRASTRUCTURE SOLUTIONS,07/01/2022,"£4,046.86",LAR,80131800,Real estate management services
"Ministry of Housing, Communities and Local Government",Homes England,PROPERTY SERVICES,"Markets, Partners & Places",WOOD ENVIRONMENT & INFRASTRUCTURE SOLUTIONS,07/01/2022,£643.93,LAR,80131800,Real estate management services
"Ministry of Housing, Communities and Local Government",Homes England,PROPERTY SERVICES,"Markets, Partners & Places",WOOD ENVIRONMENT & INFRASTRUCTURE SOLUTIONS,07/01/2022,"£1,893.94",LAR,80131800,Real estate management services
"Ministry of Housing, Communities and Local Government",Homes England,PROPERTY SERVICES,"Markets, Partners & Places",WOOD ENVIRONMENT & INFRASTRUCTURE SOLUTIONS,07/01/2022,"£5,517.23",LAR,80131800,Real estate management services
"Ministry of Housing, Communities and Local Government",Homes England,PROPERTY SERVICES,"Markets, Partners & Places",WOOD ENVIRONMENT & INFRASTRUCTURE SOLUTIONS,07/01/2022,£962.08,LAR,80131800,Real estate management services
"Ministry of Housing, Communities and Local Government",Homes England,PROPERTY SERVICES,"Markets, Partners & Places",WOOD ENVIRONMENT & INFRASTRUCTURE SOLUTIONS,07/01/2022,"£4,142.40",LAR,80131800,Real estate management services
"Ministry of Housing, Communities and Local Government",Homes England,PROPERTY SERVICES,"Markets, Partners & Places",WOOD ENVIRONMENT & INFRASTRUCTURE SOLUTIONS,07/01/2022,"£3,019.42",LAR,80131800,Real estate management services
"Ministry of Housing, Communities and Local Government",Homes England,ENGINEERING CONSULTANTS,Development,WOOD ENVIRONMENT & INFRASTRUCTURE SOLUTIONS,14/01/2022,"£3,300.00",LAR,81101500,Civil Engineering
"Ministry of Housing, Communities and Local Government",Homes England,DEVELOPMENT MANAGEMENT,Development,WOOD ENVIRONMENT & INFRASTRUCTURE SOLUTIONS,17/01/2022,"£20,689.20",LAR,80131800,Real estate management services
"Ministry of Housing, Communities and Local Government",Homes England,PLANNING APPLICATIONS,"Markets, Partners & Places",WOOD ENVIRONMENT & INFRASTRUCTURE SOLUTIONS,26/01/2022,"£2,730.00",LAR,80131800,Real estate management services
"Ministry of Housing, Communities and Local Government",Homes England,MASTERPLANNING FEES,"Markets, Partners & Places",WOOD ENVIRONMENT & INFRASTRUCTURE SOLUTIONS,26/01/2022,"£1,464.00",LAR,81101500,Civil Engineering
"Ministry of Housing, Communities and Local Government",Homes England,MASTERPLANNING FEES,"Markets, Partners & Places",WOOD ENVIRONMENT & INFRASTRUCTURE SOLUTIONS,26/01/2022,"£2,520.00",LAR,81101500,Civil Engineering
"Ministry of Housing, Communities and Local Government",Homes England,PLANNING APPLICATIONS,"Markets, Partners & Places",WOOD ENVIRONMENT & INFRASTRUCTURE SOLUTIONS,26/01/2022,"£2,412.00",LAR,80131800,Real estate management services
"Ministry of Housing, Communities and Local Government",Homes England,MASTERPLANNING FEES,"Markets, Partners & Places",WOOD ENVIRONMENT & INFRASTRUCTURE SOLUTIONS,26/01/2022,"£2,880.00",LAR,81101500,Civil Engineering
"Ministry of Housing, Communities and Local Government",Homes England,OTHER PROFESSIONAL FEES,"Markets, Partners & Places",WOOD ENVIRONMENT & INFRASTRUCTURE SOLUTIONS,31/01/2022,"£10,152.06",LAR,80131800,Real estate management services
"Ministry of Housing, Communities and Local Government",Homes England,ST FUND LOANS ADDITIONS,Investment,EAST CHALLOWS LLP,18/01/2022,"£101,764.00",LAR,None,Loans
"Ministry of Housing, Communities and Local Government",Homes England,L&OD STRATEGIC - HR USE ONLY,Corporate Resources,ERNST & YOUNG,05/01/2022,"£3,313.98",LAR,86101800,In service training and manpower development
"Ministry of Housing, Communities and Local Government",Homes England,ENGINEERING FEES,Development,EGNIOL CONSULTING LIMITED,07/01/2022,£540.00,SMA,81101500,Civil Engineering
"Ministry of Housing, Communities and Local Government",Homes England,ENGINEERING FEES,Development,EGNIOL CONSULTING LIMITED,12/01/2022,"£1,800.00",SMA,81101500,Civil Engineering
"Ministry of Housing, Communities and Local Government",Homes England,REWARD & EXCELLENCE,Corporate Resources,EDENRED (UK GROUP) LTD,11/01/2022,£875.00,LAR,80111500,Human resource development
"Ministry of Housing, Communities and Local Government",Homes England,REWARD & EXCELLENCE,Corporate Resources,EDENRED (UK GROUP) LTD,11/01/2022,"£1,275.00",LAR,80111500,Human resource development
"Ministry of Housing, Communities and Local Government",Homes England,REWARD & EXCELLENCE,Corporate Resources,EDENRED (UK GROUP) LTD,11/01/2022,"£2,050.00",LAR,80111500,Human resource development
"Ministry of Housing, Communities and Local Government",Homes England,ST FUND LOANS ADDITIONS,Investment,EDG IRONMONGER LTD,10/01/2022,"£196,803.75",SMA,None,Loans
"Ministry of Housing, Communities and Local Government",Homes England,MOBILES,Cido,EE LTD,11/01/2022,"£24,639.39",LAR,83111500,Local and long distance telephone communications
"Ministry of Housing, Communities and Local Government",Homes England,LEGAL FEES (PROGRAMME - RDEL),"Markets, Partners & Places",EVERSHEDS CLIENT ACCOUNT,31/01/2022,"£8,435.75",LAR,80121600,Business law services
"Ministry of Housing, Communities and Local Government",Homes England,ROADS AND CAR PARKS,Development,EA FORMBY (NW) LIMITED,05/01/2022,£960.00,SMA,72101500,Building maintenance and repair services
"Ministry of Housing, Communities and Local Government",Homes England,ROADS AND CAR PARKS,Development,EA FORMBY (NW) LIMITED,05/01/2022,"£1,488.00",SMA,72101500,Building maintenance and repair services
"Ministry of Housing, Communities and Local Government",Homes England,ST FUND LOANS ADDITIONS,Investment,ERRIS HOMES (YORKSHIRE) LIMITED,28/01/2022,"£259,312.00",SMA,None,Loans
"Ministry of Housing, Communities and Local Government",Homes England,ST FUND LOANS ADDITIONS,Investment,EVAN HOMES (TOCKWITH) LTD,24/01/2022,"£454,200.25",MIC,None,Loans
"Ministry of Housing, Communities and Local Government",Homes England,ESTATE GENERAL MAINTENANCE,Development,ECOLOGICAL LAND MANGEMENT LTD,19/01/2022,"£2,868.72",SMA,72101500,Building maintenance and repair services
"Ministry of Housing, Communities and Local Government",Homes England,ESTATE GENERAL MAINTENANCE,Development,ECOLOGICAL LAND MANGEMENT LTD,28/01/2022,"£1,620.00",SMA,72101500,Building maintenance and repair services
"Ministry of Housing, Communities and Local Government",Homes England,ST FUND LOANS ADDITIONS,Investment,EVANS MANN COMMERCIAL LTD,14/01/2022,"£184,420.00",LAR,None,Loans
"Ministry of Housing, Communities and Local Government",Homes England,LEGAL FEES (PROGRAMME - CDEL),Development,39 ESSEX CHAMBERS,24/01/2022,"£1,200.00",MED,80121600,Business law services
"Ministry of Housing, Communities and Local Government",Homes England,INVESTMENT IN ASSOC JV ADDITIO,Investment,ECF (GENERAL PARTNER) LTD,25/01/2022,"£1,664,800.00",MED,None,Loans
"Ministry of Housing, Communities and Local Government",Homes England,STAFF RECRUITMENT COSTS,Corporate Allocations,EXPERIAN,14/01/2022,"£3,633.60",LAR,80111700,Personnel Recruitment
"Ministry of Housing, Communities and Local Government",Homes England,STAFF RECRUITMENT COSTS,Corporate Allocations,EXPERIAN,26/01/2022,"£4,672.80",LAR,80111700,Personnel Recruitment
"Ministry of Housing, Communities and Local Government",Homes England,OTHER PROFESSIONAL FEES,Development,EDUCATIONAL FACILITIES MANAGEMENT PARTNERSHIP,06/01/2022,"£4,248.00",SMA,80131800,Real estate management services
"Ministry of Housing, Communities and Local Government",Homes England,RI - MONIITORING SURVEYOR FEES,Investment,EDDISONS COMMERCIAL LIMITED,05/01/2022,£900.00,MED,81101500,Civil Engineering
"Ministry of Housing, Communities and Local Government",Homes England,RI - MONIITORING SURVEYOR FEES,Investment,EDDISONS COMMERCIAL LIMITED,07/01/2022,£870.00,MED,81101500,Civil Engineering
"Ministry of Housing, Communities and Local Government",Homes England,MISC PROFESSIONAL FEES,Development,EDDISONS COMMERCIAL LIMITED,07/01/2022,"£4,620.00",MED,81101500,Civil Engineering
"Ministry of Housing, Communities and Local Government",Homes England,MISC PROFESSIONAL FEES,Development,EDDISONS COMMERCIAL LIMITED,07/01/2022,"£10,164.00",MED,81101500,Civil Engineering
"Ministry of Housing, Communities and Local Government",Homes England,RI - MONIITORING SURVEYOR FEES,Investment,EDDISONS COMMERCIAL LIMITED,11/01/2022,£834.00,MED,81101500,Civil Engineering
"Ministry of Housing, Communities and Local Government",Homes England,RI - MONIITORING SURVEYOR FEES,Investment,EDDISONS COMMERCIAL LIMITED,17/01/2022,£834.00,MED,81101500,Civil Engineering
"Ministry of Housing, Communities and Local Government",Homes England,RI - MONIITORING SURVEYOR FEES,Investment,EDDISONS COMMERCIAL LIMITED,18/01/2022,£900.00,MED,81101500,Civil Engineering
"Ministry of Housing, Communities and Local Government",Homes England,RI - MONIITORING SURVEYOR FEES,Investment,EDDISONS COMMERCIAL LIMITED,21/01/2022,£834.00,MED,81101500,Civil Engineering
"Ministry of Housing, Communities and Local Government",Homes England,RI - MONIITORING SURVEYOR FEES,Investment,EDDISONS COMMERCIAL LIMITED,21/01/2022,£900.00,MED,81101500,Civil Engineering
"Ministry of Housing, Communities and Local Government",Homes England,RI - MONIITORING SURVEYOR FEES,Investment,EDDISONS COMMERCIAL LIMITED,26/01/2022,£780.00,MED,81101500,Civil Engineering
"Ministry of Housing, Communities and Local Government",Homes England,RI - MONIITORING SURVEYOR FEES,Investment,EDDISONS COMMERCIAL LIMITED,28/01/2022,£780.00,MED,81101500,Civil Engineering
"Ministry of Housing, Communities and Local Government",Homes England,RI - MONIITORING SURVEYOR FEES,Investment,EDDISONS COMMERCIAL LIMITED,31/01/2022,£834.00,MED,81101500,Civil Engineering
"Ministry of Housing, Communities and Local Government",Homes England,OTHER PROFESSIONAL FEES,"Markets, Partners & Places",EAST HAMPSHIRE DISTRICT COUNCIL,04/01/2022,"£95,336.42",PUB,80131800,Real estate management services
"Ministry of Housing, Communities and Local Government",Homes England,OTHER PROFESSIONAL FEES,"Markets, Partners & Places",EAST HAMPSHIRE DISTRICT COUNCIL,05/01/2022,"£14,803.61",PUB,80131800,Real estate management services
"Ministry of Housing, Communities and Local Government",Homes England,MASTERPLANNING FEES,Development,EAST HAMPSHIRE DISTRICT COUNCIL,05/01/2022,£820.80,PUB,81101500,Civil Engineering
"Ministry of Housing, Communities and Local Government",Homes England,MASTERPLANNING FEES,Development,EAST HAMPSHIRE DISTRICT COUNCIL,05/01/2022,"£1,260.00",PUB,81101500,Civil Engineering
"Ministry of Housing, Communities and Local Government",Homes England,MASTERPLANNING FEES,Development,EAST HAMPSHIRE DISTRICT COUNCIL,05/01/2022,"£1,173.60",PUB,81101500,Civil Engineering
"Ministry of Housing, Communities and Local Government",Homes England,MASTERPLANNING FEES,Development,EAST HAMPSHIRE DISTRICT COUNCIL,05/01/2022,"£5,652.65",PUB,81101500,Civil Engineering
"Ministry of Housing, Communities and Local Government",Homes England,MISC PROFESSIONAL FEES,"Markets, Partners & Places",EAST HAMPSHIRE DISTRICT COUNCIL,06/01/2022,"£1,944.25",PUB,81101500,Civil Engineering
"Ministry of Housing, Communities and Local Government",Homes England,ENGINEERING FEES,Investment,AECOM LIMITED,04/01/2022,£616.01,LAR,81101500,Civil Engineering
"Ministry of Housing, Communities and Local Government",Homes England,RI - MONIITORING SURVEYOR FEES,Investment,AECOM LIMITED,07/01/2022,"£2,301.74",LAR,81101500,Civil Engineering
"Ministry of Housing, Communities and Local Government",Homes England,MASTERPLANNING FEES,"Markets, Partners & Places",AECOM LIMITED,07/01/2022,"£21,710.82",LAR,81101500,Civil Engineering
"Ministry of Housing, Communities and Local Government",Homes England,PLANNING APPLICATIONS,"Markets, Partners & Places",AECOM LIMITED,07/01/2022,"£1,368.00",LAR,80131800,Real estate management services
"Ministry of Housing, Communities and Local Government",Homes England,RI - MONIITORING SURVEYOR FEES,Investment,AECOM LIMITED,07/01/2022,"£2,301.74",LAR,81101500,Civil Engineering
"Ministry of Housing, Communities and Local Government",Homes England,OTHER PROFESSIONAL FEES,Development,AECOM LIMITED,11/01/2022,"£64,360.14",LAR,80131800,Real estate management services
"Ministry of Housing, Communities and Local Government",Homes England,PROJECT MANAGEMENT,Development,AECOM LIMITED,19/01/2022,"£27,404.40",LAR,80101600,Project management
"Ministry of Housing, Communities and Local Government",Homes England,ENGINEERING FEES,"Markets, Partners & Places",AECOM LIMITED,20/01/2022,"£6,135.60",LAR,81101500,Civil Engineering
"Ministry of Housing, Communities and Local Government",Homes England,RI - MONIITORING SURVEYOR FEES,Investment,AECOM LIMITED,25/01/2022,"£2,040.00",LAR,81101500,Civil Engineering
"Ministry of Housing, Communities and Local Government",Homes England,ENGINEERING FEES,Investment,AECOM LIMITED,26/01/2022,£592.38,LAR,81101500,Civil Engineering
"Ministry of Housing, Communities and Local Government",Homes England,MASTERPLANNING FEES,"Markets, Partners & Places",AECOM LIMITED,27/01/2022,"£10,354.88",LAR,81101500,Civil Engineering
"Ministry of Housing, Communities and Local Government",Homes England,PLANNING APPLICATIONS,"Markets, Partners & Places",AECOM LIMITED,27/01/2022,£756.00,LAR,80131800,Real estate management services
"Ministry of Housing, Communities and Local Government",Homes England,OTHER PROFESSIONAL FEES,"Markets, Partners & Places",AECOM LIMITED,27/01/2022,"£12,667.20",LAR,80131800,Real estate management services
"Ministry of Housing, Communities and Local Government",Homes England,EXTERNAL ROOM BOOKINGS,Executive Office,FRIENDS HOUSE,17/01/2022,£460.00,SMA,90111600,Meeting facilities
"Ministry of Housing, Communities and Local Government",Homes England,TRAINING COURSES & CONFERENCES,Investment,FRIENDS HOUSE,17/01/2022,£460.00,SMA,86101800,In service training and manpower development
"Ministry of Housing, Communities and Local Government",Homes England,ESTATE GENERAL MAINTENANCE,Development,FOXLEYS LTD,27/01/2022,£875.20,SMA,72101500,Building maintenance and repair services
"Ministry of Housing, Communities and Local Government",Homes England,MISC PROFESSIONAL FEES,Development,SAVILLS UK LIMITED,05/01/2022,"£11,940.00",LAR,80131800,Real estate management services
"Ministry of Housing, Communities and Local Government",Homes England,MISC PROFESSIONAL FEES,Development,SAVILLS UK LIMITED,05/01/2022,"£8,100.00",LAR,80131800,Real estate management services
"Ministry of Housing, Communities and Local Government",Homes England,VALUATION FEES,Development,SAVILLS UK LIMITED,05/01/2022,"£4,500.00",LAR,80131800,Real estate management services
"Ministry of Housing, Communities and Local Government",Homes England,PLANNING FEES,Development,SAVILLS UK LIMITED,07/01/2022,"£1,200.00",LAR,80131800,Real estate management services
"Ministry of Housing, Communities and Local Government",Homes England,DISPOSAL FEES - PROPERTY AGENT,Development,SAVILLS UK LIMITED,10/01/2022,"£24,000.00",LAR,80131600,Sale of property and building
"Ministry of Housing, Communities and Local Government",Homes England,PROPERTY SERVICES,"Markets, Partners & Places",SAVILLS UK LIMITED,10/01/2022,"£6,201.00",LAR,80131800,Real estate management services
"Ministry of Housing, Communities and Local Government",Homes England,DISPOSAL FEES - PROPERTY AGENT,Development,SAVILLS UK LIMITED,10/01/2022,"£23,136.00",LAR,80131600,Sale of property and building
"Ministry of Housing, Communities and Local Government",Homes England,DISPOSAL FEES - PROPERTY AGENT,Development,SAVILLS UK LIMITED,12/01/2022,"£12,000.00",LAR,80131600,Sale of property and building
"Ministry of Housing, Communities and Local Government",Homes England,DISPOSAL FEES - PROPERTY AGENT,Development,SAVILLS UK LIMITED,12/01/2022,"£16,800.00",LAR,80131600,Sale of property and building
"Ministry of Housing, Communities and Local Government",Homes England,MISC PROFESSIONAL FEES,Development,SAVILLS UK LIMITED,12/01/2022,"£2,400.00",LAR,80131800,Real estate management services
"Ministry of Housing, Communities and Local Government",Homes England,DISPOSAL FEES - PROPERTY AGENT,Development,SAVILLS UK LIMITED,12/01/2022,"£17,480.17",LAR,80131600,Sale of property and building
"Ministry of Housing, Communities and Local Government",Homes England,PROPERTY SERVICES,Development,SAVILLS UK LIMITED,14/01/2022,"£4,800.00",LAR,80131800,Real estate management services
"Ministry of Housing, Communities and Local Government",Homes England,PROF FEES LOANS CAPITALISED,Investment,SAVILLS UK LIMITED,17/01/2022,"£5,400.00",LAR,80131800,Real estate management services
"Ministry of Housing, Communities and Local Government",Homes England,MISC PROFESSIONAL FEES,"Markets, Partners & Places",SAVILLS UK LIMITED,19/01/2022,"£4,500.00",LAR,80131800,Real estate management services
"Ministry of Housing, Communities and Local Government",Homes England,VALUATION FEES,Development,SAVILLS UK LIMITED,27/01/2022,"£2,988.00",LAR,80131800,Real estate management services
"Ministry of Housing, Communities and Local Government",Homes England,DISPOSAL FEES - PROPERTY AGENT,Development,SAVILLS UK LIMITED,28/01/2022,"£21,000.00",LAR,80131600,Sale of property and building
"Ministry of Housing, Communities and Local Government",Homes England,ST FUND LOANS ADDITIONS,Investment,F4 DEVELOPMENTS LTD,20/01/2022,"£54,826.63",MIC,None,Loans
"Ministry of Housing, Communities and Local Government",Homes England,ST FUND LOANS ADDITIONS,Investment,FOOTSTEP LIVING DEVELOPMENTS LTD,20/01/2022,"£184,531.81",MIC,None,Loans
"Ministry of Housing, Communities and Local Government",Homes England,MANAGEMENT COSTS,Development,R FOX T/A SOUTHCOAST MAINTENANCE,10/01/2022,£420.00,SMA,80131800,Real estate management services
"Ministry of Housing, Communities and Local Government",Homes England,MANAGEMENT COSTS,Development,R FOX T/A SOUTHCOAST MAINTENANCE,10/01/2022,£734.40,SMA,80131800,Real estate management services
"Ministry of Housing, Communities and Local Government",Homes England,SECURITY,Development,R FOX T/A SOUTHCOAST MAINTENANCE,10/01/2022,£304.80,SMA,92121500,Guard services
"Ministry of Housing, Communities and Local Government",Homes England,LANDSCAPE MAINT-BUILT ESTATE,Development,R FOX T/A SOUTHCOAST MAINTENANCE,10/01/2022,£840.00,SMA,72102900,Facility maintenance and repair services
"Ministry of Housing, Communities and Local Government",Homes England,DRAINS & SEWERS,Development,R FOX T/A SOUTHCOAST MAINTENANCE,10/01/2022,"£1,440.00",SMA,72101500,Building maintenance and repair services
"Ministry of Housing, Communities and Local Government",Homes England,BUILDINGS-CLEANING,Development,R FOX T/A SOUTHCOAST MAINTENANCE,10/01/2022,£756.00,SMA,76111500,General building and office cleaining and maintenance services
"Ministry of Housing, Communities and Local Government",Homes England,BUILDINGS-WATER,Development,R FOX T/A SOUTHCOAST MAINTENANCE,10/01/2022,£670.80,SMA,83101500,Water and sewer utilities
"Ministry of Housing, Communities and Local Government",Homes England,BUILDINGS-ELECTRICITY,Development,R FOX T/A SOUTHCOAST MAINTENANCE,10/01/2022,£720.00,SMA,83101800,Electric utilities
"Ministry of Housing, Communities and Local Government",Homes England,EXTERNAL BUILDING MAINTENANCE,Development,R FOX T/A SOUTHCOAST MAINTENANCE,11/01/2022,£840.00,SMA,72101500,Building maintenance and repair services
"Ministry of Housing, Communities and Local Government",Homes England,EXTERNAL BUILDING MAINTENANCE,Development,R FOX T/A SOUTHCOAST MAINTENANCE,28/01/2022,"£4,152.00",SMA,72101500,Building maintenance and repair services
"Ministry of Housing, Communities and Local Government",Homes England,MANAGEMENT COSTS,Development,R FOX T/A SOUTHCOAST MAINTENANCE,28/01/2022,"£2,700.00",SMA,80131800,Real estate management services
"Ministry of Housing, Communities and Local Government",Homes England,SECURITY,Development,R FOX T/A SOUTHCOAST MAINTENANCE,28/01/2022,"£3,364.80",SMA,92121500,Guard services
"Ministry of Housing, Communities and Local Government",Homes England,EXTERNAL BUILDING MAINTENANCE,Development,R FOX T/A SOUTHCOAST MAINTENANCE,28/01/2022,£900.00,SMA,72101500,Building maintenance and repair services
"Ministry of Housing, Communities and Local Government",Homes England,MANAGEMENT COSTS,Development,R FOX T/A SOUTHCOAST MAINTENANCE,28/01/2022,£390.00,SMA,80131800,Real estate management services
"Ministry of Housing, Communities and Local Government",Homes England,DRAINS & SEWERS,Development,R FOX T/A SOUTHCOAST MAINTENANCE,28/01/2022,"£1,080.00",SMA,80131800,Real estate management services
"Ministry of Housing, Communities and Local Government",Homes England,ROADS AND CAR PARKS,Development,R FOX T/A SOUTHCOAST MAINTENANCE,28/01/2022,"£2,040.00",SMA,72101500,Building maintenance and repair services
"Ministry of Housing, Communities and Local Government",Homes England,MANAGEMENT COSTS,Development,R FOX T/A SOUTHCOAST MAINTENANCE,28/01/2022,"£2,172.00",SMA,72101500,Building maintenance and repair services
"Ministry of Housing, Communities and Local Government",Homes England,CONTRACT WORKS,Development,FORKERS LTD,27/01/2022,"£237,421.16",MED,72103300,Infrastructure maintenance and repair services
"Ministry of Housing, Communities and Local Government",Homes England,ESTATE GENERAL MAINTENANCE,Development,FALCON SECURITY,25/01/2022,£832.80,SMA,72101500,Building maintenance and repair services
"Ministry of Housing, Communities and Local Government",Homes England,LANDSCAPE MAINT-BUILT ESTATE,Development,FALCON PEST CONTROL,27/01/2022,£348.00,SMA,72102900,Facility maintenance and repair services
"Ministry of Housing, Communities and Local Government",Homes England,SECURITY,"Markets, Partners & Places",FIRST RESPONSE GROUP LTD,06/01/2022,£664.50,MED,92121500,Guard services
"Ministry of Housing, Communities and Local Government",Homes England,SECURITY,Development,FIRST RESPONSE GROUP LTD,06/01/2022,£509.54,MED,92121500,Guard services
"Ministry of Housing, Communities and Local Government",Homes England,SECURITY,Development,FIRST RESPONSE GROUP LTD,06/01/2022,£509.54,MED,92121500,Guard services
"Ministry of Housing, Communities and Local Government",Homes England,SECURITY,Development,FIRST RESPONSE GROUP LTD,06/01/2022,"£1,528.64",MED,92121500,Guard services
"Ministry of Housing, Communities and Local Government",Homes England,SECURITY,Development,FIRST RESPONSE GROUP LTD,19/01/2022,£915.76,MED,92121500,Guard services
"Ministry of Housing, Communities and Local Government",Homes England,SECURITY,Development,FIRST RESPONSE GROUP LTD,19/01/2022,£526.18,MED,92121500,Guard services
"Ministry of Housing, Communities and Local Government",Homes England,SECURITY,Development,FIRST RESPONSE GROUP LTD,19/01/2022,£509.54,MED,92121500,Guard services
"Ministry of Housing, Communities and Local Government",Homes England,SECURITY,Development,FIRST RESPONSE GROUP LTD,19/01/2022,£526.54,MED,92121500,Guard services
"Ministry of Housing, Communities and Local Government",Homes England,SECURITY,Development,FIRST RESPONSE GROUP LTD,19/01/2022,£509.54,MED,92121500,Guard services
"Ministry of Housing, Communities and Local Government",Homes England,SECURITY,Development,FIRST RESPONSE GROUP LTD,19/01/2022,£509.54,MED,92121500,Guard services
"Ministry of Housing, Communities and Local Government",Homes England,SECURITY,"Markets, Partners & Places",FIRST RESPONSE GROUP LTD,21/01/2022,"£1,350.54",MED,92121500,Guard services
"Ministry of Housing, Communities and Local Government",Homes England,SECURITY,"Markets, Partners & Places",FIRST RESPONSE GROUP LTD,21/01/2022,"£10,641.96",MED,92121500,Guard services
"Ministry of Housing, Communities and Local Government",Homes England,AGENCY STAFF,Investment,THE FUEL GROUP LIMITED,24/01/2022,"£1,528.85",SMA,80111600,Temporary personnel services
"Ministry of Housing, Communities and Local Government",Homes England,AGENCY STAFF,Investment,THE FUEL GROUP LIMITED,24/01/2022,"£2,435.83",SMA,80111600,Temporary personnel services
"Ministry of Housing, Communities and Local Government",Homes England,AGENCY STAFF,Investment,THE FUEL GROUP LIMITED,31/01/2022,"£1,014.72",SMA,80111600,Temporary personnel services
"Ministry of Housing, Communities and Local Government",Homes England,AGENCY STAFF,Investment,THE FUEL GROUP LIMITED,31/01/2022,"£1,353.24",SMA,80111600,Temporary personnel services
"Ministry of Housing, Communities and Local Government",Homes England,TRAINING COURSES & CONFERENCES,Chief Risk Officer,KAPLAN FINANCIAL,04/01/2022,"£1,464.00",LAR,86101800,In service training and manpower development
"Ministry of Housing, Communities and Local Government",Homes England,TRAINING COURSES & CONFERENCES,Corporate Resources,KAPLAN FINANCIAL,11/01/2022,£299.00,LAR,86101800,In service training and manpower development
"Ministry of Housing, Communities and Local Government",Homes England,ESTATE GENERAL MAINTENANCE,Development,F T GEARING L/S LTD,10/01/2022,"£1,020.00",SMA,72101500,Building maintenance and repair services
"Ministry of Housing, Communities and Local Government",Homes England,Other Land Loans Fv Additions,"Markets, Partners & Places",AVISON YOUNG (UK) LTD,04/01/2022,"£6,380.88",LAR,80131800,Real estate management services
"Ministry of Housing, Communities and Local Government",Homes England,PROPERTY SERVICES,Development,AVISON YOUNG (UK) LTD,05/01/2022,"£3,294.00",LAR,80131800,Real estate management services
"Ministry of Housing, Communities and Local Government",Homes England,MISC PROFESSIONAL FEES,Development,AVISON YOUNG (UK) LTD,10/01/2022,"£4,680.00",LAR,80131800,Real estate management services
"Ministry of Housing, Communities and Local Government",Homes England,RI - SITE VALUATION FEES,Investment,AVISON YOUNG (UK) LTD,12/01/2022,"£12,000.00",LAR,80131800,Real estate management services
"Ministry of Housing, Communities and Local Government",Homes England,OTHER PROFESSIONAL FEES,"Markets, Partners & Places",AVISON YOUNG (UK) LTD,13/01/2022,"£5,159.36",LAR,80131800,Real estate management services
"Ministry of Housing, Communities and Local Government",Homes England,MISC PROFESSIONAL FEES,"Markets, Partners & Places",AVISON YOUNG (UK) LTD,14/01/2022,"£14,389.52",LAR,80131800,Real estate management services
"Ministry of Housing, Communities and Local Government",Homes England,MISC PROFESSIONAL FEES,Development,AVISON YOUNG (UK) LTD,17/01/2022,"£18,000.00",LAR,80131800,Real estate management services
"Ministry of Housing, Communities and Local Government",Homes England,PROPERTY SERVICES,Development,AVISON YOUNG (UK) LTD,19/01/2022,"£2,322.00",LAR,80131800,Real estate management services
"Ministry of Housing, Communities and Local Government",Homes England,MANAGEMENT COSTS,"Markets, Partners & Places",AVISON YOUNG (UK) LTD,21/01/2022,"£1,440.00",LAR,80131800,Real estate management services
"Ministry of Housing, Communities and Local Government",Homes England,MANAGEMENT COSTS,Development,AVISON YOUNG (UK) LTD,21/01/2022,£855.00,LAR,80131800,Real estate management services
"Ministry of Housing, Communities and Local Government",Homes England,RI - MONIITORING SURVEYOR FEES,Investment,AVISON YOUNG (UK) LTD,26/01/2022,"£1,320.00",LAR,81101500,Civil Engineering
"Ministry of Housing, Communities and Local Government",Homes England,PLANNING APPLICATIONS,"Markets, Partners & Places",AVISON YOUNG (UK) LTD,28/01/2022,"£50,184.00",LAR,80131800,Real estate management services
"Ministry of Housing, Communities and Local Government",Homes England,RI - MONIITORING SURVEYOR FEES,Investment,AVISON YOUNG (UK) LTD,28/01/2022,"£2,592.00",LAR,81101500,Civil Engineering
"Ministry of Housing, Communities and Local Government",Homes England,MISC PROFESSIONAL FEES,"Markets, Partners & Places",AVISON YOUNG (UK) LTD,28/01/2022,"£4,260.00",LAR,80131800,Real estate management services
"Ministry of Housing, Communities and Local Government",Homes England,Other Land Loans Fv Additions,"Markets, Partners & Places",AVISON YOUNG (UK) LTD,31/01/2022,"£11,196.00",LAR,80131800,Real estate management services
"Ministry of Housing, Communities and Local Government",Homes England,MISC PROFESSIONAL FEES,Development,AVISON YOUNG (UK) LTD,31/01/2022,"£34,292.40",LAR,80131800,Real estate management services
"Ministry of Housing, Communities and Local Government",Homes England,TRAINING COURSES & CONFERENCES,Development,GOVERNMENT EVENTS,20/01/2022,£594.00,SMA,86101800,In service training and manpower development
"Ministry of Housing, Communities and Local Government",Homes England,PENSION SCHEME FEES,Corporate Resources,GOVERNMENT ACTUARY'S DEPARTMENT,04/01/2022,"£5,920.50",PUB,84131700,Pension funds
"Ministry of Housing, Communities and Local Government",Homes England,PENSION SCHEME FEES,Corporate Resources,GOVERNMENT ACTUARY'S DEPARTMENT,28/01/2022,"£6,842.30",PUB,84131700,Pension funds
"Ministry of Housing, Communities and Local Government",Homes England,ESTATE GENERAL MAINTENANCE,Development,GRASSTEX LIMITED,10/01/2022,"£2,872.80",SMA,72101500,Building maintenance and repair services
"Ministry of Housing, Communities and Local Government",Homes England,ST FUND LOANS ADDITIONS,Investment,GREENHOLME MILLS LTD,27/01/2022,"£60,637.67",MIC,None,Loans
"Ministry of Housing, Communities and Local Government",Homes England,TRAINING COURSES & CONFERENCES,"Markets, Partners & Places",GULP DIGITAL LIMITED,04/01/2022,"£2,624.40",SMA,86101800,In service training and manpower development
"Ministry of Housing, Communities and Local Government",Homes England,MISC PROFESSIONAL FEES,"Markets, Partners & Places",GERALD EVE LLP,18/01/2022,"£10,098.00",LAR,80111600,Temporary personnel services
"Ministry of Housing, Communities and Local Government",Homes England,MISC PROFESSIONAL FEES,"Markets, Partners & Places",GERALD EVE LLP,18/01/2022,"£14,400.00",LAR,80111600,Temporary personnel services
"Ministry of Housing, Communities and Local Government",Homes England,MISC PROFESSIONAL FEES,"Markets, Partners & Places",GERALD EVE LLP,18/01/2022,"£7,200.00",LAR,80111600,Temporary personnel services
"Ministry of Housing, Communities and Local Government",Homes England,SECURITY,"Markets, Partners & Places",GUARDING UK LTD,18/01/2022,£297.00,LAR,92121500,Guard services
"Ministry of Housing, Communities and Local Government",Homes England,CAP GRNTS TO LOCAL AUTHORITIES,Investment,GLOUCESTERSHIRE COUNTY COUNCIL,27/01/2022,"£2,141,544.35",PUB,None,Grants
"Ministry of Housing, Communities and Local Government",Homes England,AGENCY STAFF,Cido,GATENBY SANDERSON,07/01/2022,"£22,272.00",MED,80111600,Temporary personnel services
"Ministry of Housing, Communities and Local Government",Homes England,ESTATE GENERAL MAINTENANCE,"Markets, Partners & Places",G C LANDSCAPE MANAGEMENT LIMITED,25/01/2022,"£1,095.00",SMA,72101500,Building maintenance and repair services
"Ministry of Housing, Communities and Local Government",Homes England,SERVICE CHARGES,Development,GOVERNMENT PROPERTY AGENCY,26/01/2022,"£14,104.00",PUB,80131500,Lease and rental of property or building
"Ministry of Housing, Communities and Local Government",Homes England,ST FUND LOANS ADDITIONS,Investment,GALTRES ESTATES LIMITED,14/01/2022,"£26,967.20",MIC,None,Loans
"Ministry of Housing, Communities and Local Government",Homes England,ST FUND LOANS ADDITIONS,Investment,GALTRES ESTATES LIMITED,27/01/2022,"£27,629.35",MIC,None,Loans
"Ministry of Housing, Communities and Local Government",Homes England,CAP GRNTS TO LOCAL AUTHORITIES,Investment,GUILDFORD BOROUGH COUNCIL,17/01/2022,"£103,995.35",PUB,None,Grants
"Ministry of Housing, Communities and Local Government",Homes England,CAP GRNTS TO LOCAL AUTHORITIES,Investment,GUILDFORD BOROUGH COUNCIL,21/01/2022,"£117,706.26",PUB,None,Grants
"Ministry of Housing, Communities and Local Government",Homes England,CAP GRNTS TO LOCAL AUTHORITIES,Investment,GUILDFORD BOROUGH COUNCIL,26/01/2022,"£1,680,784.69",PUB,None,Grants
"Ministry of Housing, Communities and Local Government",Homes England,ENGINEERING FEES,"Markets, Partners & Places",GLEEDS ADVISORY LTD,07/01/2022,"£67,535.16",SMA,81101500,Civil Engineering
"Ministry of Housing, Communities and Local Government",Homes England,RI - MONIITORING SURVEYOR FEES,Investment,GLEEDS ADVISORY LTD,12/01/2022,"£1,200.00",SMA,81101500,Civil Engineering
"Ministry of Housing, Communities and Local Government",Homes England,ESTATE GENERAL MAINTENANCE,Development,G.D.C LIMITED,17/01/2022,"£3,535.20",SMA,72101500,Building maintenance and repair services
"Ministry of Housing, Communities and Local Government",Homes England,AGENCY STAFF,Corporate Resources,HAYS ACCOUNTANCY & FINANCE,05/01/2022,"£15,576.00",LAR,80111600,Temporary personnel services
"Ministry of Housing, Communities and Local Government",Homes England,AGENCY STAFF,Corporate Resources,HAYS ACCOUNTANCY & FINANCE,12/01/2022,"£6,372.00",LAR,80111600,Temporary personnel services
"Ministry of Housing, Communities and Local Government",Homes England,PLANNING APPLICATIONS,"Markets, Partners & Places",ARCADIS CONSULTING (UK) LIMITED,04/01/2022,"£19,774.28",LAR,80131800,Real estate management services
"Ministry of Housing, Communities and Local Government",Homes England,PROJECT MANAGEMENT,Development,ARCADIS CONSULTING (UK) LIMITED,04/01/2022,"£20,139.08",LAR,80101600,Project management
"Ministry of Housing, Communities and Local Government",Homes England,RI - MONIITORING SURVEYOR FEES,Investment,ARCADIS CONSULTING (UK) LIMITED,06/01/2022,"£5,400.00",LAR,81101500,Civil Engineering
"Ministry of Housing, Communities and Local Government",Homes England,RI - MONIITORING SURVEYOR FEES,Investment,ARCADIS CONSULTING (UK) LIMITED,07/01/2022,"£1,500.00",LAR,81101500,Civil Engineering
"Ministry of Housing, Communities and Local Government",Homes England,OTHER PROFESSIONAL FEES,Development,ARCADIS CONSULTING (UK) LIMITED,07/01/2022,"£15,540.00",LAR,80131800,Real estate management services
"Ministry of Housing, Communities and Local Government",Homes England,RI - MONIITORING SURVEYOR FEES,Investment,ARCADIS CONSULTING (UK) LIMITED,07/01/2022,"£1,740.00",LAR,81101500,Civil Engineering
"Ministry of Housing, Communities and Local Government",Homes England,RI - MONIITORING SURVEYOR FEES,Investment,ARCADIS CONSULTING (UK) LIMITED,07/01/2022,"£1,680.00",LAR,81101500,Civil Engineering
"Ministry of Housing, Communities and Local Government",Homes England,RI - MONIITORING SURVEYOR FEES,Investment,ARCADIS CONSULTING (UK) LIMITED,07/01/2022,"£1,560.00",LAR,81101500,Civil Engineering
"Ministry of Housing, Communities and Local Government",Homes England,RI - MONIITORING SURVEYOR FEES,Investment,ARCADIS CONSULTING (UK) LIMITED,11/01/2022,"£1,740.00",LAR,81101500,Civil Engineering
"Ministry of Housing, Communities and Local Government",Homes England,RI - MONIITORING SURVEYOR FEES,Investment,ARCADIS CONSULTING (UK) LIMITED,11/01/2022,"£1,620.00",LAR,81101500,Civil Engineering
"Ministry of Housing, Communities and Local Government",Homes England,RI - MONIITORING SURVEYOR FEES,Investment,ARCADIS CONSULTING (UK) LIMITED,11/01/2022,"£1,620.00",LAR,81101500,Civil Engineering
"Ministry of Housing, Communities and Local Government",Homes England,RI - MONIITORING SURVEYOR FEES,Investment,ARCADIS CONSULTING (UK) LIMITED,13/01/2022,"£11,100.00",LAR,81101500,Civil Engineering
"Ministry of Housing, Communities and Local Government",Homes England,MISC PROFESSIONAL FEES,"Markets, Partners & Places",ARCADIS CONSULTING (UK) LIMITED,13/01/2022,"£11,952.12",LAR,80111600,Temporary personnel services
"Ministry of Housing, Communities and Local Government",Homes England,RI - MONIITORING SURVEYOR FEES,Investment,ARCADIS CONSULTING (UK) LIMITED,20/01/2022,"£1,980.00",LAR,81101500,Civil Engineering
"Ministry of Housing, Communities and Local Government",Homes England,PROF FEES LOANS CAPITALISED,Investment,ARCADIS CONSULTING (UK) LIMITED,24/01/2022,"£4,084.36",LAR,81101500,Civil Engineering
"Ministry of Housing, Communities and Local Government",Homes England,OTHER PROFESSIONAL FEES,"Markets, Partners & Places",ARCADIS CONSULTING (UK) LIMITED,25/01/2022,"£44,335.20",LAR,80131800,Real estate management services
"Ministry of Housing, Communities and Local Government",Homes England,OTHER PROFESSIONAL FEES,"Markets, Partners & Places",ARCADIS CONSULTING (UK) LIMITED,26/01/2022,"£2,400.00",LAR,80131800,Real estate management services
"Ministry of Housing, Communities and Local Government",Homes England,PROJECT MANAGEMENT,"Markets, Partners & Places",ARCADIS CONSULTING (UK) LIMITED,31/01/2022,"£75,193.20",LAR,80101600,Project management
"Ministry of Housing, Communities and Local Government",Homes England,MASTERPLANNING FEES,Development,HACT,04/01/2022,"£2,999.40",MIC,81101500,Civil Engineering
"Ministry of Housing, Communities and Local Government",Homes England,LEGAL FEES (PROGRAMME - CDEL),Development,HACT,04/01/2022,"£2,999.40",MIC,80121600,Business law services
"Ministry of Housing, Communities and Local Government",Homes England,PROPERTY SERVICES,Development,HARTNELL TAYLOR COOK LLP,04/01/2022,"£1,925.08",MED,80131800,Real estate management services
"Ministry of Housing, Communities and Local Government",Homes England,PROPERTY SERVICES,Development,HARTNELL TAYLOR COOK LLP,04/01/2022,"£1,776.76",MED,80131800,Real estate management services
"Ministry of Housing, Communities and Local Government",Homes England,PROPERTY SERVICES,Development,HARTNELL TAYLOR COOK LLP,04/01/2022,"£1,158.76",MED,80131800,Real estate management services
"Ministry of Housing, Communities and Local Government",Homes England,PROPERTY SERVICES,Development,HARTNELL TAYLOR COOK LLP,04/01/2022,"£2,169.18",MED,80131800,Real estate management services
"Ministry of Housing, Communities and Local Government",Homes England,PROPERTY SERVICES,Development,HARTNELL TAYLOR COOK LLP,04/01/2022,£849.76,MED,80131800,Real estate management services
"Ministry of Housing, Communities and Local Government",Homes England,PROPERTY SERVICES,Development,HARTNELL TAYLOR COOK LLP,04/01/2022,"£1,954.43",MED,80131800,Real estate management services
"Ministry of Housing, Communities and Local Government",Homes England,PROPERTY SERVICES,Development,HARTNELL TAYLOR COOK LLP,04/01/2022,"£1,189.66",MED,80131800,Real estate management services
"Ministry of Housing, Communities and Local Government",Homes England,PROPERTY SERVICES,Development,HARTNELL TAYLOR COOK LLP,04/01/2022,"£1,174.20",MED,80131800,Real estate management services
"Ministry of Housing, Communities and Local Government",Homes England,PROPERTY SERVICES,Development,HARTNELL TAYLOR COOK LLP,04/01/2022,"£1,236.00",MED,80131800,Real estate management services
"Ministry of Housing, Communities and Local Government",Homes England,PROPERTY SERVICES,Development,HARTNELL TAYLOR COOK LLP,04/01/2022,"£1,155.66",MED,80131800,Real estate management services
"Ministry of Housing, Communities and Local Government",Homes England,PROPERTY SERVICES,Development,HARTNELL TAYLOR COOK LLP,04/01/2022,£849.76,MED,80131800,Real estate management services
"Ministry of Housing, Communities and Local Government",Homes England,PROPERTY SERVICES,Development,HARTNELL TAYLOR COOK LLP,04/01/2022,"£3,286.84",MED,80131800,Real estate management services
"Ministry of Housing, Communities and Local Government",Homes England,PROPERTY SERVICES,Development,HARTNELL TAYLOR COOK LLP,04/01/2022,"£3,286.84",MED,80131800,Real estate management services
"Ministry of Housing, Communities and Local Government",Homes England,PROPERTY SERVICES,Development,HARTNELL TAYLOR COOK LLP,04/01/2022,"£1,359.60",MED,80131800,Real estate management services
"Ministry of Housing, Communities and Local Government",Homes England,PROPERTY SERVICES,Development,HARTNELL TAYLOR COOK LLP,04/01/2022,"£3,244.50",MED,80131800,Real estate management services
"Ministry of Housing, Communities and Local Government",Homes England,PROPERTY SERVICES,Development,HARTNELL TAYLOR COOK LLP,04/01/2022,"£1,174.20",MED,80131800,Real estate management services
"Ministry of Housing, Communities and Local Government",Homes England,OTHER PROFESSIONAL FEES,Development,HARTNELL TAYLOR COOK LLP,06/01/2022,"£1,273.08",MED,80131800,Real estate management services
"Ministry of Housing, Communities and Local Government",Homes England,ESTATE GENERAL MAINTENANCE,Development,HARTNELL TAYLOR COOK LLP,06/01/2022,£933.18,MED,72101500,Building maintenance and repair services
"Ministry of Housing, Communities and Local Government",Homes England,PROPERTY SERVICES,"Markets, Partners & Places",HARTNELL TAYLOR COOK LLP,17/01/2022,£710.70,MED,80131800,Real estate management services
"Ministry of Housing, Communities and Local Government",Homes England,PROPERTY SERVICES,"Markets, Partners & Places",HARTNELL TAYLOR COOK LLP,17/01/2022,£318.60,MED,80131800,Real estate management services
"Ministry of Housing, Communities and Local Government",Homes England,PROPERTY SERVICES,"Markets, Partners & Places",HARTNELL TAYLOR COOK LLP,17/01/2022,£710.70,MED,80131800,Real estate management services
"Ministry of Housing, Communities and Local Government",Homes England,PROPERTY SERVICES,"Markets, Partners & Places",HARTNELL TAYLOR COOK LLP,17/01/2022,£288.00,MED,80131800,Real estate management services
"Ministry of Housing, Communities and Local Government",Homes England,PROPERTY SERVICES,Development,HARTNELL TAYLOR COOK LLP,18/01/2022,"£3,708.00",MED,80131800,Real estate management services
"Ministry of Housing, Communities and Local Government",Homes England,PROPERTY SERVICES,Development,HARTNELL TAYLOR COOK LLP,18/01/2022,£955.80,MED,80131800,Real estate management services
"Ministry of Housing, Communities and Local Government",Homes England,PROPERTY SERVICES,"Markets, Partners & Places",HARTNELL TAYLOR COOK LLP,21/01/2022,"£4,566.60",MED,80131800,Real estate management services
"Ministry of Housing, Communities and Local Government",Homes England,PROPERTY SERVICES,"Markets, Partners & Places",HARTNELL TAYLOR COOK LLP,24/01/2022,£710.70,MED,80131800,Real estate management services
"Ministry of Housing, Communities and Local Government",Homes England,PROPERTY SERVICES,"Markets, Partners & Places",HARTNELL TAYLOR COOK LLP,24/01/2022,£252.00,MED,80131800,Real estate management services
"Ministry of Housing, Communities and Local Government",Homes England,MISC PROFESSIONAL FEES,"Markets, Partners & Places",HARTNELL TAYLOR COOK LLP,24/01/2022,"£2,025.00",MED,80131800,Real estate management services
"Ministry of Housing, Communities and Local Government",Homes England,PROPERTY SERVICES,Development,HARTNELL TAYLOR COOK LLP,24/01/2022,"£1,274.40",MED,80131800,Real estate management services
"Ministry of Housing, Communities and Local Government",Homes England,PROPERTY SERVICES,Development,HARTNELL TAYLOR COOK LLP,24/01/2022,"£1,134.00",MED,80131800,Real estate management services
"Ministry of Housing, Communities and Local Government",Homes England,PROPERTY SERVICES,"Markets, Partners & Places",HARTNELL TAYLOR COOK LLP,24/01/2022,"£1,512.00",MED,80131800,Real estate management services
"Ministry of Housing, Communities and Local Government",Homes England,ESTATE GENERAL MAINTENANCE,Development,HARTNELL TAYLOR COOK LLP,24/01/2022,£637.20,MED,72101500,Building maintenance and repair services
"Ministry of Housing, Communities and Local Government",Homes England,STAFF RECRUITMENT COSTS,Corporate Resources,HAYMARKET MEDIA GROUP,06/01/2022,"£1,425.60",LAR,80111700,Personnel Recruitment
"Ministry of Housing, Communities and Local Government",Homes England,MISC PROFESSIONAL FEES,Investment,HASTINGS BOROUGH COUNCIL,27/01/2022,"£11,197.50",PUB,None,Grants
"Ministry of Housing, Communities and Local Government",Homes England,CAP GRNTS TO LOCAL AUTHORITIES,Investment,HASTINGS BOROUGH COUNCIL,27/01/2022,"£10,268.87",PUB,None,Grants
"Ministry of Housing, Communities and Local Government",Homes England,ESTATE GENERAL MAINTENANCE,Development,HYDROSURE LIMITED,05/01/2022,£900.00,SMA,72101500,Building maintenance and repair services
"Ministry of Housing, Communities and Local Government",Homes England,ST FUND LOANS ADDITIONS,Investment,HOLROYD HOMES (FOLD FARM) LTD,12/01/2022,"£266,957.07",MIC,None,Loans
"Ministry of Housing, Communities and Local Government",Homes England,MISC PROFESSIONAL FEES,Investment,HOUSING GROWTH PARTNERSHIP II LP,12/01/2022,"£228,250.00",MIC,None,Loans
"Ministry of Housing, Communities and Local Government",Homes England,ST FUND LOANS ADDITIONS,Investment,HH AUGHTON LIMITED,13/01/2022,"£68,136.51",MIC,None,Loans
"Ministry of Housing, Communities and Local Government",Homes England,ST FUND LOANS ADDITIONS,Investment,HIGHBROOK HOMES FAIRFIELD LIMITED,17/01/2022,"£30,864.62",SMA,None,Loans
"Ministry of Housing, Communities and Local Government",Homes England,ST FUND LOANS ADDITIONS,Investment,HOLLINS HOMES (TILSTOCK) LTD,27/01/2022,"£130,987.00",SMA,None,Loans
"Ministry of Housing, Communities and Local Government",Homes England,LEGAL FEES (PROGRAMME - RDEL),"Markets, Partners & Places",HCR HEWITSONS,05/01/2022,"£3,697.20",MED,80121600,Business law services
"Ministry of Housing, Communities and Local Government",Homes England,DISPOSAL FEES - LEGAL,Development,HCR HEWITSONS,05/01/2022,£342.00,MED,80121600,Business law services
"Ministry of Housing, Communities and Local Government",Homes England,DISPOSAL FEES - LEGAL,Development,HCR HEWITSONS,05/01/2022,£456.00,MED,80121600,Business law services
"Ministry of Housing, Communities and Local Government",Homes England,DISPOSAL FEES - LEGAL,"Markets, Partners & Places",HCR HEWITSONS,05/01/2022,£342.00,MED,80121600,Business law services
"Ministry of Housing, Communities and Local Government",Homes England,DISPOSAL FEES - LEGAL,Development,HCR HEWITSONS,05/01/2022,£342.00,MED,80121600,Business law services
"Ministry of Housing, Communities and Local Government",Homes England,DISPOSAL FEES - LEGAL,"Markets, Partners & Places",HCR HEWITSONS,05/01/2022,"£1,440.00",MED,80121600,Business law services
"Ministry of Housing, Communities and Local Government",Homes England,DISPOSAL FEES - LEGAL,Development,HCR HEWITSONS,05/01/2022,"£4,962.00",MED,80121600,Business law services
"Ministry of Housing, Communities and Local Government",Homes England,LEGAL FEES (ADMIN ONLY),Corporate Resources,HCR HEWITSONS,06/01/2022,£630.00,MED,80121600,Business law services
"Ministry of Housing, Communities and Local Government",Homes England,LEGAL FEES (PROGRAMME - RDEL),"Markets, Partners & Places",HCR HEWITSONS,06/01/2022,£342.00,MED,80121600,Business law services
"Ministry of Housing, Communities and Local Government",Homes England,DISPOSAL FEES - LEGAL,"Markets, Partners & Places",HCR HEWITSONS,06/01/2022,£408.00,MED,80121600,Business law services
"Ministry of Housing, Communities and Local Government",Homes England,MISC PROFESSIONAL FEES,"Markets, Partners & Places",HCR HEWITSONS,07/01/2022,"£2,394.00",MED,80121600,Business law services
"Ministry of Housing, Communities and Local Government",Homes England,DISPOSAL FEES - LEGAL,Development,HCR HEWITSONS,07/01/2022,"£1,368.00",MED,80121600,Business law services
"Ministry of Housing, Communities and Local Government",Homes England,DISPOSAL FEES - LEGAL,"Markets, Partners & Places",HCR HEWITSONS,07/01/2022,"£1,026.00",MED,80121600,Business law services
"Ministry of Housing, Communities and Local Government",Homes England,DISPOSAL FEES - LEGAL,"Markets, Partners & Places",HCR HEWITSONS,07/01/2022,£450.00,MED,80121600,Business law services
"Ministry of Housing, Communities and Local Government",Homes England,DISPOSAL FEES - LEGAL,"Markets, Partners & Places",HCR HEWITSONS,07/01/2022,£570.00,MED,80121600,Business law services
"Ministry of Housing, Communities and Local Government",Homes England,DISPOSAL FEES - LEGAL,"Markets, Partners & Places",HCR HEWITSONS,10/01/2022,"£3,554.40",MED,80121600,Business law services
"Ministry of Housing, Communities and Local Government",Homes England,DISPOSAL FEES - LEGAL,"Markets, Partners & Places",HCR HEWITSONS,10/01/2022,"£2,850.00",MED,80121600,Business law services
"Ministry of Housing, Communities and Local Government",Homes England,DISPOSAL FEES - LEGAL,"Markets, Partners & Places",HCR HEWITSONS,10/01/2022,"£1,938.00",MED,80121600,Business law services
"Ministry of Housing, Communities and Local Government",Homes England,DISPOSAL FEES - LEGAL,"Markets, Partners & Places",HCR HEWITSONS,10/01/2022,"£1,602.00",MED,80121600,Business law services
"Ministry of Housing, Communities and Local Government",Homes England,LEGAL FEES (PROGRAMME - RDEL),"Markets, Partners & Places",HCR HEWITSONS,10/01/2022,£684.00,MED,80121600,Business law services
"Ministry of Housing, Communities and Local Government",Homes England,LEGAL FEES (PROGRAMME - RDEL),"Markets, Partners & Places",HCR HEWITSONS,10/01/2022,£570.00,MED,80121600,Business law services
"Ministry of Housing, Communities and Local Government",Homes England,DISPOSAL FEES - LEGAL,"Markets, Partners & Places",HCR HEWITSONS,10/01/2022,"£3,798.00",MED,80121600,Business law services
"Ministry of Housing, Communities and Local Government",Homes England,DISPOSAL FEES - LEGAL,"Markets, Partners & Places",HCR HEWITSONS,10/01/2022,"£1,800.00",MED,80121600,Business law services
"Ministry of Housing, Communities and Local Government",Homes England,DISPOSAL FEES - LEGAL,"Markets, Partners & Places",HCR HEWITSONS,10/01/2022,£456.00,MED,80121600,Business law services
"Ministry of Housing, Communities and Local Government",Homes England,DISPOSAL FEES - LEGAL,"Markets, Partners & Places",HCR HEWITSONS,10/01/2022,£750.00,MED,80121600,Business law services
"Ministry of Housing, Communities and Local Government",Homes England,DISPOSAL FEES - LEGAL,Development,HCR HEWITSONS,10/01/2022,"£1,368.00",MED,80121600,Business law services
"Ministry of Housing, Communities and Local Government",Homes England,DISPOSAL FEES - LEGAL,"Markets, Partners & Places",HCR HEWITSONS,10/01/2022,"£2,052.00",MED,80121600,Business law services
"Ministry of Housing, Communities and Local Government",Homes England,DISPOSAL FEES - LEGAL,Development,HCR HEWITSONS,10/01/2022,£570.00,MED,80121600,Business law services
"Ministry of Housing, Communities and Local Government",Homes England,LEGAL FEES (PROGRAMME - RDEL),"Markets, Partners & Places",HCR HEWITSONS,13/01/2022,£342.00,MED,80121600,Business law services
"Ministry of Housing, Communities and Local Government",Homes England,DISPOSAL FEES - LEGAL,"Markets, Partners & Places",HCR HEWITSONS,17/01/2022,£912.00,MED,80121600,Business law services
"Ministry of Housing, Communities and Local Government",Homes England,LEGAL FEES (PROGRAMME - CDEL),Development,HCR HEWITSONS,18/01/2022,"£2,363.40",MED,80121600,Business law services
"Ministry of Housing, Communities and Local Government",Homes England,LEGAL FEES (ADMIN ONLY),Corporate Resources,HCR HEWITSONS,21/01/2022,£270.00,MED,80121600,Business law services
"Ministry of Housing, Communities and Local Government",Homes England,PROF FEES LOANS CAPITALISED,Investment,HCR HEWITSONS,21/01/2022,"£10,287.60",MED,80121600,Business law services
"Ministry of Housing, Communities and Local Government",Homes England,LEGAL FEES (PROGRAMME - CDEL),Development,HCR HEWITSONS,27/01/2022,£540.00,MED,80121600,Business law services
"Ministry of Housing, Communities and Local Government",Homes England,DISPOSAL FEES - LEGAL,"Markets, Partners & Places",HCR HEWITSONS,27/01/2022,"£7,275.60",MED,80121600,Business law services
"Ministry of Housing, Communities and Local Government",Homes England,DISPOSAL FEES - LEGAL,"Markets, Partners & Places",HCR HEWITSONS,28/01/2022,"£1,248.00",MED,80121600,Business law services
"Ministry of Housing, Communities and Local Government",Homes England,LEGAL FEES (PROGRAMME - RDEL),Development,HCR HEWITSONS,31/01/2022,"£1,026.00",MED,80121600,Business law services
"Ministry of Housing, Communities and Local Government",Homes England,LEGAL FEES (PROGRAMME - RDEL),"Markets, Partners & Places",HCR HEWITSONS,31/01/2022,"£1,026.00",MED,80121600,Business law services
"Ministry of Housing, Communities and Local Government",Homes England,DISPOSAL FEES - LEGAL,Development,HCR HEWITSONS,31/01/2022,"£3,222.00",MED,80121600,Business law services
"Ministry of Housing, Communities and Local Government",Homes England,CAP GRNTS TO LOCAL AUTHORITIES,Investment,HERTFORDSHIRE COUNTY COUNCIL,27/01/2022,"£152,771.13",PUB,None,Grants
"Ministry of Housing, Communities and Local Government",Homes England,REV GRNTS TO LOCAL AUTHORITIES,Investment,IMPAKT HOUSING & SUPPORT LTD,19/01/2022,"£36,000.00",MED,None,Grants
"Ministry of Housing, Communities and Local Government",Homes England,REV GRNTS TO LOCAL AUTHORITIES,Investment,IMPAKT HOUSING & SUPPORT LTD,21/01/2022,"£40,000.00",MED,None,Grants
"Ministry of Housing, Communities and Local Government",Homes England,REV GRNTS TO LOCAL AUTHORITIES,Investment,IMPAKT HOUSING & SUPPORT LTD,24/01/2022,"£4,000.00",MED,None,Grants
"Ministry of Housing, Communities and Local Government",Homes England,REV GRNTS TO LOCAL AUTHORITIES,Investment,IMPAKT HOUSING & SUPPORT LTD,26/01/2022,"£36,000.00",MED,None,Grants
"Ministry of Housing, Communities and Local Government",Homes England,REV GRNTS TO LOCAL AUTHORITIES,Investment,IMPAKT HOUSING & SUPPORT LTD,27/01/2022,"£40,000.00",MED,None,Grants
"Ministry of Housing, Communities and Local Government",Homes England,REV GRNTS TO LOCAL AUTHORITIES,Investment,IMPAKT HOUSING & SUPPORT LTD,31/01/2022,"£4,000.00",MED,None,Grants
"Ministry of Housing, Communities and Local Government",Homes England,LANDSCAPING & PLANTS,Development,INDUSTRIAL LANDSCAPES LIMITED,18/01/2022,£546.31,SMA,10161600,Floral plants
"Ministry of Housing, Communities and Local Government",Homes England,MISC PROFESSIONAL FEES,Investment,IFF RESEARCH LTD,05/01/2022,"£27,594.49",LAR,80101500,Business and corporate management consultation services
"Ministry of Housing, Communities and Local Government",Homes England,MISC PROFESSIONAL FEES,Corporate Resources,INVESTIGO LIMITED,04/01/2022,"£15,300.00",LAR,80111600,Temporary personnel services
"Ministry of Housing, Communities and Local Government",Homes England,MISC PROFESSIONAL FEES,Corporate Resources,INVESTIGO LIMITED,04/01/2022,"£9,480.00",LAR,80111600,Temporary personnel services
"Ministry of Housing, Communities and Local Government",Homes England,MISC PROFESSIONAL FEES,Corporate Resources,INVESTIGO LIMITED,04/01/2022,"£10,800.00",LAR,80111600,Temporary personnel services
"Ministry of Housing, Communities and Local Government",Homes England,MISC PROFESSIONAL FEES,Corporate Resources,INVESTIGO LIMITED,04/01/2022,"£12,420.00",LAR,80111600,Temporary personnel services
"Ministry of Housing, Communities and Local Government",Homes England,AGENCY STAFF,Cido,INVESTIGO LIMITED,05/01/2022,"£3,591.54",LAR,80111600,Temporary personnel services
"Ministry of Housing, Communities and Local Government",Homes England,AGENCY STAFF,Cido,INVESTIGO LIMITED,05/01/2022,"£2,514.08",LAR,80111600,Temporary personnel services
"Ministry of Housing, Communities and Local Government",Homes England,AGENCY STAFF,Cido,INVESTIGO LIMITED,05/01/2022,"£2,154.92",LAR,80111600,Temporary personnel services
"Ministry of Housing, Communities and Local Government",Homes England,AGENCY STAFF,Cido,INVESTIGO LIMITED,05/01/2022,"£3,591.54",LAR,80111600,Temporary personnel services
"Ministry of Housing, Communities and Local Government",Homes England,AGENCY STAFF,Cido,INVESTIGO LIMITED,05/01/2022,"£3,591.54",LAR,80111600,Temporary personnel services
"Ministry of Housing, Communities and Local Government",Homes England,AGENCY STAFF,Cido,INVESTIGO LIMITED,05/01/2022,"£3,591.54",LAR,80111600,Temporary personnel services
"Ministry of Housing, Communities and Local Government",Homes England,AGENCY STAFF,Cido,INVESTIGO LIMITED,05/01/2022,"£5,280.00",LAR,80111600,Temporary personnel services
"Ministry of Housing, Communities and Local Government",Homes England,AGENCY STAFF,Cido,INVESTIGO LIMITED,05/01/2022,"£5,280.00",LAR,80111600,Temporary personnel services
"Ministry of Housing, Communities and Local Government",Homes England,AGENCY STAFF,Cido,INVESTIGO LIMITED,05/01/2022,"£5,280.00",LAR,80111600,Temporary personnel services
"Ministry of Housing, Communities and Local Government",Homes England,AGENCY STAFF,Cido,INVESTIGO LIMITED,05/01/2022,"£5,280.00",LAR,80111600,Temporary personnel services
"Ministry of Housing, Communities and Local Government",Homes England,AGENCY STAFF,Cido,INVESTIGO LIMITED,10/01/2022,"£15,800.40",LAR,80111600,Temporary personnel services
"Ministry of Housing, Communities and Local Government",Homes England,AGENCY STAFF,Cido,INVESTIGO LIMITED,10/01/2022,"£10,054.80",LAR,80111600,Temporary personnel services
"Ministry of Housing, Communities and Local Government",Homes England,AGENCY STAFF,Cido,INVESTIGO LIMITED,10/01/2022,"£3,933.00",LAR,80111600,Temporary personnel services
"Ministry of Housing, Communities and Local Government",Homes England,AGENCY STAFF,Cido,INVESTIGO LIMITED,10/01/2022,"£3,933.00",LAR,80111600,Temporary personnel services
"Ministry of Housing, Communities and Local Government",Homes England,AGENCY STAFF,Cido,INVESTIGO LIMITED,10/01/2022,"£3,933.00",LAR,80111600,Temporary personnel services
"Ministry of Housing, Communities and Local Government",Homes England,AGENCY STAFF,Cido,INVESTIGO LIMITED,10/01/2022,"£3,933.00",LAR,80111600,Temporary personnel services
"Ministry of Housing, Communities and Local Government",Homes England,AGENCY STAFF,Cido,INVESTIGO LIMITED,10/01/2022,"£3,933.00",LAR,80111600,Temporary personnel services
"Ministry of Housing, Communities and Local Government",Homes England,AGENCY STAFF,Cido,INVESTIGO LIMITED,10/01/2022,"£3,933.00",LAR,80111600,Temporary personnel services
"Ministry of Housing, Communities and Local Government",Homes England,AGENCY STAFF,Cido,INVESTIGO LIMITED,10/01/2022,"£3,591.54",LAR,80111600,Temporary personnel services
"Ministry of Housing, Communities and Local Government",Homes England,AGENCY STAFF,Cido,INVESTIGO LIMITED,10/01/2022,"£3,591.54",LAR,80111600,Temporary personnel services
"Ministry of Housing, Communities and Local Government",Homes England,AGENCY STAFF,Cido,INVESTIGO LIMITED,13/01/2022,"£5,280.00",LAR,80111600,Temporary personnel services
"Ministry of Housing, Communities and Local Government",Homes England,AGENCY STAFF,Cido,INVESTIGO LIMITED,13/01/2022,"£5,280.00",LAR,80111600,Temporary personnel services
"Ministry of Housing, Communities and Local Government",Homes England,AGENCY STAFF,Cido,INVESTIGO LIMITED,13/01/2022,"£2,112.00",LAR,80111600,Temporary personnel services
"Ministry of Housing, Communities and Local Government",Homes England,AGENCY STAFF,Cido,INVESTIGO LIMITED,13/01/2022,"£5,280.00",LAR,80111600,Temporary personnel services
"Ministry of Housing, Communities and Local Government",Homes England,AGENCY STAFF,Cido,INVESTIGO LIMITED,20/01/2022,"£12,927.60",LAR,80111600,Temporary personnel services
"Ministry of Housing, Communities and Local Government",Homes England,AGENCY STAFF,Cido,INVESTIGO LIMITED,20/01/2022,"£7,900.20",LAR,80111600,Temporary personnel services
"Ministry of Housing, Communities and Local Government",Homes England,AGENCY STAFF,Cido,INVESTIGO LIMITED,21/01/2022,"£3,933.00",LAR,80111600,Temporary personnel services
"Ministry of Housing, Communities and Local Government",Homes England,AGENCY STAFF,Cido,INVESTIGO LIMITED,21/01/2022,"£3,933.00",LAR,80111600,Temporary personnel services
"Ministry of Housing, Communities and Local Government",Homes England,AGENCY STAFF,Cido,INVESTIGO LIMITED,24/01/2022,"£5,643.00",LAR,80111600,Temporary personnel services
"Ministry of Housing, Communities and Local Government",Homes England,TRAINING COURSES & CONFERENCES,Chief Risk Officer,INSPIRED EXCHANGE,19/01/2022,"£1,800.00",MIC,86101800,In service training and manpower development
"Ministry of Housing, Communities and Local Government",Homes England,AGENCY STAFF,Cido,INTERQUEST GROUP UK LIMITED,10/01/2022,"£3,600.00",MED,80111600,Temporary personnel services
"Ministry of Housing, Communities and Local Government",Homes England,AGENCY STAFF,Cido,INTERQUEST GROUP UK LIMITED,10/01/2022,"£2,880.00",MED,80111600,Temporary personnel services
"Ministry of Housing, Communities and Local Government",Homes England,AGENCY STAFF,Cido,INTERQUEST GROUP UK LIMITED,10/01/2022,"£12,528.00",MED,80111600,Temporary personnel services
"Ministry of Housing, Communities and Local Government",Homes England,AGENCY STAFF,Cido,INTERQUEST GROUP UK LIMITED,10/01/2022,"£14,400.00",MED,80111600,Temporary personnel services
"Ministry of Housing, Communities and Local Government",Homes England,AGENCY STAFF,Cido,INTERQUEST GROUP UK LIMITED,10/01/2022,"£15,960.00",MED,80111600,Temporary personnel services
"Ministry of Housing, Communities and Local Government",Homes England,AGENCY STAFF,Cido,INTERQUEST GROUP UK LIMITED,12/01/2022,"£2,880.00",MED,80111600,Temporary personnel services
"Ministry of Housing, Communities and Local Government",Homes England,AGENCY STAFF,Cido,INTERQUEST GROUP UK LIMITED,12/01/2022,"£8,386.56",MED,80111600,Temporary personnel services
"Ministry of Housing, Communities and Local Government",Homes England,BESPOKE DEVELOPMENT SUPPORT,Cido,INTERQUEST GROUP UK LIMITED,12/01/2022,"£3,062.40",MED,80111600,Temporary personnel services
"Ministry of Housing, Communities and Local Government",Homes England,BESPOKE DEVELOPMENT SUPPORT,Cido,INTERQUEST GROUP UK LIMITED,13/01/2022,"£12,480.00",MED,80111600,Temporary personnel services
"Ministry of Housing, Communities and Local Government",Homes England,PACKAGE MAINTENANCE & SUBSCRIP,Cido,INSIGHT DIRECT (UK) LTD,06/01/2022,"£39,072.00",LAR,43231500,Business function specific software
"Ministry of Housing, Communities and Local Government",Homes England,DISPOSAL FEES - PROPERTY AGENT,Development,JONES LANG LASALLE,07/01/2022,"£8,880.00",LAR,80131600,Sale of property and building
"Ministry of Housing, Communities and Local Government",Homes England,PROF FEES LOANS CAPITALISED,Investment,JONES LANG LASALLE,25/01/2022,"£1,800.00",LAR,80131800,Real estate management services
"Ministry of Housing, Communities and Local Government",Homes England,DISPOSAL FEES - PROPERTY AGENT,Development,JONES LANG LASALLE,31/01/2022,"£2,400.00",LAR,80131600,Sale of property and building
"Ministry of Housing, Communities and Local Government",Homes England,ST FUND LOANS ADDITIONS,Investment,JG CHATHAM LIMITED,05/01/2022,"£2,378,989.00",SMA,None,Loans
"Ministry of Housing, Communities and Local Government",Homes England,ST FUND LOANS ADDITIONS,Investment,JG CHATHAM LIMITED,24/01/2022,"£2,775,601.27",SMA,None,Loans
"Ministry of Housing, Communities and Local Government",Homes England,ST FUND LOANS ADDITIONS,Investment,JTJ DEVELOPMENTS LTD,24/01/2022,"£33,094.80",SMA,None,Loans
"Ministry of Housing, Communities and Local Government",Homes England,CONTRACT WORKS,Development,JACKSON CIVIL ENGINEERING GROUP LTD,12/01/2022,"£492,362.53",LAR,72103300,Infrastructure maintenance and repair services
"Ministry of Housing, Communities and Local Government",Homes England,CONTRACT WORKS,Development,JACKSON CIVIL ENGINEERING GROUP LTD,19/01/2022,"£246,337.68",LAR,72103300,Infrastructure maintenance and repair services
"Ministry of Housing, Communities and Local Government",Homes England,ESTATE GENERAL MAINTENANCE,Development,JB LANDSCAPE & PROPERTY MAINTENANCE LTD,06/01/2022,£455.00,SMA,72101500,Building maintenance and repair services
"Ministry of Housing, Communities and Local Government",Homes England,ESTATE GENERAL MAINTENANCE,Development,JB LANDSCAPE & PROPERTY MAINTENANCE LTD,06/01/2022,£821.50,SMA,72101500,Building maintenance and repair services
"Ministry of Housing, Communities and Local Government",Homes England,ESTATE GENERAL MAINTENANCE,Development,JB LANDSCAPE & PROPERTY MAINTENANCE LTD,06/01/2022,£955.50,SMA,72101500,Building maintenance and repair services
"Ministry of Housing, Communities and Local Government",Homes England,ESTATE GENERAL MAINTENANCE,Development,JB LANDSCAPE & PROPERTY MAINTENANCE LTD,06/01/2022,£403.00,SMA,72101500,Building maintenance and repair services
"Ministry of Housing, Communities and Local Government",Homes England,ESTATE GENERAL MAINTENANCE,Development,JB LANDSCAPE & PROPERTY MAINTENANCE LTD,19/01/2022,£674.36,SMA,72101500,Building maintenance and repair services
"Ministry of Housing, Communities and Local Government",Homes England,ESTATE GENERAL MAINTENANCE,"Markets, Partners & Places",JB LANDSCAPE & PROPERTY MAINTENANCE LTD,24/01/2022,"£1,248.00",SMA,72101500,Building maintenance and repair services
"Ministry of Housing, Communities and Local Government",Homes England,ST FUND LOANS ADDITIONS,Investment,JWK DEVELOPMENTS (YORKSHIRE) LTD,14/01/2022,"£20,748.00",MIC,None,Loans
"Ministry of Housing, Communities and Local Government",Homes England,PROPERTY SERVICES,Development,KNIGHT FRANK LLP,04/01/2022,£969.60,LAR,80131800,Real estate management services
"Ministry of Housing, Communities and Local Government",Homes England,PROPERTY SERVICES,Development,KNIGHT FRANK LLP,07/01/2022,"£4,800.00",LAR,80131800,Real estate management services
"Ministry of Housing, Communities and Local Government",Homes England,OTHER PROFESSIONAL FEES,Development,KNIGHT FRANK LLP,31/01/2022,"£6,000.00",LAR,80131800,Real estate management services
"Ministry of Housing, Communities and Local Government",Homes England,FENCE MAINTENANCE,Development,KMS COMMERCIAL PROPERTY MAINTENANCE LTD,28/01/2022,£273.60,SMA,72102900,Facility maintenance and repair services
"Ministry of Housing, Communities and Local Government",Homes England,ESTATE GENERAL MAINTENANCE,Development,KMS COMMERCIAL PROPERTY MAINTENANCE LTD,28/01/2022,"£4,722.00",SMA,72101500,Building maintenance and repair services
"Ministry of Housing, Communities and Local Government",Homes England,L&OD STRATEGIC - HR USE ONLY,Corporate Resources,CSL - KPMG LLP,04/01/2022,"£2,030.40",LAR,86101800,In service training and manpower development
"Ministry of Housing, Communities and Local Government",Homes England,L&OD STRATEGIC - HR USE ONLY,Corporate Resources,CSL - KPMG LLP,21/01/2022,"£3,480.00",LAR,86101800,In service training and manpower development
"Ministry of Housing, Communities and Local Government",Homes England,L&OD STRATEGIC - HR USE ONLY,Corporate Resources,CSL - KPMG LLP,31/01/2022,"£2,030.40",LAR,86101800,In service training and manpower development
"Ministry of Housing, Communities and Local Government",Homes England,MISC PROFESSIONAL FEES,Cido,KAINOS SOFTWARE LTD,10/01/2022,"£39,529.76",LAR,80101500,Business and corporate management consultation services
"Ministry of Housing, Communities and Local Government",Homes England,MISC PROFESSIONAL FEES,Cido,KAINOS SOFTWARE LTD,10/01/2022,"£76,078.24",LAR,80101500,Business and corporate management consultation services
"Ministry of Housing, Communities and Local Government",Homes England,MISC PROFESSIONAL FEES,Cido,KAINOS SOFTWARE LTD,10/01/2022,"£43,931.04",LAR,80101500,Business and corporate management consultation services
"Ministry of Housing, Communities and Local Government",Homes England,MISC PROFESSIONAL FEES,Cido,KAINOS SOFTWARE LTD,13/01/2022,"£123,768.16",LAR,80101500,Business and corporate management consultation services
"Ministry of Housing, Communities and Local Government",Homes England,CAP GRNTS TO LOCAL AUTHORITIES,Investment,BOROUGH COUNCIL OF KINGS LYNN & WEST NORFOLK,26/01/2022,"£18,029.53",PUB,None,Grants
"Ministry of Housing, Communities and Local Government",Homes England,CAP GRNTS TO LOCAL AUTHORITIES,Investment,BOROUGH COUNCIL OF KINGS LYNN & WEST NORFOLK,27/01/2022,"£137,526.30",PUB,None,Grants
"Ministry of Housing, Communities and Local Government",Homes England,MISC PROFESSIONAL FEES,Development,KENT ARCHITECTURE CENTRE T/A DESIGN SOUTHEAST,07/01/2022,"£3,534.00",SMA,80131800,Real estate management services
"Ministry of Housing, Communities and Local Government",Homes England,CAP GRNTS TO LOCAL AUTHORITIES,Investment,KENT COUNTY COUNCIL,24/01/2022,"£115,132.57",PUB,None,Grants
"Ministry of Housing, Communities and Local Government",Homes England,TRAINING COURSES & CONFERENCES,Corporate Resources,THE KNOWLEDGE ACADEMY LIMITED,24/01/2022,"£3,600.00",MED,86101800,In service training and manpower development
"Ministry of Housing, Communities and Local Government",Homes England,CAP GRNTS TO LOCAL AUTHORITIES,Investment,KIRKLEES COUNCIL,21/01/2022,"£486,052.00",PUB,None,Grants
"Ministry of Housing, Communities and Local Government",Homes England,RI - MONIITORING SURVEYOR FEES,Investment,LAMBERT SMITH HAMPTON,04/01/2022,"£1,140.00",LAR,81101500,Civil Engineering
"Ministry of Housing, Communities and Local Government",Homes England,RI - MONIITORING SURVEYOR FEES,Investment,LAMBERT SMITH HAMPTON,04/01/2022,£840.00,LAR,81101500,Civil Engineering
"Ministry of Housing, Communities and Local Government",Homes England,RI - MONIITORING SURVEYOR FEES,Investment,LAMBERT SMITH HAMPTON,04/01/2022,£960.00,LAR,81101500,Civil Engineering
"Ministry of Housing, Communities and Local Government",Homes England,RI - MONIITORING SURVEYOR FEES,Investment,LAMBERT SMITH HAMPTON,04/01/2022,£840.00,LAR,81101500,Civil Engineering
"Ministry of Housing, Communities and Local Government",Homes England,DISPOSAL FEES - PROPERTY AGENT,"Markets, Partners & Places",LAMBERT SMITH HAMPTON,05/01/2022,"£7,800.00",LAR,80131600,Sale of property and building
"Ministry of Housing, Communities and Local Government",Homes England,OTHER PROFESSIONAL FEES,"Markets, Partners & Places",LAMBERT SMITH HAMPTON,07/01/2022,"£8,100.00",LAR,80131800,Real estate management services
"Ministry of Housing, Communities and Local Government",Homes England,RI - MONIITORING SURVEYOR FEES,Investment,LAMBERT SMITH HAMPTON,07/01/2022,"£1,140.00",LAR,81101500,Civil Engineering
"Ministry of Housing, Communities and Local Government",Homes England,ESTATE AGENT FEES,"Markets, Partners & Places",LAMBERT SMITH HAMPTON,07/01/2022,£900.00,LAR,80131600,Sale of property and building
"Ministry of Housing, Communities and Local Government",Homes England,RI - MONIITORING SURVEYOR FEES,Investment,LAMBERT SMITH HAMPTON,07/01/2022,"£1,560.00",LAR,81101500,Civil Engineering
"Ministry of Housing, Communities and Local Government",Homes England,DISPOSAL FEES - PROPERTY AGENT,Development,LAMBERT SMITH HAMPTON,07/01/2022,"£5,406.00",LAR,80131600,Sale of property and building
"Ministry of Housing, Communities and Local Government",Homes England,RI - MONIITORING SURVEYOR FEES,Investment,LAMBERT SMITH HAMPTON,21/01/2022,£840.00,LAR,81101500,Civil Engineering
"Ministry of Housing, Communities and Local Government",Homes England,RI - MONIITORING SURVEYOR FEES,Investment,LAMBERT SMITH HAMPTON,21/01/2022,£840.00,LAR,81101500,Civil Engineering
"Ministry of Housing, Communities and Local Government",Homes England,DISPOSAL FEES - PROPERTY AGENT,Development,LAMBERT SMITH HAMPTON,28/01/2022,"£2,400.00",LAR,80131600,Sale of property and building
"Ministry of Housing, Communities and Local Government",Homes England,RI - MONIITORING SURVEYOR FEES,Investment,LAMBERT SMITH HAMPTON,28/01/2022,"£1,140.00",LAR,81101500,Civil Engineering
"Ministry of Housing, Communities and Local Government",Homes England,RI - MONIITORING SURVEYOR FEES,Investment,LAMBERT SMITH HAMPTON,28/01/2022,"£1,140.00",LAR,81101500,Civil Engineering
"Ministry of Housing, Communities and Local Government",Homes England,DISPOSAL FEES - PROPERTY AGENT,Development,LAMBERT SMITH HAMPTON,28/01/2022,"£21,606.00",LAR,80131600,Sale of property and building
"Ministry of Housing, Communities and Local Government",Homes England,DISPOSAL FEES - PROPERTY AGENT,Development,LAMBERT SMITH HAMPTON,28/01/2022,"£1,170.00",LAR,80131600,Sale of property and building
"Ministry of Housing, Communities and Local Government",Homes England,DISPOSAL FEES - PROPERTY AGENT,Development,LAMBERT SMITH HAMPTON,31/01/2022,£420.00,LAR,80131600,Sale of property and building
"Ministry of Housing, Communities and Local Government",Homes England,CAPITAL GRANTS TO RPs,Investment,ORWELL HOUSING ASSOCIATION LIMITED,28/01/2022,"£220,000.00",LAR,None,Grants
"Ministry of Housing, Communities and Local Government",Homes England,CAPITAL GRANTS TO RPs,Investment,ORWELL HOUSING ASSOCIATION LIMITED,28/01/2022,"£56,000.00",LAR,None,Grants
"Ministry of Housing, Communities and Local Government",Homes England,CAPITAL GRANTS TO RPs,Investment,THE RIVERSIDE GROUP,25/01/2022,"£9,000.00",LAR,None,Grants
"Ministry of Housing, Communities and Local Government",Homes England,CAPITAL GRANTS TO RPs,Investment,THE RIVERSIDE GROUP,25/01/2022,"£9,000.00",LAR,None,Grants
"Ministry of Housing, Communities and Local Government",Homes England,CAPITAL GRANTS TO RPs,Investment,THE RIVERSIDE GROUP,25/01/2022,"£9,000.00",LAR,None,Grants
"Ministry of Housing, Communities and Local Government",Homes England,CAPITAL GRANTS TO RPs,Investment,THE RIVERSIDE GROUP,25/01/2022,"£9,000.00",LAR,None,Grants
"Ministry of Housing, Communities and Local Government",Homes England,CAPITAL GRANTS TO RPs,Investment,THE RIVERSIDE GROUP,25/01/2022,"£9,000.00",LAR,None,Grants
"Ministry of Housing, Communities and Local Government",Homes England,CAPITAL GRANTS TO RPs,Investment,THE RIVERSIDE GROUP,25/01/2022,"£9,000.00",LAR,None,Grants
"Ministry of Housing, Communities and Local Government",Homes England,CAPITAL GRANTS TO RPs,Investment,THE RIVERSIDE GROUP,25/01/2022,"£9,000.00",LAR,None,Grants
"Ministry of Housing, Communities and Local Government",Homes England,CAPITAL GRANTS TO RPs,Investment,THE RIVERSIDE GROUP,25/01/2022,"£9,000.00",LAR,None,Grants
"Ministry of Housing, Communities and Local Government",Homes England,CAPITAL GRANTS TO RPs,Investment,THE RIVERSIDE GROUP,25/01/2022,"£9,000.00",LAR,None,Grants
"Ministry of Housing, Communities and Local Government",Homes England,CAPITAL GRANTS TO RPs,Investment,THE RIVERSIDE GROUP,25/01/2022,"£9,000.00",LAR,None,Grants
"Ministry of Housing, Communities and Local Government",Homes England,CAPITAL GRANTS TO RPs,Investment,THE RIVERSIDE GROUP,25/01/2022,"£9,000.00",LAR,None,Grants
"Ministry of Housing, Communities and Local Government",Homes England,CAPITAL GRANTS TO RPs,Investment,THE RIVERSIDE GROUP,25/01/2022,"£9,000.00",LAR,None,Grants
"Ministry of Housing, Communities and Local Government",Homes England,CAPITAL GRANTS TO RPs,Investment,THE RIVERSIDE GROUP,25/01/2022,"£9,000.00",LAR,None,Grants
"Ministry of Housing, Communities and Local Government",Homes England,CAPITAL GRANTS TO RPs,Investment,THE RIVERSIDE GROUP,25/01/2022,"£9,000.00",LAR,None,Grants
"Ministry of Housing, Communities and Local Government",Homes England,CONTRACT INSURANCE,Development,LOCKTON COMPANIES LLP,27/01/2022,"£8,950.00",LAR,84131500,Insurance services for structures and property and possessions
"Ministry of Housing, Communities and Local Government",Homes England,CONTRACT INSURANCE,Development,LOCKTON COMPANIES LLP,27/01/2022,"£3,920.00",LAR,84131500,Insurance services for structures and property and possessions
"Ministry of Housing, Communities and Local Government",Homes England,CAPITAL GRANTS TO RPs,Investment,SANCTUARY HOUSING ASSOCIATION,13/01/2022,"£250,000.00",LAR,None,Grants
"Ministry of Housing, Communities and Local Government",Homes England,CAPITAL GRANTS TO RPs,Investment,SANCTUARY HOUSING ASSOCIATION,24/01/2022,"£40,000.00",LAR,None,Grants
"Ministry of Housing, Communities and Local Government",Homes England,CAPITAL GRANTS TO RPs,Investment,SANCTUARY HOUSING ASSOCIATION,27/01/2022,"£70,000.00",LAR,None,Grants
"Ministry of Housing, Communities and Local Government",Homes England,CAPITAL GRANTS TO RPs,Investment,SANCTUARY HOUSING ASSOCIATION,31/01/2022,"£106,792.00",LAR,None,Grants
"Ministry of Housing, Communities and Local Government",Homes England,CAPITAL GRANTS TO RPs,Investment,KNIGHTSTONE HOUSING ASSOCIATION LIMITED,18/01/2022,"£10,000.00",LAR,None,Grants
"Ministry of Housing, Communities and Local Government",Homes England,PROPERTY SERVICES,Development,THOMAS LISTER LTD,07/01/2022,£780.00,SMA,80131800,Real estate management services
"Ministry of Housing, Communities and Local Government",Homes England,VALUATION FEES,Development,THOMAS LISTER LTD,19/01/2022,"£4,800.00",SMA,80131800,Real estate management services
"Ministry of Housing, Communities and Local Government",Homes England,VALUATION FEES,Development,THOMAS LISTER LTD,19/01/2022,"£2,580.00",SMA,80131800,Real estate management services
"Ministry of Housing, Communities and Local Government",Homes England,PLANNING FEES,Development,THOMAS LISTER LTD,20/01/2022,"£21,000.00",SMA,80131800,Real estate management services
"Ministry of Housing, Communities and Local Government",Homes England,DISPOSAL FEES - PROPERTY AGENT,Development,THOMAS LISTER LTD,28/01/2022,"£3,000.00",SMA,80131600,Sale of property and building
"Ministry of Housing, Communities and Local Government",Homes England,DISPOSAL FEES - PROPERTY AGENT,Development,THOMAS LISTER LTD,31/01/2022,"£4,770.00",SMA,80131600,Sale of property and building
"Ministry of Housing, Communities and Local Government",Homes England,VALUATION FEES,Development,THOMAS LISTER LTD,31/01/2022,"£4,200.00",SMA,80131800,Real estate management services
"Ministry of Housing, Communities and Local Government",Homes England,CAPITAL GRANTS TO RPs,Investment,SWAYTHLING HOUSING SOCIETY LIMITED,26/01/2022,"£360,000.00",LAR,None,Grants
"Ministry of Housing, Communities and Local Government",Homes England,CONTRIBUTIONS,Development,Bournville Village Trust,06/01/2022,"£11,059.75",LAR,None,Contributions
"Ministry of Housing, Communities and Local Government",Homes England,CAPITAL GRANTS TO RPs,Investment,METROPOLITAN HOUSING TRUST LIMITED,26/01/2022,"£9,000.00",LAR,None,Grants
"Ministry of Housing, Communities and Local Government",Homes England,CAPITAL GRANTS TO RPs,Investment,METROPOLITAN HOUSING TRUST LIMITED,31/01/2022,"£9,000.00",LAR,None,Grants
"Ministry of Housing, Communities and Local Government",Homes England,LEGAL FEES (PROGRAMME - CDEL),"Markets, Partners & Places",LANDMARK CHAMBERS,19/01/2022,"£2,400.00",MED,80121600,Business law services
"Ministry of Housing, Communities and Local Government",Homes England,CAR LEASING - HIRE CHARGES,Cido,LOOKERS LEASING,26/01/2022,£294.75,SMA,25101500,Passenger motor vehicles
"Ministry of Housing, Communities and Local Government",Homes England,CAR LEASING - HIRE CHARGES,Cido,LOOKERS LEASING,26/01/2022,£294.74,SMA,25101500,Passenger motor vehicles
"Ministry of Housing, Communities and Local Government",Homes England,CAR LEASING - HIRE CHARGES,Development,LEX AUTOLEASE LTD,06/01/2022,£343.71,LAR,25101500,Passenger motor vehicles
"Ministry of Housing, Communities and Local Government",Homes England,CAR LEASING - HIRE CHARGES,Development,LEX AUTOLEASE LTD,06/01/2022,£270.52,LAR,25101500,Passenger motor vehicles
"Ministry of Housing, Communities and Local Government",Homes England,CAR LEASING - HIRE CHARGES,"Markets, Partners & Places",LEX AUTOLEASE LTD,06/01/2022,£303.52,LAR,25101500,Passenger motor vehicles
"Ministry of Housing, Communities and Local Government",Homes England,CAR LEASING - HIRE CHARGES,Development,LEX AUTOLEASE LTD,06/01/2022,£300.40,LAR,25101500,Passenger motor vehicles
"Ministry of Housing, Communities and Local Government",Homes England,CAR LEASING - HIRE CHARGES,Cido,LEX AUTOLEASE LTD,07/01/2022,£252.10,LAR,25101500,Passenger motor vehicles
"Ministry of Housing, Communities and Local Government",Homes England,CAR LEASING - HIRE CHARGES,Cido,LEX AUTOLEASE LTD,07/01/2022,£330.91,LAR,25101500,Passenger motor vehicles
"Ministry of Housing, Communities and Local Government",Homes England,CAR LEASING - HIRE CHARGES,Development,LEX AUTOLEASE LTD,07/01/2022,£261.54,LAR,25101500,Passenger motor vehicles
"Ministry of Housing, Communities and Local Government",Homes England,CAR LEASING - HIRE CHARGES,Development,LEX AUTOLEASE LTD,07/01/2022,£323.63,LAR,25101500,Passenger motor vehicles
"Ministry of Housing, Communities and Local Government",Homes England,CAR LEASING - HIRE CHARGES,Cido,LEX AUTOLEASE LTD,07/01/2022,£281.75,LAR,25101500,Passenger motor vehicles
"Ministry of Housing, Communities and Local Government",Homes England,CAR LEASING - HIRE CHARGES,Cido,LEX AUTOLEASE LTD,07/01/2022,£375.28,LAR,25101500,Passenger motor vehicles
"Ministry of Housing, Communities and Local Government",Homes England,CAR LEASING - HIRE CHARGES,Investment,LEX AUTOLEASE LTD,11/01/2022,£300.01,LAR,25101500,Passenger motor vehicles
"Ministry of Housing, Communities and Local Government",Homes England,CAR LEASING - HIRE CHARGES,Development,LEX AUTOLEASE LTD,26/01/2022,£300.40,LAR,25101500,Passenger motor vehicles
"Ministry of Housing, Communities and Local Government",Homes England,CAR LEASING - HIRE CHARGES,Cido,LEX AUTOLEASE LTD,26/01/2022,£252.10,LAR,25101500,Passenger motor vehicles
"Ministry of Housing, Communities and Local Government",Homes England,CAR LEASING - HIRE CHARGES,Cido,LEX AUTOLEASE LTD,26/01/2022,£330.91,LAR,25101500,Passenger motor vehicles
"Ministry of Housing, Communities and Local Government",Homes England,CAR LEASING - HIRE CHARGES,Cido,LEX AUTOLEASE LTD,26/01/2022,£252.08,LAR,25101500,Passenger motor vehicles
"Ministry of Housing, Communities and Local Government",Homes England,CAR LEASING - HIRE CHARGES,Cido,LEX AUTOLEASE LTD,26/01/2022,£330.93,LAR,25101500,Passenger motor vehicles
"Ministry of Housing, Communities and Local Government",Homes England,CAR LEASING - HIRE CHARGES,Investment,LEX AUTOLEASE LTD,26/01/2022,£254.66,LAR,25101500,Passenger motor vehicles
"Ministry of Housing, Communities and Local Government",Homes England,CAR LEASING - HIRE CHARGES,Investment,LEX AUTOLEASE LTD,26/01/2022,£320.57,LAR,25101500,Passenger motor vehicles
"Ministry of Housing, Communities and Local Government",Homes England,CAR LEASING - HIRE CHARGES,Investment,LEX AUTOLEASE LTD,26/01/2022,£254.66,LAR,25101500,Passenger motor vehicles
"Ministry of Housing, Communities and Local Government",Homes England,CAR LEASING - HIRE CHARGES,Investment,LEX AUTOLEASE LTD,26/01/2022,£320.57,LAR,25101500,Passenger motor vehicles
"Ministry of Housing, Communities and Local Government",Homes England,CAR LEASING - HIRE CHARGES,Investment,LEX AUTOLEASE LTD,26/01/2022,£304.20,LAR,25101500,Passenger motor vehicles
"Ministry of Housing, Communities and Local Government",Homes England,CAR LEASING - HIRE CHARGES,Investment,LEX AUTOLEASE LTD,26/01/2022,£332.28,LAR,25101500,Passenger motor vehicles
"Ministry of Housing, Communities and Local Government",Homes England,CAR LEASING - HIRE CHARGES,"Markets, Partners & Places",LEX AUTOLEASE LTD,26/01/2022,£302.32,LAR,25101500,Passenger motor vehicles
"Ministry of Housing, Communities and Local Government",Homes England,CAR LEASING - HIRE CHARGES,Development,LEX AUTOLEASE LTD,26/01/2022,£270.54,LAR,25101500,Passenger motor vehicles
"Ministry of Housing, Communities and Local Government",Homes England,CAR LEASING - HIRE CHARGES,Development,LEX AUTOLEASE LTD,26/01/2022,£305.05,LAR,25101500,Passenger motor vehicles
"Ministry of Housing, Communities and Local Government",Homes England,CAR LEASING - HIRE CHARGES,Development,LEX AUTOLEASE LTD,31/01/2022,£300.39,LAR,25101500,Passenger motor vehicles
"Ministry of Housing, Communities and Local Government",Homes England,REV GRNTS TO LOCAL AUTHORITIES,Investment,BIRKENHEAD FORUM HOUSING ASSOCIATION limited,20/01/2022,"£50,633.00",MED,None,Grants
"Ministry of Housing, Communities and Local Government",Homes England,REV GRNTS TO LOCAL AUTHORITIES,Investment,BIRKENHEAD FORUM HOUSING ASSOCIATION limited,20/01/2022,"£50,633.00",MED,None,Grants
"Ministry of Housing, Communities and Local Government",Homes England,OTHER PROFESSIONAL FEES,Development,LEES ROXBURGH LTD,13/01/2022,£342.52,SMA,80131800,Real estate management services
"Ministry of Housing, Communities and Local Government",Homes England,ST FUND LOANS ADDITIONS,Investment,LK DEVELOPMENTS LIMITED,10/01/2022,"£370,204.23",MIC,None,Loans
"Ministry of Housing, Communities and Local Government",Homes England,REV GRNTS TO LOCAL AUTHORITIES,Investment,LUTON COMMUNITY HOUSING LIMITED T/A SQUARED,17/01/2022,"£14,368.00",MED,None,Grants
"Ministry of Housing, Communities and Local Government",Homes England,ST FUND LOANS ADDITIONS,Investment,LOYD HOMES LTD,10/01/2022,"£101,604.13",MIC,None,Loans
"Ministry of Housing, Communities and Local Government",Homes England,REV GRNTS TO LOCAL AUTHORITIES,Investment,HIGHTOWN HOUSING ASSOCIATION LTD,13/01/2022,"£25,227.00",LAR,None,Grants
"Ministry of Housing, Communities and Local Government",Homes England,REV GRNTS TO LOCAL AUTHORITIES,Investment,HIGHTOWN HOUSING ASSOCIATION LTD,13/01/2022,"£9,984.00",LAR,None,Grants
"Ministry of Housing, Communities and Local Government",Homes England,CAPITAL GRANTS TO RPs,Investment,HIGHTOWN HOUSING ASSOCIATION LTD,28/01/2022,"£31,875.00",LAR,None,Grants
"Ministry of Housing, Communities and Local Government",Homes England,CAPITAL GRANTS TO RPs,Investment,CONNECT HOUSING ASSOCIATION LIMITED,19/01/2022,"£15,750.00",LAR,None,Grants
"Ministry of Housing, Communities and Local Government",Homes England,ST FUND LOANS ADDITIONS,Investment,LONDON BTR INVESTMENTS HOLDINGS 1 LTD,14/01/2022,"£861,139.94",SMA,None,Loans
"Ministry of Housing, Communities and Local Government",Homes England,Help to Buy 2 Additions,Investment,HOME GROUP LIMITED,11/01/2022,"£37,000.00",LAR,None,Grants
"Ministry of Housing, Communities and Local Government",Homes England,REV GRNTS TO LOCAL AUTHORITIES,Investment,HOME GROUP LIMITED,13/01/2022,"£16,041.00",LAR,None,Grants
"Ministry of Housing, Communities and Local Government",Homes England,REV GRNTS TO LOCAL AUTHORITIES,Investment,HOME GROUP LIMITED,17/01/2022,"£22,500.00",LAR,None,Grants
"Ministry of Housing, Communities and Local Government",Homes England,CAPITAL GRANTS TO RPs,Investment,ARAWAK WALTON HOUSING ASSOCIATION LTD,20/01/2022,"£10,000.00",SMA,None,Grants
"Ministry of Housing, Communities and Local Government",Homes England,CAPITAL GRANTS TO RPs,Investment,MANNINGHAM HOUSING ASSOCIATION LIMITED,26/01/2022,"£9,000.00",SMA,None,Grants
"Ministry of Housing, Communities and Local Government",Homes England,CAPITAL GRANTS TO RPs,Investment,MANNINGHAM HOUSING ASSOCIATION LIMITED,27/01/2022,"£9,000.00",SMA,None,Grants
"Ministry of Housing, Communities and Local Government",Homes England,CAPITAL GRANTS TO RPs,Investment,SHA 2016 LIMITED,27/01/2022,"£78,000.00",LAR,None,Grants
"Ministry of Housing, Communities and Local Government",Homes England,Help to Buy 2 Additions,Investment,ORBIT HOUSING GROUP LTD,26/01/2022,"£39,799.00",LAR,None,Grants
"Ministry of Housing, Communities and Local Government",Homes England,Help to Buy 2 Additions,Investment,ORBIT HOUSING GROUP LTD,27/01/2022,"£65,600.00",LAR,None,Grants
"Ministry of Housing, Communities and Local Government",Homes England,CAPITAL GRANTS TO RPs,Investment,SOHA HOUSING LIMITED,25/01/2022,"£13,500.00",MED,None,Grants
"Ministry of Housing, Communities and Local Government",Homes England,CAPITAL GRANTS TO RPs,Investment,ABRI GROUP LIMITED,18/01/2022,"£10,000.00",LAR,None,Grants
"Ministry of Housing, Communities and Local Government",Homes England,CAPITAL GRANTS TO RPs,Investment,CITIZEN HOUSING GROUP LIMITED,21/01/2022,"£46,000.00",LAR,None,Grants
"Ministry of Housing, Communities and Local Government",Homes England,CAPITAL GRANTS TO RPs,Investment,WYTHENSHAWE COMMUNITY HOUSING GROUP LIMITED,21/01/2022,"£555,000.00",LAR,None,Grants
"Ministry of Housing, Communities and Local Government",Homes England,CAPITAL GRANTS TO RPs,Investment,CALICO HOMES LIMITED,12/01/2022,"£10,150.00",MED,None,Grants
"Ministry of Housing, Communities and Local Government",Homes England,CAPITAL GRANTS TO RPs,Investment,CALICO HOMES LIMITED,18/01/2022,"£39,680.00",MED,None,Grants
"Ministry of Housing, Communities and Local Government",Homes England,CAPITAL GRANTS TO RPs,Investment,CALICO HOMES LIMITED,20/01/2022,"£7,250.00",MED,None,Grants
"Ministry of Housing, Communities and Local Government",Homes England,CAPITAL GRANTS TO RPs,Investment,CALICO HOMES LIMITED,20/01/2022,"£11,600.00",MED,None,Grants
"Ministry of Housing, Communities and Local Government",Homes England,CAPITAL GRANTS TO RPs,Investment,CALICO HOMES LIMITED,21/01/2022,"£10,150.00",MED,None,Grants
"Ministry of Housing, Communities and Local Government",Homes England,CAPITAL GRANTS TO RPs,Investment,CALICO HOMES LIMITED,25/01/2022,"£11,600.00",MED,None,Grants
"Ministry of Housing, Communities and Local Government",Homes England,CAPITAL GRANTS TO RPs,Investment,CALICO HOMES LIMITED,26/01/2022,"£10,150.00",MED,None,Grants
"Ministry of Housing, Communities and Local Government",Homes England,CAPITAL GRANTS TO RPs,Investment,CALICO HOMES LIMITED,27/01/2022,"£12,000.00",MED,None,Grants
"Ministry of Housing, Communities and Local Government",Homes England,CAPITAL GRANTS TO RPs,Investment,CALICO HOMES LIMITED,28/01/2022,"£10,500.00",MED,None,Grants
"Ministry of Housing, Communities and Local Government",Homes England,CAPITAL GRANTS TO RPs,Investment,GENTOO GROUP LIMITED,21/01/2022,"£9,000.00",LAR,None,Grants
"Ministry of Housing, Communities and Local Government",Homes England,CAPITAL GRANTS TO RPs,Investment,GENTOO GROUP LIMITED,21/01/2022,"£9,000.00",LAR,None,Grants
"Ministry of Housing, Communities and Local Government",Homes England,CAPITAL GRANTS TO RPs,Investment,RAVEN HOUSING TRUST,11/01/2022,"£16,000.00",LAR,None,Grants
"Ministry of Housing, Communities and Local Government",Homes England,CAPITAL GRANTS TO RPs,Investment,WEAVER VALE HOUSING TRUST,18/01/2022,"£10,000.00",LAR,None,Grants
"Ministry of Housing, Communities and Local Government",Homes England,CAPITAL GRANTS TO RPs,Investment,INCOMMUNITIES GROUP LIMITED,14/01/2022,"£9,000.00",LAR,None,Grants
"Ministry of Housing, Communities and Local Government",Homes England,CAPITAL GRANTS TO RPs,Investment,INCOMMUNITIES GROUP LIMITED,14/01/2022,"£9,000.00",LAR,None,Grants
"Ministry of Housing, Communities and Local Government",Homes England,CAPITAL GRANTS TO RPs,Investment,INCOMMUNITIES GROUP LIMITED,14/01/2022,"£9,000.00",LAR,None,Grants
"Ministry of Housing, Communities and Local Government",Homes England,CAPITAL GRANTS TO RPs,Investment,INCOMMUNITIES GROUP LIMITED,14/01/2022,"£9,000.00",LAR,None,Grants
"Ministry of Housing, Communities and Local Government",Homes England,CAPITAL GRANTS TO RPs,Investment,INCOMMUNITIES GROUP LIMITED,14/01/2022,"£9,000.00",LAR,None,Grants
"Ministry of Housing, Communities and Local Government",Homes England,CAPITAL GRANTS TO RPs,Investment,INCOMMUNITIES GROUP LIMITED,14/01/2022,"£9,000.00",LAR,None,Grants
"Ministry of Housing, Communities and Local Government",Homes England,CAPITAL GRANTS TO RPs,Investment,INCOMMUNITIES GROUP LIMITED,14/01/2022,"£9,000.00",LAR,None,Grants
"Ministry of Housing, Communities and Local Government",Homes England,CAPITAL GRANTS TO RPs,Investment,INCOMMUNITIES GROUP LIMITED,14/01/2022,"£9,000.00",LAR,None,Grants
"Ministry of Housing, Communities and Local Government",Homes England,CAPITAL GRANTS TO RPs,Investment,INCOMMUNITIES GROUP LIMITED,14/01/2022,"£9,000.00",LAR,None,Grants
"Ministry of Housing, Communities and Local Government",Homes England,CAPITAL GRANTS TO RPs,Investment,INCOMMUNITIES GROUP LIMITED,14/01/2022,"£9,000.00",LAR,None,Grants
"Ministry of Housing, Communities and Local Government",Homes England,CAPITAL GRANTS TO RPs,Investment,INCOMMUNITIES GROUP LIMITED,14/01/2022,"£9,000.00",LAR,None,Grants
"Ministry of Housing, Communities and Local Government",Homes England,CAPITAL GRANTS TO RPs,Investment,INCOMMUNITIES GROUP LIMITED,17/01/2022,"£9,000.00",LAR,None,Grants
"Ministry of Housing, Communities and Local Government",Homes England,CAPITAL GRANTS TO RPs,Investment,SETTLE GROUP,11/01/2022,"£28,000.00",LAR,None,Grants
"Ministry of Housing, Communities and Local Government",Homes England,CAPITAL GRANTS TO RPs,Investment,MAGENTA LIVING,28/01/2022,"£114,000.00",LAR,None,Grants
"Ministry of Housing, Communities and Local Government",Homes England,CAPITAL GRANTS TO RPs,Investment,WAKEFIELD AND DISTRICT HOUSING LIMITED,31/01/2022,"£9,250.00",LAR,None,Grants
"Ministry of Housing, Communities and Local Government",Homes England,CAPITAL GRANTS TO RPs,Investment,WAKEFIELD AND DISTRICT HOUSING LIMITED,31/01/2022,"£5,250.00",LAR,None,Grants
"Ministry of Housing, Communities and Local Government",Homes England,CAPITAL GRANTS TO RPs,Investment,TOGETHER HOUSING GROUP LIMITED,13/01/2022,"£9,000.00",LAR,None,Grants
